Department Family,Entity,Payment Date,Expense Type,Expense Area,Supplier,Transaction Number,Amount,Description
BIS,Skills Funding Agency,29/06/2015,16-18 Apprenticeship Grant for Employers,Main Funding,GREEN�WATER�SERVICES,SPINVCHQ_507,"1,500.00",Purchase Invoice
BIS,Skills Funding Agency,29/06/2015,19-24 Apprenticeship Grant for Employers,Main Funding,TSP�SHOWBUSINESS�LTD,SPINVCHQ_508,"1,500.00",Purchase Invoice
BIS,Skills Funding Agency,30/06/2015,Archiving,Funding & Programmes - Apprenticeships & Employer Policy Implement,IRON MOUNTAIN UK LTD,IPINVELECT3_1845,13.30,Purchase Invoice
BIS,Skills Funding Agency,30/06/2015,Archiving,HR - Facilities Central,IRON MOUNTAIN UK LTD,IPINVELECT3_1845,"5,995.87",Purchase Invoice
BIS,Skills Funding Agency,30/06/2015,Archiving,Operations Finance - Financial Management,IRON MOUNTAIN UK LTD,IPINVELECT3_1845,"12,811.10",Purchase Invoice
BIS,Skills Funding Agency,30/06/2015,Carbon Reduction Commitment Allowances,"Operations Finance - Shared Service, ICT Finance & Capital",OFFICE FOR NATIONAL STATISTICS,SPINVB_27800,119.00,Purchase Invoice
BIS,Skills Funding Agency,30/06/2015,Communications Team Expenditure,Chief Executive Office - Communications,CROWN BUSINESS COMMUNICATIONS LIMITED,SPINVB_27808,"5,358.60",Purchase Invoice
BIS,Skills Funding Agency,30/06/2015,Electricity,"Operations Finance - Shared Service, ICT Finance & Capital",OFFICE FOR NATIONAL STATISTICS,SPINVB_27800,198.00,Purchase Invoice
BIS,Skills Funding Agency,30/06/2015,Gas,"Operations Finance - Shared Service, ICT Finance & Capital",OFFICE FOR NATIONAL STATISTICS,SPINVB_27800,"2,826.00",Purchase Invoice
BIS,Skills Funding Agency,30/06/2015,Hosting,Operations ICT - Technical Design Authority,SPECIALIST COMPUTER CENTRES PLC,SPINVB_27489,"9,882.48",Purchase Invoice
BIS,Skills Funding Agency,30/06/2015,Hosting,Operations ICT - Technical Design Authority,SPECIALIST COMPUTER CENTRES PLC,SPINVB_27490,"9,882.48",Purchase Invoice
BIS,Skills Funding Agency,30/06/2015,Licences,Operations ICT - Business IT - Citizen Services,BYTES SOFTWARE SERVICES LTD,SPINVB_27745,607.99,Purchase Invoice
BIS,Skills Funding Agency,30/06/2015,Life Long Learning Accounts,Main Funding,ATOS IT SERVICES UK,SPINVB_27716,"29,287.20",Purchase Invoice
BIS,Skills Funding Agency,30/06/2015,Life Long Learning Accounts,Main Funding,ATOS IT SERVICES UK,SPINVB_27717,"301,700.40",Purchase Invoice
BIS,Skills Funding Agency,30/06/2015,Managed IT Service,National Careers & Learner Services,LOCKHEED MARTIN BUSINESS TECHNOLOGY SOLUTIONS LIMITED,SPCRNB_913,-600.78,Purchase Credit Note
BIS,Skills Funding Agency,30/06/2015,Managed IT Service,National Careers & Learner Services,LOCKHEED MARTIN BUSINESS TECHNOLOGY SOLUTIONS LIMITED,SPCRNB_914,-600.78,Purchase Credit Note
BIS,Skills Funding Agency,30/06/2015,Managed IT Service,National Careers & Learner Services,LOCKHEED MARTIN BUSINESS TECHNOLOGY SOLUTIONS LIMITED,SPINVB_27241,"10,814.04",Purchase Invoice
BIS,Skills Funding Agency,30/06/2015,Managed IT Service,National Careers & Learner Services,LOCKHEED MARTIN BUSINESS TECHNOLOGY SOLUTIONS LIMITED,SPINVB_27242,600.78,Purchase Invoice
BIS,Skills Funding Agency,30/06/2015,Managed IT Service,National Careers & Learner Services,LOCKHEED MARTIN BUSINESS TECHNOLOGY SOLUTIONS LIMITED,SPINVB_27243,"3,003.90",Purchase Invoice
BIS,Skills Funding Agency,30/06/2015,Managed IT Service,National Careers & Learner Services,LOCKHEED MARTIN BUSINESS TECHNOLOGY SOLUTIONS LIMITED,SPINVB_27244,"7,209.36",Purchase Invoice
BIS,Skills Funding Agency,30/06/2015,Managed IT Service,National Careers & Learner Services,LOCKHEED MARTIN BUSINESS TECHNOLOGY SOLUTIONS LIMITED,SPINVB_27245,"8,410.92",Purchase Invoice
BIS,Skills Funding Agency,30/06/2015,Managed IT Service,National Careers & Learner Services,LOCKHEED MARTIN BUSINESS TECHNOLOGY SOLUTIONS LIMITED,SPINVB_27246,"5,447.44",Purchase Invoice
BIS,Skills Funding Agency,30/06/2015,Managed IT Service,National Careers & Learner Services,LOCKHEED MARTIN BUSINESS TECHNOLOGY SOLUTIONS LIMITED,SPINVB_27247,"10,750.80",Purchase Invoice
BIS,Skills Funding Agency,30/06/2015,Managed IT Service,National Careers & Learner Services,LOCKHEED MARTIN BUSINESS TECHNOLOGY SOLUTIONS LIMITED,SPINVB_27248,"9,441.73",Purchase Invoice
BIS,Skills Funding Agency,30/06/2015,Managed IT Service,National Careers & Learner Services,LOCKHEED MARTIN BUSINESS TECHNOLOGY SOLUTIONS LIMITED,SPINVB_27249,"5,691.60",Purchase Invoice
BIS,Skills Funding Agency,30/06/2015,Managed IT Service,National Careers & Learner Services,LOCKHEED MARTIN BUSINESS TECHNOLOGY SOLUTIONS LIMITED,SPINVB_27250,"10,374.00",Purchase Invoice
BIS,Skills Funding Agency,30/06/2015,Managed IT Service,National Careers & Learner Services,LOCKHEED MARTIN BUSINESS TECHNOLOGY SOLUTIONS LIMITED,SPINVB_27251,"14,545.20",Purchase Invoice
BIS,Skills Funding Agency,30/06/2015,Managed IT Service,National Careers & Learner Services,LOCKHEED MARTIN BUSINESS TECHNOLOGY SOLUTIONS LIMITED,SPINVB_27252,"8,410.92",Purchase Invoice
BIS,Skills Funding Agency,30/06/2015,Managed IT Service,National Careers & Learner Services,LOCKHEED MARTIN BUSINESS TECHNOLOGY SOLUTIONS LIMITED,SPINVB_27615,"9,912.88",Purchase Invoice
BIS,Skills Funding Agency,30/06/2015,Managed IT Service,National Careers & Learner Services,LOCKHEED MARTIN BUSINESS TECHNOLOGY SOLUTIONS LIMITED,SPINVB_27616,"15,099.31",Purchase Invoice
BIS,Skills Funding Agency,30/06/2015,Managed IT Service,National Careers & Learner Services,LOCKHEED MARTIN BUSINESS TECHNOLOGY SOLUTIONS LIMITED,SPINVB_27617,"22,829.64",Purchase Invoice
BIS,Skills Funding Agency,30/06/2015,Managed IT Service,National Careers & Learner Services,LOCKHEED MARTIN BUSINESS TECHNOLOGY SOLUTIONS LIMITED,SPINVB_27618,"10,051.04",Purchase Invoice
BIS,Skills Funding Agency,30/06/2015,Managed IT Service,National Careers & Learner Services,LOCKHEED MARTIN BUSINESS TECHNOLOGY SOLUTIONS LIMITED,SPINVB_27619,"12,015.60",Purchase Invoice
BIS,Skills Funding Agency,30/06/2015,Managed IT Service,National Careers & Learner Services,LOCKHEED MARTIN BUSINESS TECHNOLOGY SOLUTIONS LIMITED,SPINVB_27620,"10,771.98",Purchase Invoice
BIS,Skills Funding Agency,30/06/2015,Managed IT Service,National Careers & Learner Services,LOCKHEED MARTIN BUSINESS TECHNOLOGY SOLUTIONS LIMITED,SPINVB_27656,"9,612.48",Purchase Invoice
BIS,Skills Funding Agency,30/06/2015,Managed IT Service,National Careers & Learner Services,SCROLL LLP,SPINVB_27355,"25,200.00",Purchase Invoice
BIS,Skills Funding Agency,30/06/2015,Managed IT Service,National Careers & Learner Services,SCROLL LLP,SPINVB_27637,"27,900.00",Purchase Invoice
BIS,Skills Funding Agency,30/06/2015,Managed IT Service,National Careers & Learner Services,SCROLL LLP,SPINVB_27722,"4,950.00",Purchase Invoice
BIS,Skills Funding Agency,30/06/2015,Managed IT Service,National Careers & Learner Services,SCROLL LLP,SPINVB_27723,726.00,Purchase Invoice
BIS,Skills Funding Agency,30/06/2015,Managed IT Service,Operations ICT - Projects,BAE SYSTEMS APPLIED INTELLIGENCE LIMITED,SPINVB_27752,"20,672.82",Purchase Invoice
BIS,Skills Funding Agency,30/06/2015,Managed IT Service,Operations ICT - Projects,BAE SYSTEMS APPLIED INTELLIGENCE LIMITED,SPINVB_27758,822.74,Purchase Invoice
BIS,Skills Funding Agency,30/06/2015,"National Apprenticeship Service - Business, Innovation & Skills - Non-Participation",Communications & Marketing,MANAGEMENT LEARNING RESOURCES LTD,SPINVB_27807,"4,291.61",Purchase Invoice
BIS,Skills Funding Agency,30/06/2015,"National Apprenticeship Service - Business, Innovation & Skills - Non-Participation",Communications & Marketing,SPORTCEL MARKETING LTD,SPINVB_27806,"6,000.00",Purchase Invoice
BIS,Skills Funding Agency,30/06/2015,"National Apprenticeship Service - Business, Innovation & Skills - Non-Participation",Main Funding,NORTHAMPTONSHIRE ENTERPRISE PARTNERSHIP,SPINVB_27802,"2,400.00",Purchase Invoice
BIS,Skills Funding Agency,30/06/2015,Office Refreshments,Operations Finance - Financial Management,MADELEY DAIRIES,SPINVB_27797,72.52,Purchase Invoice
BIS,Skills Funding Agency,30/06/2015,Professional Services - Single Assignments,Operations ICT - Projects,BAE SYSTEMS APPLIED INTELLIGENCE LIMITED,SPINVB_27740,"12,600.58",Purchase Invoice
BIS,Skills Funding Agency,30/06/2015,Professional Services - Single Assignments,Operations ICT - Projects,LOCKHEED MARTIN BUSINESS TECHNOLOGY SOLUTIONS LIMITED,SPINVB_27219,"7,638.30",Purchase Invoice
BIS,Skills Funding Agency,30/06/2015,Professional Services - Single Assignments,Operations ICT - Projects,LOCKHEED MARTIN BUSINESS TECHNOLOGY SOLUTIONS LIMITED,SPINVB_27657,"8,081.10",Purchase Invoice
BIS,Skills Funding Agency,30/06/2015,Rates,"Operations Finance - Shared Service, ICT Finance & Capital",COVENTRY CITY COUNCIL,RATES_1115,"70,992.00",Rates Demand
BIS,Skills Funding Agency,30/06/2015,Rates,"Operations Finance - Shared Service, ICT Finance & Capital",OFFICE FOR NATIONAL STATISTICS,SPINVB_27800,"1,968.00",Purchase Invoice
BIS,Skills Funding Agency,30/06/2015,Rates,"Operations Finance - Shared Service, ICT Finance & Capital",PLYMOUTH CITY COUNCIL,RATES_1124,"6,261.00",Rates Demand
BIS,Skills Funding Agency,30/06/2015,Service Charges,"Operations Finance - Shared Service, ICT Finance & Capital",ENVOY COM PROP MANAGEMENT,SPINVB_27799,"2,836.80",Purchase Invoice
BIS,Skills Funding Agency,30/06/2015,Service Charges,"Operations Finance - Shared Service, ICT Finance & Capital",OFFICE FOR NATIONAL STATISTICS,SPINVB_27800,"9,677.00",Purchase Invoice
BIS,Skills Funding Agency,30/06/2015,Software Upgrades,Operations ICT - Employer Digital Service,VALTECH LIMITED,SPINVB_27647,"17,280.00",Purchase Invoice
BIS,Skills Funding Agency,30/06/2015,Software Upgrades,Operations ICT - Projects,LIBERATA UK LIMITED,SPINVB_27707,"15,660.00",Purchase Invoice
BIS,Skills Funding Agency,30/06/2015,Software Upgrades,Operations ICT - Projects,LOCKHEED MARTIN BUSINESS TECHNOLOGY SOLUTIONS LIMITED,SPINVB_27677,"44,896.97",Purchase Invoice
BIS,Skills Funding Agency,30/06/2015,Temporary Staff,"Operations Finance - Shared Service, ICT Finance & Capital",MICHAEL PAGE INTERNATIONAL RECRUITMENT LTD,SPINVB_27803,899.28,Purchase Invoice
BIS,Skills Funding Agency,30/06/2015,Temporary Staff,Operations ICT - Change Delivery,LA INTERNATIONAL,SPINVB_27778,"9,879.01",Purchase Invoice
BIS,Skills Funding Agency,30/06/2015,Temporary Staff,Operations ICT - Change Delivery,PARITY RESOURCES LTD,SPINVB_27772,"2,850.00",Purchase Invoice
BIS,Skills Funding Agency,30/06/2015,Temporary Staff,Operations ICT - Change Delivery,PARITY RESOURCES LTD,SPINVB_27773,"9,120.00",Purchase Invoice
BIS,Skills Funding Agency,30/06/2015,Temporary Staff,Operations ICT - Project Delivery,LA INTERNATIONAL,SPINVB_27751,"6,228.58",Purchase Invoice
BIS,Skills Funding Agency,30/06/2015,Temporary Staff,Operations ICT - Provider Digital Service,PARITY RESOURCES LTD,SPINVB_27775,"3,420.00",Purchase Invoice
BIS,Skills Funding Agency,30/06/2015,Temporary Staff,Operations ICT - Service Integration & Management,METHODS ADVISORY LTD,SPINVB_27798,"16,800.00",Purchase Invoice
BIS,Skills Funding Agency,30/06/2015,Training Fees Staff,Funding & Programmes - Funding Systems and Information,GOVERNMENT PROCUREMENT SERVICE,SPINVB_27801,"1,500.00",Purchase Invoice
BIS,Skills Funding Agency,30/06/2015,Training Venue & Refreshments,HR - Human Resources,CAPITA TRAVEL AND EVENTS LTD,IPINVELECT3_1846,"1,872.00",Purchase Invoice
BIS,Skills Funding Agency,30/06/2015,Water,"Operations Finance - Shared Service, ICT Finance & Capital",OFFICE FOR NATIONAL STATISTICS,SPINVB_27800,427.00,Purchase Invoice
BIS,Skills Funding Agency,01/07/2015,Computer Hardware,Funding & Programmes - Delivery & Performance,DELL CORP LTD,SPINVB_27785,"6,558.19",Purchase Invoice
BIS,Skills Funding Agency,01/07/2015,Diesel Car Mileage Passenger Supplement,Central Delivery Service - European Social Fund - Audit Compliance,Agency Staff Member,SCLAIM_42559,13.00,Staff Expenses Claim
BIS,Skills Funding Agency,01/07/2015,Diesel Car Mileage Passenger Supplement,Funding & Programmes - Provider Management & Intervention South,Agency Staff Member,SCLAIM_42549,6.60,Staff Expenses Claim
BIS,Skills Funding Agency,01/07/2015,Diesel Car Mileage Passenger Supplement,Funding & Programmes - Provider Management & Intervention South,Agency Staff Member,SCLAIM_42558,0.30,Staff Expenses Claim
BIS,Skills Funding Agency,01/07/2015,Diesel Car Mileage,Central Delivery Service - European Social Fund - Audit Compliance,Agency Staff Member,SCLAIM_42550,549.00,Staff Expenses Claim
BIS,Skills Funding Agency,01/07/2015,Diesel Car Mileage,Central Delivery Service - European Social Fund - Audit Compliance,Agency Staff Member,SCLAIM_42559,531.90,Staff Expenses Claim
BIS,Skills Funding Agency,01/07/2015,Diesel Car Mileage,Central Delivery Service - European Social Fund - Audit Compliance,Agency Staff Member,SCLAIM_42564,-6.50,Staff Expenses Claim
BIS,Skills Funding Agency,01/07/2015,Diesel Car Mileage,Central Delivery Service - European Social Fund - Audit Compliance,Agency Staff Member,SCLAIM_42607,64.80,Staff Expenses Claim
BIS,Skills Funding Agency,01/07/2015,Diesel Car Mileage,Central Delivery Service - Leeds,Agency Staff Member,SCLAIM_42562,274.50,Staff Expenses Claim
BIS,Skills Funding Agency,01/07/2015,Diesel Car Mileage,Chief Executive Office - Marketing  ,Agency Staff Member,SCLAIM_42547,16.20,Staff Expenses Claim
BIS,Skills Funding Agency,01/07/2015,Diesel Car Mileage,Chief Executive Office - Marketing  ,Agency Staff Member,SCLAIM_42590,62.10,Staff Expenses Claim
BIS,Skills Funding Agency,01/07/2015,Diesel Car Mileage,Chief Executive Office - Marketing  ,Agency Staff Member,SCLAIM_42594,166.50,Staff Expenses Claim
BIS,Skills Funding Agency,01/07/2015,Diesel Car Mileage,Employer & Provider Services North East & Yorkshire,Agency Staff Member,SCLAIM_42589,152.10,Staff Expenses Claim
BIS,Skills Funding Agency,01/07/2015,Diesel Car Mileage,Employer & Provider Services North West,Agency Staff Member,SCLAIM_42572,408.15,Staff Expenses Claim
BIS,Skills Funding Agency,01/07/2015,Diesel Car Mileage,Employer & Provider Services North West,Agency Staff Member,SCLAIM_42583,86.40,Staff Expenses Claim
BIS,Skills Funding Agency,01/07/2015,Diesel Car Mileage,Employer & Provider Services South East,Agency Staff Member,SCLAIM_42586,151.65,Staff Expenses Claim
BIS,Skills Funding Agency,01/07/2015,Diesel Car Mileage,Finance Division - Provider Finance,Agency Staff Member,SCLAIM_42591,85.50,Staff Expenses Claim
BIS,Skills Funding Agency,01/07/2015,Diesel Car Mileage,Finance Division - Provider Finance,Agency Staff Member,SCLAIM_42599,30.60,Staff Expenses Claim
BIS,Skills Funding Agency,01/07/2015,Diesel Car Mileage,Finance Division - Provider Finance,Agency Staff Member,SCLAIM_42608,297.45,Staff Expenses Claim
BIS,Skills Funding Agency,01/07/2015,Diesel Car Mileage,Funding & Programmes - Funding Systems and Information,Agency Staff Member,SCLAIM_42544,564.30,Staff Expenses Claim
BIS,Skills Funding Agency,01/07/2015,Diesel Car Mileage,Funding & Programmes - Provider Management & Intervention South,Agency Staff Member,SCLAIM_42549,211.50,Staff Expenses Claim
BIS,Skills Funding Agency,01/07/2015,Diesel Car Mileage,Funding & Programmes - Provider Management & Intervention South,Agency Staff Member,SCLAIM_42558,238.95,Staff Expenses Claim
BIS,Skills Funding Agency,01/07/2015,Diesel Car Mileage,National Careers & Learner Services,Agency Staff Member,SCLAIM_42567,36.00,Staff Expenses Claim
BIS,Skills Funding Agency,01/07/2015,Diesel Car Mileage,National Careers & Learner Services,Agency Staff Member,SCLAIM_42595,432.90,Staff Expenses Claim
BIS,Skills Funding Agency,01/07/2015,Diesel Car Mileage,National Careers & Learner Services,Agency Staff Member,SCLAIM_42601,227.70,Staff Expenses Claim
BIS,Skills Funding Agency,01/07/2015,Diesel Car Mileage,Operations Finance - Financial Management,Agency Staff Member,SCLAIM_42575,541.80,Staff Expenses Claim
BIS,Skills Funding Agency,01/07/2015,Diesel Car Mileage,Operations ICT - Information & Communication Technology - Digital,Agency Staff Member,SCLAIM_42202,77.40,Staff Expenses Claim
BIS,Skills Funding Agency,01/07/2015,Eye Tests,Employer & Provider Services London,Agency Staff Member,SCLAIM_42568,60.00,Staff Expenses Claim
BIS,Skills Funding Agency,01/07/2015,Eye Tests,Employer & Provider Services South East,Agency Staff Member,SCLAIM_42605,70.00,Staff Expenses Claim
BIS,Skills Funding Agency,01/07/2015,Hospitality,Employer & Provider Services North East & Yorkshire,Agency Staff Member,SCLAIM_42598,16.70,Staff Expenses Claim
BIS,Skills Funding Agency,01/07/2015,"Information, Advice and Guidance - Local",Main Funding,CFBT EDUCATION TRUST,SPCRNB_874,"-2,075.00",Purchase Credit Note
BIS,Skills Funding Agency,01/07/2015,"National Apprenticeship Service - Business, Innovation & Skills - Non-Participation",Communications & Marketing,INFERNO LTD,SPINVB_27809,288.00,Purchase Invoice
BIS,Skills Funding Agency,01/07/2015,"National Apprenticeship Service - Business, Innovation & Skills - Non-Participation",Communications & Marketing,INFERNO LTD,SPINVB_27810,339.60,Purchase Invoice
BIS,Skills Funding Agency,01/07/2015,"National Apprenticeship Service - Business, Innovation & Skills - Non-Participation",Communications & Marketing,INFERNO LTD,SPINVB_27811,"1,284.00",Purchase Invoice
BIS,Skills Funding Agency,01/07/2015,"National Apprenticeship Service - Business, Innovation & Skills - Non-Participation",Main Funding,SMALL FIRMS ENTERPRISE DEVELOPMENT INITIATIVE LIMITED,SPINVB_27679,"5,977.17",Purchase Invoice
BIS,Skills Funding Agency,01/07/2015,National Careers Service Face to Face,Main Funding,CFBT EDUCATION TRUST,SPINVB_26816,"27,280.00",Purchase Invoice
BIS,Skills Funding Agency,01/07/2015,National Careers Service Youth Contract,Main Funding,CFBT EDUCATION TRUST,SPINVB_26840,"19,870.00",Purchase Invoice
BIS,Skills Funding Agency,01/07/2015,Other Fuel Car Mileage Passenger Supplement,Employer & Provider Services Midlands,Agency Staff Member,SCLAIM_42592,7.80,Staff Expenses Claim
BIS,Skills Funding Agency,01/07/2015,Other Fuel Car Mileage,Central Delivery Service - European Social Fund - Audit Compliance,Agency Staff Member,SCLAIM_42600,34.50,Staff Expenses Claim
BIS,Skills Funding Agency,01/07/2015,Other Fuel Car Mileage,Employer & Provider Services Midlands,Agency Staff Member,SCLAIM_42592,408.60,Staff Expenses Claim
BIS,Skills Funding Agency,01/07/2015,Other Fuel Car Mileage,Employer & Provider Services North West,Agency Staff Member,SCLAIM_42581,62.55,Staff Expenses Claim
BIS,Skills Funding Agency,01/07/2015,Other Fuel Car Mileage,Employer & Provider Services North West,Agency Staff Member,SCLAIM_42582,62.55,Staff Expenses Claim
BIS,Skills Funding Agency,01/07/2015,Other Fuel Car Mileage,Employer & Provider Services South East,Agency Staff Member,SCLAIM_42585,-2.70,Staff Expenses Claim
BIS,Skills Funding Agency,01/07/2015,Other Fuel Car Mileage,Funding & Programmes - Localism Policy Implementation,Agency Staff Member,SCLAIM_42565,711.00,Staff Expenses Claim
BIS,Skills Funding Agency,01/07/2015,Other Fuel Car Mileage,Funding & Programmes - Provider Management & Intervention North,Agency Staff Member,SCLAIM_42588,-138.52,Staff Expenses Claim
BIS,Skills Funding Agency,01/07/2015,Other Fuel Car Mileage,Funding & Programmes - Provider Management & Intervention South,Agency Staff Member,SCLAIM_42573,-6.75,Staff Expenses Claim
BIS,Skills Funding Agency,01/07/2015,Other Fuel Car Mileage,Funding & Programmes - Provider Management & Intervention South,Agency Staff Member,SCLAIM_42574,-6.75,Staff Expenses Claim
BIS,Skills Funding Agency,01/07/2015,Other Travel,Apprenticeships & Delivery Services - Apprenticeships & Employer Policy Implementation,Agency Staff Member,SCLAIM_42561,12.25,Staff Expenses Claim
BIS,Skills Funding Agency,01/07/2015,Other Travel,Central Delivery Service - European Social Fund - Audit Compliance,Agency Staff Member,SCLAIM_42548,24.00,Staff Expenses Claim
BIS,Skills Funding Agency,01/07/2015,Other Travel,Central Delivery Service - European Social Fund - Audit Compliance,Agency Staff Member,SCLAIM_42550,18.40,Staff Expenses Claim
BIS,Skills Funding Agency,01/07/2015,Other Travel,Central Delivery Service - European Social Fund - Audit Compliance,Agency Staff Member,SCLAIM_42551,3.90,Staff Expenses Claim
BIS,Skills Funding Agency,01/07/2015,Other Travel,Central Delivery Service - European Social Fund - Audit Compliance,Agency Staff Member,SCLAIM_42564,8.50,Staff Expenses Claim
BIS,Skills Funding Agency,01/07/2015,Other Travel,Central Delivery Service - European Social Fund - Audit Compliance,Agency Staff Member,SCLAIM_42577,30.00,Staff Expenses Claim
BIS,Skills Funding Agency,01/07/2015,Other Travel,Central Delivery Service - European Social Fund - Audit Compliance,Agency Staff Member,SCLAIM_42600,8.50,Staff Expenses Claim
BIS,Skills Funding Agency,01/07/2015,Other Travel,Central Delivery Service - Leeds,Agency Staff Member,SCLAIM_42562,20.00,Staff Expenses Claim
BIS,Skills Funding Agency,01/07/2015,Other Travel,Central Delivery Service - Leeds,Agency Staff Member,SCLAIM_42602,7.00,Staff Expenses Claim
BIS,Skills Funding Agency,01/07/2015,Other Travel,Chief Executive Office - Marketing  ,Agency Staff Member,SCLAIM_42560,20.00,Staff Expenses Claim
BIS,Skills Funding Agency,01/07/2015,Other Travel,Chief Executive Office - Marketing  ,Agency Staff Member,SCLAIM_42594,15.40,Staff Expenses Claim
BIS,Skills Funding Agency,01/07/2015,Other Travel,Employer & Provider Services Midlands,Agency Staff Member,SCLAIM_42592,58.70,Staff Expenses Claim
BIS,Skills Funding Agency,01/07/2015,Other Travel,Employer & Provider Services North East & Yorkshire,Agency Staff Member,SCLAIM_42589,9.70,Staff Expenses Claim
BIS,Skills Funding Agency,01/07/2015,Other Travel,Employer & Provider Services North East & Yorkshire,Agency Staff Member,SCLAIM_42598,21.70,Staff Expenses Claim
BIS,Skills Funding Agency,01/07/2015,Other Travel,Employer & Provider Services North West,Agency Staff Member,SCLAIM_42555,50.80,Staff Expenses Claim
BIS,Skills Funding Agency,01/07/2015,Other Travel,Employer & Provider Services North West,Agency Staff Member,SCLAIM_42557,31.50,Staff Expenses Claim
BIS,Skills Funding Agency,01/07/2015,Other Travel,Employer & Provider Services North West,Agency Staff Member,SCLAIM_42572,43.70,Staff Expenses Claim
BIS,Skills Funding Agency,01/07/2015,Other Travel,Employer & Provider Services North West,Agency Staff Member,SCLAIM_42581,9.30,Staff Expenses Claim
BIS,Skills Funding Agency,01/07/2015,Other Travel,Employer & Provider Services North West,Agency Staff Member,SCLAIM_42582,9.30,Staff Expenses Claim
BIS,Skills Funding Agency,01/07/2015,Other Travel,Employer & Provider Services North West,Agency Staff Member,SCLAIM_42583,8.80,Staff Expenses Claim
BIS,Skills Funding Agency,01/07/2015,Other Travel,Employer & Provider Services North West,Agency Staff Member,SCLAIM_42597,62.70,Staff Expenses Claim
BIS,Skills Funding Agency,01/07/2015,Other Travel,Employer & Provider Services South East,Agency Staff Member,SCLAIM_42546,7.00,Staff Expenses Claim
BIS,Skills Funding Agency,01/07/2015,Other Travel,Employer & Provider Services South East,Agency Staff Member,SCLAIM_42552,3.36,Staff Expenses Claim
BIS,Skills Funding Agency,01/07/2015,Other Travel,Employer & Provider Services South East,Agency Staff Member,SCLAIM_42603,3.36,Staff Expenses Claim
BIS,Skills Funding Agency,01/07/2015,Other Travel,Employer & Provider Services South East,Agency Staff Member,SCLAIM_42604,6.72,Staff Expenses Claim
BIS,Skills Funding Agency,01/07/2015,Other Travel,Finance Division - Provider Finance,Agency Staff Member,SCLAIM_42554,2.50,Staff Expenses Claim
BIS,Skills Funding Agency,01/07/2015,Other Travel,Finance Division - Provider Finance,Agency Staff Member,SCLAIM_42584,13.36,Staff Expenses Claim
BIS,Skills Funding Agency,01/07/2015,Other Travel,Finance Division - Provider Finance,Agency Staff Member,SCLAIM_42591,16.00,Staff Expenses Claim
BIS,Skills Funding Agency,01/07/2015,Other Travel,Finance Division - Provider Finance,Agency Staff Member,SCLAIM_42599,3.30,Staff Expenses Claim
BIS,Skills Funding Agency,01/07/2015,Other Travel,Finance Division - Provider Finance,Agency Staff Member,SCLAIM_42608,42.00,Staff Expenses Claim
BIS,Skills Funding Agency,01/07/2015,Other Travel,Funding & Programmes - Localism Policy Implementation,Agency Staff Member,SCLAIM_42565,108.00,Staff Expenses Claim
BIS,Skills Funding Agency,01/07/2015,Other Travel,Funding & Programmes - Provider Management & Intervention North,Agency Staff Member,SCLAIM_42588,6.00,Staff Expenses Claim
BIS,Skills Funding Agency,01/07/2015,Other Travel,Funding & Programmes - Provider Management & Intervention South,Agency Staff Member,SCLAIM_42558,12.90,Staff Expenses Claim
BIS,Skills Funding Agency,01/07/2015,Other Travel,National Careers & Learner Services,Agency Staff Member,SCLAIM_42566,7.50,Staff Expenses Claim
BIS,Skills Funding Agency,01/07/2015,Other Travel,National Careers & Learner Services,Agency Staff Member,SCLAIM_42567,29.70,Staff Expenses Claim
BIS,Skills Funding Agency,01/07/2015,Other Travel,National Careers & Learner Services,Agency Staff Member,SCLAIM_42569,4.50,Staff Expenses Claim
BIS,Skills Funding Agency,01/07/2015,Other Travel,National Careers & Learner Services,Agency Staff Member,SCLAIM_42578,38.00,Staff Expenses Claim
BIS,Skills Funding Agency,01/07/2015,Other Travel,National Careers & Learner Services,Agency Staff Member,SCLAIM_42595,4.00,Staff Expenses Claim
BIS,Skills Funding Agency,01/07/2015,Other Travel,National Careers & Learner Services,Agency Staff Member,SCLAIM_42601,91.80,Staff Expenses Claim
BIS,Skills Funding Agency,01/07/2015,Other Travel,Operations Finance - Financial Management,Agency Staff Member,SCLAIM_42575,23.70,Staff Expenses Claim
BIS,Skills Funding Agency,01/07/2015,Other Travel,Operations ICT - Information & Communication Technology - Digital,Agency Staff Member,SCLAIM_42202,19.50,Staff Expenses Claim
BIS,Skills Funding Agency,01/07/2015,Petrol Car Mileage,Apprenticeships & Delivery Services - Apprenticeships & Employer Policy Implementation,Agency Staff Member,SCLAIM_42561,156.60,Staff Expenses Claim
BIS,Skills Funding Agency,01/07/2015,Petrol Car Mileage,Central Delivery Service - European Social Fund - Audit Compliance,Agency Staff Member,SCLAIM_42551,208.80,Staff Expenses Claim
BIS,Skills Funding Agency,01/07/2015,Petrol Car Mileage,Central Delivery Service - European Social Fund - Audit Compliance,Agency Staff Member,SCLAIM_42564,149.40,Staff Expenses Claim
BIS,Skills Funding Agency,01/07/2015,Petrol Car Mileage,Central Delivery Service - European Social Fund - Audit Compliance,Agency Staff Member,SCLAIM_42600,75.60,Staff Expenses Claim
BIS,Skills Funding Agency,01/07/2015,Petrol Car Mileage,Central Delivery Service - Leeds,Agency Staff Member,SCLAIM_42602,185.85,Staff Expenses Claim
BIS,Skills Funding Agency,01/07/2015,Petrol Car Mileage,Chief Executive Office - Marketing  ,Agency Staff Member,SCLAIM_42560,6.75,Staff Expenses Claim
BIS,Skills Funding Agency,01/07/2015,Petrol Car Mileage,Employer & Provider Services North West,Agency Staff Member,SCLAIM_42555,159.30,Staff Expenses Claim
BIS,Skills Funding Agency,01/07/2015,Petrol Car Mileage,Employer & Provider Services North West,Agency Staff Member,SCLAIM_42557,184.50,Staff Expenses Claim
BIS,Skills Funding Agency,01/07/2015,Petrol Car Mileage,Employer & Provider Services North West,Agency Staff Member,SCLAIM_42597,183.60,Staff Expenses Claim
BIS,Skills Funding Agency,01/07/2015,Petrol Car Mileage,Employer & Provider Services South East,Agency Staff Member,SCLAIM_42546,90.00,Staff Expenses Claim
BIS,Skills Funding Agency,01/07/2015,Petrol Car Mileage,Employer & Provider Services South East,Agency Staff Member,SCLAIM_42552,39.60,Staff Expenses Claim
BIS,Skills Funding Agency,01/07/2015,Petrol Car Mileage,Employer & Provider Services South East,Agency Staff Member,SCLAIM_42585,382.95,Staff Expenses Claim
BIS,Skills Funding Agency,01/07/2015,Petrol Car Mileage,Employer & Provider Services South East,Agency Staff Member,SCLAIM_42603,56.70,Staff Expenses Claim
BIS,Skills Funding Agency,01/07/2015,Petrol Car Mileage,Employer & Provider Services South East,Agency Staff Member,SCLAIM_42604,79.20,Staff Expenses Claim
BIS,Skills Funding Agency,01/07/2015,Petrol Car Mileage,Finance Division - Provider Finance,Agency Staff Member,SCLAIM_42554,140.40,Staff Expenses Claim
BIS,Skills Funding Agency,01/07/2015,Petrol Car Mileage,Finance Division - Provider Finance,Agency Staff Member,SCLAIM_42584,64.80,Staff Expenses Claim
BIS,Skills Funding Agency,01/07/2015,Petrol Car Mileage,Funding & Programmes - Provider Management & Intervention North,Agency Staff Member,SCLAIM_42588,719.04,Staff Expenses Claim
BIS,Skills Funding Agency,01/07/2015,Petrol Car Mileage,National Careers & Learner Services,Agency Staff Member,SCLAIM_42566,220.95,Staff Expenses Claim
BIS,Skills Funding Agency,01/07/2015,Petrol Car Mileage,National Careers & Learner Services,Agency Staff Member,SCLAIM_42578,20.70,Staff Expenses Claim
BIS,Skills Funding Agency,01/07/2015,Professional Services - Single Assignments,Operations ICT - Projects,BAE SYSTEMS APPLIED INTELLIGENCE LIMITED,SPINVB_27796,"2,326.68",Purchase Invoice
BIS,Skills Funding Agency,01/07/2015,Professional Subscriptions,Operations Finance - Procurement Services,Agency Staff Member,SCLAIMPRO_848,115.00,Staff Expenses Claim
BIS,Skills Funding Agency,01/07/2015,Rail Warrants & Tickets,Apprenticeships & Delivery Services - Apprenticeships & Employer Policy Implementation,Agency Staff Member,SCLAIM_42561,5.30,Staff Expenses Claim
BIS,Skills Funding Agency,01/07/2015,Rail Warrants & Tickets,Central Delivery Service - European Social Fund - Audit Compliance,Agency Staff Member,SCLAIM_42577,9.60,Staff Expenses Claim
BIS,Skills Funding Agency,01/07/2015,Rail Warrants & Tickets,Employer & Provider Services North East & Yorkshire,Agency Staff Member,SCLAIM_42589,30.80,Staff Expenses Claim
BIS,Skills Funding Agency,01/07/2015,Rail Warrants & Tickets,Employer & Provider Services North West,Agency Staff Member,SCLAIM_42581,174.70,Staff Expenses Claim
BIS,Skills Funding Agency,01/07/2015,Rail Warrants & Tickets,Employer & Provider Services North West,Agency Staff Member,SCLAIM_42582,174.70,Staff Expenses Claim
BIS,Skills Funding Agency,01/07/2015,Rail Warrants & Tickets,Employer & Provider Services North West,Agency Staff Member,SCLAIM_42583,15.80,Staff Expenses Claim
BIS,Skills Funding Agency,01/07/2015,Rail Warrants & Tickets,Employer & Provider Services North West,Agency Staff Member,SCLAIM_42597,16.20,Staff Expenses Claim
BIS,Skills Funding Agency,01/07/2015,Rail Warrants & Tickets,Finance Division - Provider Finance,Agency Staff Member,SCLAIM_42584,53.50,Staff Expenses Claim
BIS,Skills Funding Agency,01/07/2015,Rail Warrants & Tickets,Finance Division - Provider Finance,Agency Staff Member,SCLAIM_42608,24.00,Staff Expenses Claim
BIS,Skills Funding Agency,01/07/2015,Rail Warrants & Tickets,Funding & Programmes - Funding Policy Implementation Programmes,Agency Staff Member,SCLAIM_42579,154.00,Staff Expenses Claim
BIS,Skills Funding Agency,01/07/2015,Rail Warrants & Tickets,Funding & Programmes - Localism Policy Implementation,Agency Staff Member,SCLAIM_42576,5.80,Staff Expenses Claim
BIS,Skills Funding Agency,01/07/2015,Rail Warrants & Tickets,National Careers & Learner Services,Agency Staff Member,SCLAIM_42569,94.50,Staff Expenses Claim
BIS,Skills Funding Agency,01/07/2015,Rail Warrants & Tickets,National Careers & Learner Services,Agency Staff Member,SCLAIM_42601,33.00,Staff Expenses Claim
BIS,Skills Funding Agency,01/07/2015,Self-Drive Car Hire,Central Delivery Service - European Social Fund - Audit Compliance,Agency Staff Member,SCLAIM_42564,32.66,Staff Expenses Claim
BIS,Skills Funding Agency,01/07/2015,Self-Drive Car Hire,Central Delivery Service - European Social Fund - Audit Compliance,Agency Staff Member,SCLAIM_42600,101.01,Staff Expenses Claim
BIS,Skills Funding Agency,01/07/2015,Self-Drive Car Hire,Employer & Provider Services North East & Yorkshire,Agency Staff Member,SCLAIM_42598,312.93,Staff Expenses Claim
BIS,Skills Funding Agency,01/07/2015,Self-Drive Car Hire,Finance Division - Provider Finance,Agency Staff Member,SCLAIM_42584,41.40,Staff Expenses Claim
BIS,Skills Funding Agency,01/07/2015,Self-Drive Car Hire,Finance Division - Provider Finance,Agency Staff Member,SCLAIM_42593,44.82,Staff Expenses Claim
BIS,Skills Funding Agency,01/07/2015,Self-Drive Car Hire,Finance Division - Provider Finance,Agency Staff Member,SCLAIM_42599,39.72,Staff Expenses Claim
BIS,Skills Funding Agency,01/07/2015,Self-Drive Car Hire,Funding & Programmes - Provider Management & Intervention South,Agency Staff Member,SCLAIM_42573,10.00,Staff Expenses Claim
BIS,Skills Funding Agency,01/07/2015,Self-Drive Car Hire,Funding & Programmes - Provider Management & Intervention South,Agency Staff Member,SCLAIM_42574,10.02,Staff Expenses Claim
BIS,Skills Funding Agency,01/07/2015,Self-Drive Car Hire,Operations Finance - Procurement Services,Agency Staff Member,SCLAIM_42545,65.74,Staff Expenses Claim
BIS,Skills Funding Agency,01/07/2015,Software Maintenance & Repair,Operations ICT - Business IT - Agency Services,CAPGEMINI UK PLC,SPINVB_27817,"62,613.60",Purchase Invoice
BIS,Skills Funding Agency,01/07/2015,Software Maintenance & Repair,Operations ICT - Business IT - Agency Services,CAPGEMINI UK PLC,SPINVB_27818,"18,712.80",Purchase Invoice
BIS,Skills Funding Agency,01/07/2015,Software Maintenance & Repair,Operations ICT - Business IT - Citizen Services,CAPGEMINI UK PLC,SPINVB_27822,"46,119.60",Purchase Invoice
BIS,Skills Funding Agency,01/07/2015,Software Maintenance & Repair,Operations ICT - Business IT - Citizen Services,LOCKHEED MARTIN BUSINESS TECHNOLOGY SOLUTIONS LIMITED,SPINVB_27579,351.40,Purchase Invoice
BIS,Skills Funding Agency,01/07/2015,Subsistence,Central Delivery Service - European Social Fund - Audit Compliance,Agency Staff Member,SCLAIM_42550,45.00,Staff Expenses Claim
BIS,Skills Funding Agency,01/07/2015,Subsistence,Central Delivery Service - European Social Fund - Audit Compliance,Agency Staff Member,SCLAIM_42559,27.00,Staff Expenses Claim
BIS,Skills Funding Agency,01/07/2015,Subsistence,Central Delivery Service - European Social Fund - Audit Compliance,Agency Staff Member,SCLAIM_42563,100.00,Staff Expenses Claim
BIS,Skills Funding Agency,01/07/2015,Subsistence,Central Delivery Service - European Social Fund - Audit Compliance,Agency Staff Member,SCLAIM_42564,25.00,Staff Expenses Claim
BIS,Skills Funding Agency,01/07/2015,Subsistence,Central Delivery Service - European Social Fund - Audit Compliance,Agency Staff Member,SCLAIM_42600,155.00,Staff Expenses Claim
BIS,Skills Funding Agency,01/07/2015,Subsistence,Central Delivery Service - Leeds,Agency Staff Member,SCLAIM_42602,38.00,Staff Expenses Claim
BIS,Skills Funding Agency,01/07/2015,Subsistence,Chief Executive Office - Marketing  ,Agency Staff Member,SCLAIM_42560,10.00,Staff Expenses Claim
BIS,Skills Funding Agency,01/07/2015,Subsistence,Chief Executive Office - Marketing  ,Agency Staff Member,SCLAIM_42594,25.00,Staff Expenses Claim
BIS,Skills Funding Agency,01/07/2015,Subsistence,Employer & Provider Services North East & Yorkshire,Agency Staff Member,SCLAIM_42598,150.00,Staff Expenses Claim
BIS,Skills Funding Agency,01/07/2015,Subsistence,Employer & Provider Services North West,Agency Staff Member,SCLAIM_42597,35.00,Staff Expenses Claim
BIS,Skills Funding Agency,01/07/2015,Subsistence,Employer & Provider Services South East,Agency Staff Member,SCLAIM_42585,75.00,Staff Expenses Claim
BIS,Skills Funding Agency,01/07/2015,Subsistence,Finance Division - Provider Finance,Agency Staff Member,SCLAIM_42554,30.00,Staff Expenses Claim
BIS,Skills Funding Agency,01/07/2015,Subsistence,Finance Division - Provider Finance,Agency Staff Member,SCLAIM_42584,75.00,Staff Expenses Claim
BIS,Skills Funding Agency,01/07/2015,Subsistence,Finance Division - Provider Finance,Agency Staff Member,SCLAIM_42599,125.00,Staff Expenses Claim
BIS,Skills Funding Agency,01/07/2015,Subsistence,Finance Division - Provider Finance,Agency Staff Member,SCLAIM_42608,55.00,Staff Expenses Claim
BIS,Skills Funding Agency,01/07/2015,Subsistence,Funding & Programmes - Provider Management & Intervention North,Agency Staff Member,SCLAIM_42588,22.90,Staff Expenses Claim
BIS,Skills Funding Agency,01/07/2015,Subsistence,National Careers & Learner Services,Agency Staff Member,SCLAIM_42566,10.00,Staff Expenses Claim
BIS,Skills Funding Agency,01/07/2015,Subsistence,National Careers & Learner Services,Agency Staff Member,SCLAIM_42567,45.00,Staff Expenses Claim
BIS,Skills Funding Agency,01/07/2015,Subsistence,National Careers & Learner Services,Agency Staff Member,SCLAIM_42578,25.00,Staff Expenses Claim
BIS,Skills Funding Agency,01/07/2015,Subsistence,National Careers & Learner Services,Agency Staff Member,SCLAIM_42601,65.00,Staff Expenses Claim
BIS,Skills Funding Agency,01/07/2015,Subsistence,Operations Finance - Financial Management,Agency Staff Member,SCLAIM_42575,75.00,Staff Expenses Claim
BIS,Skills Funding Agency,01/07/2015,Subsistence,Operations Finance - Financial Management,Agency Staff Member,SCLAIM_42606,10.00,Staff Expenses Claim
BIS,Skills Funding Agency,01/07/2015,Subsistence,Operations Finance - Procurement Services,Agency Staff Member,SCLAIM_42545,40.00,Staff Expenses Claim
BIS,Skills Funding Agency,01/07/2015,Sundry Items,Chief Executive Office - Marketing  ,Agency Staff Member,SCLAIM_42547,3.50,Staff Expenses Claim
BIS,Skills Funding Agency,01/07/2015,Sundry Items,Employer & Provider Services North West,Agency Staff Member,SCLAIM_42572,-51.00,Staff Expenses Claim
BIS,Skills Funding Agency,01/07/2015,Sundry Items,Employer & Provider Services South East,Agency Staff Member,SCLAIM_42585,-1.80,Staff Expenses Claim
BIS,Skills Funding Agency,01/07/2015,Sundry Items,National Careers & Learner Services,Agency Staff Member,SCLAIM_42578,9.00,Staff Expenses Claim
BIS,Skills Funding Agency,01/07/2015,Sundry Items,Operations Finance - Financial Management,Agency Staff Member,SCLAIM_42575,-81.30,Staff Expenses Claim
BIS,Skills Funding Agency,01/07/2015,Support Services,Funding & Programmes - Delivery & Performance,LOCKHEED MARTIN BUSINESS TECHNOLOGY SOLUTIONS LIMITED,SPINVB_27792,738.00,Purchase Invoice
BIS,Skills Funding Agency,01/07/2015,Taxis,Central Delivery Service - European Social Fund - Audit Compliance,Agency Staff Member,SCLAIM_42563,92.70,Staff Expenses Claim
BIS,Skills Funding Agency,01/07/2015,Taxis,Central Delivery Service - European Social Fund - Audit Compliance,Agency Staff Member,SCLAIM_42564,70.00,Staff Expenses Claim
BIS,Skills Funding Agency,01/07/2015,Taxis,Chief Executive Office - Information Compliance & Security,Agency Staff Member,SCLAIM_42596,7.00,Staff Expenses Claim
BIS,Skills Funding Agency,01/07/2015,Taxis,Chief Executive Office - Marketing  ,Agency Staff Member,SCLAIM_42560,14.50,Staff Expenses Claim
BIS,Skills Funding Agency,01/07/2015,Taxis,Employer & Provider Services London,Agency Staff Member,SCLAIM_42553,10.00,Staff Expenses Claim
BIS,Skills Funding Agency,01/07/2015,Taxis,Employer & Provider Services North West,Agency Staff Member,SCLAIM_42581,30.00,Staff Expenses Claim
BIS,Skills Funding Agency,01/07/2015,Taxis,Employer & Provider Services North West,Agency Staff Member,SCLAIM_42582,30.00,Staff Expenses Claim
BIS,Skills Funding Agency,01/07/2015,Taxis,Funding & Programmes - Funding Policy Implementation Programmes,Agency Staff Member,SCLAIM_42587,21.50,Staff Expenses Claim
BIS,Skills Funding Agency,01/07/2015,Taxis,Funding & Programmes - Provider Management & Intervention South,Agency Staff Member,SCLAIM_42573,43.30,Staff Expenses Claim
BIS,Skills Funding Agency,01/07/2015,Taxis,Funding & Programmes - Provider Management & Intervention South,Agency Staff Member,SCLAIM_42574,29.45,Staff Expenses Claim
BIS,Skills Funding Agency,01/07/2015,Taxis,National Careers & Learner Services,Agency Staff Member,SCLAIM_42567,17.00,Staff Expenses Claim
BIS,Skills Funding Agency,01/07/2015,Taxis,National Careers & Learner Services,Agency Staff Member,SCLAIM_42578,12.70,Staff Expenses Claim
BIS,Skills Funding Agency,01/07/2015,Taxis,Operations Finance - Financial Management,Agency Staff Member,SCLAIM_42575,29.80,Staff Expenses Claim
BIS,Skills Funding Agency,01/07/2015,Taxis,Operations Finance - Financial Management,Agency Staff Member,SCLAIM_42606,14.90,Staff Expenses Claim
BIS,Skills Funding Agency,01/07/2015,Temporary Staff,Funding & Programmes - Delivery & Performance - Data Collections,SMART SOURCING PLC,SPINVB_27795,"10,721.70",Purchase Invoice
BIS,Skills Funding Agency,01/07/2015,Temporary Staff,Operations ICT - Change Delivery,BADENOCH & CLARK IP LTD,IPINVELECT3_1847,"2,024.83",Purchase Invoice
BIS,Skills Funding Agency,01/07/2015,Temporary Staff,Operations ICT - Mission IT / Business As Usual Major Releases,BADENOCH & CLARK IP LTD,IPINVELECT3_1847,"3,297.84",Purchase Invoice
BIS,Skills Funding Agency,01/07/2015,Temporary Staff,Operations ICT - Provider Digital Service,PARITY RESOURCES LTD,SPINVB_27812,"3,420.00",Purchase Invoice
BIS,Skills Funding Agency,02/07/2015,Flexible Benefits Provider Payover,HR - Human Resources,NUFFIELD HEALTH,PAYCHAPSAUTO_446,"1,238.40",Payroll
BIS,Skills Funding Agency,02/07/2015,Licences,Operations ICT - Business IT - Citizen Services,BIRST INC.,SPINVB_26902,"13,333.34",Purchase Invoice
BIS,Skills Funding Agency,02/07/2015,Licences,Operations ICT - Business IT - Citizen Services,BIRST INC.,SPINVB_27284,"13,333.34",Purchase Invoice
BIS,Skills Funding Agency,02/07/2015,Licences,Operations ICT - Business IT - Citizen Services,BIRST INC.,SPINVB_27702,"13,333.34",Purchase Invoice
BIS,Skills Funding Agency,03/07/2015,Course Fees,HR - Human Resources Corporate,CIVIL�SERVICE�RESOURCING,SPINVB_27871,101.26,Purchase Invoice
BIS,Skills Funding Agency,03/07/2015,Course Fees,HR - Human Resources,SANDRA MILLER,SPINVB_27870,"1,380.00",Purchase Invoice
BIS,Skills Funding Agency,03/07/2015,Hardware Maintenance & Repair,Operations ICT - Technical Design Authority,CAPGEMINI UK PLC,SPINVB_27824,"11,377.61",Purchase Invoice
BIS,Skills Funding Agency,03/07/2015,Hardware Maintenance & Repair,Operations ICT - Technical Design Authority,CAPGEMINI UK PLC,SPINVB_27826,"26,279.24",Purchase Invoice
BIS,Skills Funding Agency,03/07/2015,Hosting,Operations ICT - Service Integration & Management,CAPGEMINI UK PLC,SPINVB_27814,"615,330.59",Purchase Invoice
BIS,Skills Funding Agency,03/07/2015,Hosting,Operations ICT - Service Integration & Management,CAPGEMINI UK PLC,SPINVB_27819,"168,323.76",Purchase Invoice
BIS,Skills Funding Agency,03/07/2015,Hosting,Operations ICT - Service Integration & Management,CAPGEMINI UK PLC,SPINVB_27821,"16,272.00",Purchase Invoice
BIS,Skills Funding Agency,03/07/2015,Hosting,Operations ICT - Technical Design Authority,BYTES SOFTWARE SERVICES LTD,SPINVB_27793,"26,673.05",Purchase Invoice
BIS,Skills Funding Agency,03/07/2015,Managed IT Service,Funding & Programmes - Employer Ownership Programme,METHODS ADVISORY LTD,SPINVB_27171,"10,716.00",Purchase Invoice
BIS,Skills Funding Agency,03/07/2015,Maths Teacher Training,Main Funding,ASTUTE MINDS LTD,NUPS15_5991,"322,000.00",Programme Template
BIS,Skills Funding Agency,03/07/2015,"National Apprenticeship Service - Business, Innovation & Skills - Non-Participation",Communications & Marketing,LATRA LTD,SPINVB_27873,"2,160.00",Purchase Invoice
BIS,Skills Funding Agency,03/07/2015,"National Apprenticeship Service - Business, Innovation & Skills - Non-Participation",Main Funding,LEARNER�FIRST�LTD,SPINVCHQ_509,"1,720.00",Purchase Invoice
BIS,Skills Funding Agency,03/07/2015,Next Step Helpline,Main Funding,LISTENING LTD,SPINVB_27454,"28,610.82",Purchase Invoice
BIS,Skills Funding Agency,03/07/2015,Software Maintenance & Repair,Operations ICT - Business IT - Agency Services,CAPGEMINI UK PLC,SPINVB_27823,"31,142.40",Purchase Invoice
BIS,Skills Funding Agency,03/07/2015,Software Maintenance & Repair,Operations ICT - Business IT - Citizen Services,LOCKHEED MARTIN BUSINESS TECHNOLOGY SOLUTIONS LIMITED,SPINVB_27855,"95,350.45",Purchase Invoice
BIS,Skills Funding Agency,03/07/2015,Software Maintenance & Repair,Operations ICT - Mission IT / Business As Usual Major Releases,CAPGEMINI UK PLC,SPINVB_27815,"8,058.78",Purchase Invoice
BIS,Skills Funding Agency,03/07/2015,Software Maintenance & Repair,Operations ICT - Mission IT / Business As Usual Major Releases,CAPGEMINI UK PLC,SPINVB_27816,"28,671.60",Purchase Invoice
BIS,Skills Funding Agency,03/07/2015,Sundry Items,Accounting Services,MAGNETIC IT LIMITED,SPINVB_27866,0.88,Purchase Invoice
BIS,Skills Funding Agency,03/07/2015,Temporary Staff,HR - Human Resources,SF RECRUITMENT LTD,SPINVB_27782,856.80,Purchase Invoice
BIS,Skills Funding Agency,03/07/2015,Temporary Staff,HR - Human Resources,SF RECRUITMENT LTD,SPINVB_27783,756.00,Purchase Invoice
BIS,Skills Funding Agency,03/07/2015,Temporary Staff,HR - Human Resources,SF RECRUITMENT LTD,SPINVB_27784,756.00,Purchase Invoice
BIS,Skills Funding Agency,03/07/2015,Temporary Staff,Operations ICT - Agile Developments,MAGNETIC IT LIMITED,SPINVB_27866,"13,560.00",Purchase Invoice
BIS,Skills Funding Agency,03/07/2015,Temporary Staff,Operations ICT - Citizen Digital Service,CAPITA BUSINESS SERVICES LTD,IPINVELECT3_1848,"6,404.28",Purchase Invoice
BIS,Skills Funding Agency,03/07/2015,Temporary Staff,Operations ICT - Information & Communication Technology - Technical,CADENCE PARTNERSHIP LLP,SPINVB_27864,"16,065.00",Purchase Invoice
BIS,Skills Funding Agency,03/07/2015,Temporary Staff,Operations ICT - Information & Communication Technology - Technical,NTT DATA UK LIMITED,SPINVB_27850,"17,670.00",Purchase Invoice
BIS,Skills Funding Agency,03/07/2015,Temporary Staff,Operations ICT - Project Delivery,METHODS ADVISORY LTD,SPINVB_27867,"9,175.06",Purchase Invoice
BIS,Skills Funding Agency,07/07/2015,Catering Contracts,HR - Facilities Central,WESTBURY STREET HOLDINGS,SPINVB_27917,"1,151.92",Purchase Invoice
BIS,Skills Funding Agency,07/07/2015,Funding Advances,None,STOCKPORT COLLEGE,NQDV_666,"3,450,000.00",Programme Template
BIS,Skills Funding Agency,07/07/2015,Hosting,Operations ICT - Technical Design Authority,SPECIALIST COMPUTER CENTRES PLC,SPINVB_27874,"9,882.48",Purchase Invoice
BIS,Skills Funding Agency,07/07/2015,Landline Telephone Service,Operations ICT - Technical Design Authority,IDN TELECOM LTD,IPINVELECT3_1849,530.12,Purchase Invoice
BIS,Skills Funding Agency,07/07/2015,Managed IT Service,Funding & Programmes - Delivery & Performance - Data Collections,TRUEPENNY PEOPLE UK LTD,SPINVB_27852,"10,500.00",Purchase Invoice
BIS,Skills Funding Agency,07/07/2015,Managed IT Service,Operations ICT - Agile Developments,CENTRE4 RESOURCES LIMITED,SPINVB_27906,"24,684.00",Purchase Invoice
BIS,Skills Funding Agency,07/07/2015,Managed IT Service,Operations ICT - Agile Developments,CENTRE4 RESOURCES LIMITED,SPINVB_27907,"67,415.33",Purchase Invoice
BIS,Skills Funding Agency,07/07/2015,"National Apprenticeship Service - Business, Innovation & Skills - Non-Participation",Communications & Marketing,WILLIAMS LEA LIMITED,SPINVB_27904,844.30,Purchase Invoice
BIS,Skills Funding Agency,07/07/2015,Next Step Development,Main Funding,"TNS UK LTD, TNS-BMRB",SPINVB_27876,"151,452.00",Purchase Invoice
BIS,Skills Funding Agency,07/07/2015,Office Refreshments,Operations Finance - Financial Management,CITY & WEST END DAIRY LIMITED,SPINVB_27878,23.04,Purchase Invoice
BIS,Skills Funding Agency,07/07/2015,Office Refreshments,Operations Finance - Financial Management,CITY & WEST END DAIRY LIMITED,SPINVB_27879,38.40,Purchase Invoice
BIS,Skills Funding Agency,07/07/2015,Photocopier Rental,Operations ICT - Business IT - Agency Services,XEROX UK LIMITED,SPINVB_27863,"21,402.46",Purchase Invoice
BIS,Skills Funding Agency,07/07/2015,Professional Services,Finance Division - Provider Finance,PRICE WATERHOUSE COOPER LLP,SPINVB_27861,"108,980.40",Purchase Invoice
BIS,Skills Funding Agency,07/07/2015,Software Maintenance & Repair,Operations ICT - Business IT - Agency Services,FORDWAY SOLUTIONS LIMITED,SPINVB_27891,"10,626.00",Purchase Invoice
BIS,Skills Funding Agency,07/07/2015,Software Maintenance & Repair,Operations ICT - Business IT - Citizen Services,HOTCOURSES DATA LTD,SPINVB_27884,"31,688.40",Purchase Invoice
BIS,Skills Funding Agency,07/07/2015,Software Maintenance & Repair,Operations ICT - Technical Design Authority,ORACLE CORP UK LTD,SPINVB_27880,"2,736.42",Purchase Invoice
BIS,Skills Funding Agency,07/07/2015,Staff Payroll,Operations Finance - Business Insights & Competency Centre,DEPARTMENT FOR BUSINESS INNOVATION & SKILLS (NEWPORT),SPINVB_27859,"3,307.17",Purchase Invoice
BIS,Skills Funding Agency,07/07/2015,Staff Payroll,Operations Finance - Business Insights & Competency Centre,DEPARTMENT FOR BUSINESS INNOVATION & SKILLS (NEWPORT),SPINVB_27860,"3,238.27",Purchase Invoice
BIS,Skills Funding Agency,07/07/2015,Temporary Staff,Funding & Programmes - Delivery & Performance - Data Collections,MAGNETIC IT LIMITED,SPINVB_27856,"9,470.98",Purchase Invoice
BIS,Skills Funding Agency,07/07/2015,Temporary Staff,Funding & Programmes - Delivery & Performance,CAPGEMINI UK PLC,SPINVB_27843,"36,036.60",Purchase Invoice
BIS,Skills Funding Agency,07/07/2015,Temporary Staff,Operations ICT - Project Delivery,SMART SOURCING PLC,SPINVB_27886,"7,680.00",Purchase Invoice
BIS,Skills Funding Agency,07/07/2015,Temporary Staff,Operations ICT - Project Delivery,SMART SOURCING PLC,SPINVB_27887,"8,746.66",Purchase Invoice
BIS,Skills Funding Agency,07/07/2015,Temporary Staff,Operations ICT - Technical Design Authority,SMART SOURCING PLC,SPINVB_27885,"13,329.10",Purchase Invoice
BIS,Skills Funding Agency,08/07/2015,16-18 Apprenticeship Grant for Employers,Main Funding,ADVANCED�PACKAGING�MATERIALS�LTD,SPINVCHQ_512,"1,500.00",Purchase Invoice
BIS,Skills Funding Agency,08/07/2015,16-18 Apprenticeship Grant for Employers,Main Funding,FLOWERS�BY�INSPIRATIONS,SPINVCHQ_513,"1,500.00",Purchase Invoice
BIS,Skills Funding Agency,08/07/2015,16-18 Apprenticeship Grant for Employers,Main Funding,FRESH�PERSONNEL�LTD,SPINVCHQ_514,"1,500.00",Purchase Invoice
BIS,Skills Funding Agency,08/07/2015,16-18 Apprenticeship Grant for Employers,Main Funding,HENRY�STREET�NEWS,SPINVCHQ_515,"1,500.00",Purchase Invoice
BIS,Skills Funding Agency,08/07/2015,16-18 Apprenticeship Grant for Employers,Main Funding,HIGH�GROVE�BEDS�LTD,SPINVCHQ_516,"1,500.00",Purchase Invoice
BIS,Skills Funding Agency,08/07/2015,16-18 Apprenticeship Grant for Employers,Main Funding,KRO�BAR,SPINVCHQ_517,"1,500.00",Purchase Invoice
BIS,Skills Funding Agency,08/07/2015,16-18 Apprenticeship Grant for Employers,Main Funding,MONSTER�GROUP�(UK)�LTD,SPINVCHQ_519,"3,000.00",Purchase Invoice
BIS,Skills Funding Agency,08/07/2015,16-18 Apprenticeship Grant for Employers,Main Funding,MRS�N�H�CROMPTON,SPINVCHQ_510,"1,500.00",Purchase Invoice
BIS,Skills Funding Agency,08/07/2015,16-18 Apprenticeship Grant for Employers,Main Funding,NORMANBY�LABORATORY�SERVICES�LTD,SPINVCHQ_520,"1,500.00",Purchase Invoice
BIS,Skills Funding Agency,08/07/2015,16-18 Apprenticeship Grant for Employers,Main Funding,NORTH�WEST�APPLIANCE�REPAIRS�LTD,SPINVCHQ_521,"3,000.00",Purchase Invoice
BIS,Skills Funding Agency,08/07/2015,16-18 Apprenticeship Grant for Employers,Main Funding,RMS�INTERNATIONAL�UK�LIMITED,SPINVCHQ_524,"1,500.00",Purchase Invoice
BIS,Skills Funding Agency,08/07/2015,16-18 Apprenticeship Grant for Employers,Main Funding,SIXT�KENNING�LTD,SPINVCHQ_526,"1,500.00",Purchase Invoice
BIS,Skills Funding Agency,08/07/2015,16-18 Apprenticeship Grant for Employers,Main Funding,WASTE�KING,SPINVCHQ_511,"1,500.00",Purchase Invoice
BIS,Skills Funding Agency,08/07/2015,19-24 Apprenticeship Grant for Employers,Main Funding,RACEHEART�LTD�T/A�CASH�GENERATORS,SPINVCHQ_522,"3,000.00",Purchase Invoice
BIS,Skills Funding Agency,08/07/2015,19-24 Apprenticeship Grant for Employers,Main Funding,RACEHEART�LTD�T/A�CASH�GENERATORS,SPINVCHQ_523,"1,500.00",Purchase Invoice
BIS,Skills Funding Agency,08/07/2015,19-24 Apprenticeship Grant for Employers,Main Funding,RMS�INTERNATIONAL�UK�LIMITED,SPINVCHQ_525,"1,500.00",Purchase Invoice
BIS,Skills Funding Agency,08/07/2015,Conferences & Workshops,National Careers & Learner Services,CAPITA TRAVEL AND EVENTS LTD,IPINVELECT3_1851,"2,590.00",Purchase Invoice
BIS,Skills Funding Agency,08/07/2015,Diesel Car Mileage Passenger Supplement,Employer & Provider Services South East,Agency Staff Member,SCLAIM_42625,5.80,Staff Expenses Claim
BIS,Skills Funding Agency,08/07/2015,Diesel Car Mileage Passenger Supplement,Employer & Provider Services South East,Agency Staff Member,SCLAIM_42646,5.60,Staff Expenses Claim
BIS,Skills Funding Agency,08/07/2015,Diesel Car Mileage Passenger Supplement,Finance Division - Provider Finance,Agency Staff Member,SCLAIM_42687,16.80,Staff Expenses Claim
BIS,Skills Funding Agency,08/07/2015,Diesel Car Mileage Passenger Supplement,Funding & Programmes - Provider Management & Intervention North,Agency Staff Member,SCLAIM_42623,21.70,Staff Expenses Claim
BIS,Skills Funding Agency,08/07/2015,Diesel Car Mileage,Apprenticeships & Delivery Services - Apprenticeships & Employer Policy Implementation,Agency Staff Member,SCLAIM_42680,56.70,Staff Expenses Claim
BIS,Skills Funding Agency,08/07/2015,Diesel Car Mileage,Central Delivery Service - European Social Fund - Audit Compliance,Agency Staff Member,SCLAIM_42686,141.30,Staff Expenses Claim
BIS,Skills Funding Agency,08/07/2015,Diesel Car Mileage,Central Delivery Service - European Social Fund - Audit Compliance,Agency Staff Member,SCLAIM_42689,73.80,Staff Expenses Claim
BIS,Skills Funding Agency,08/07/2015,Diesel Car Mileage,Central Delivery Service - Leeds,Agency Staff Member,SCLAIM_42613,7.20,Staff Expenses Claim
BIS,Skills Funding Agency,08/07/2015,Diesel Car Mileage,Central Delivery Service - Leeds,Agency Staff Member,SCLAIM_42661,-7.50,Staff Expenses Claim
BIS,Skills Funding Agency,08/07/2015,Diesel Car Mileage,Central Delivery Service - Leeds,Agency Staff Member,SCLAIM_42663,190.80,Staff Expenses Claim
BIS,Skills Funding Agency,08/07/2015,Diesel Car Mileage,Chief Executive Office - Media & Public Affairs,Agency Staff Member,SCLAIM_38122,56.70,Staff Expenses Claim
BIS,Skills Funding Agency,08/07/2015,Diesel Car Mileage,Employer & Provider Services North West,Agency Staff Member,SCLAIM_42556,63.00,Staff Expenses Claim
BIS,Skills Funding Agency,08/07/2015,Diesel Car Mileage,Employer & Provider Services North West,Agency Staff Member,SCLAIM_42684,-13.50,Staff Expenses Claim
BIS,Skills Funding Agency,08/07/2015,Diesel Car Mileage,Employer & Provider Services South East,Agency Staff Member,SCLAIM_42610,229.50,Staff Expenses Claim
BIS,Skills Funding Agency,08/07/2015,Diesel Car Mileage,Employer & Provider Services South East,Agency Staff Member,SCLAIM_42625,548.10,Staff Expenses Claim
BIS,Skills Funding Agency,08/07/2015,Diesel Car Mileage,Employer & Provider Services South East,Agency Staff Member,SCLAIM_42627,285.30,Staff Expenses Claim
BIS,Skills Funding Agency,08/07/2015,Diesel Car Mileage,Employer & Provider Services South East,Agency Staff Member,SCLAIM_42646,54.90,Staff Expenses Claim
BIS,Skills Funding Agency,08/07/2015,Diesel Car Mileage,Employer & Provider Services South East,Agency Staff Member,SCLAIM_42648,108.90,Staff Expenses Claim
BIS,Skills Funding Agency,08/07/2015,Diesel Car Mileage,Employer & Provider Services South East,Agency Staff Member,SCLAIM_42671,188.10,Staff Expenses Claim
BIS,Skills Funding Agency,08/07/2015,Diesel Car Mileage,Employer & Provider Services South East,Agency Staff Member,SCLAIM_42673,310.05,Staff Expenses Claim
BIS,Skills Funding Agency,08/07/2015,Diesel Car Mileage,Employer & Provider Services South East,Agency Staff Member,SCLAIM_42674,-6.30,Staff Expenses Claim
BIS,Skills Funding Agency,08/07/2015,Diesel Car Mileage,Employer & Provider Services South West,Agency Staff Member,SCLAIM_42615,312.75,Staff Expenses Claim
BIS,Skills Funding Agency,08/07/2015,Diesel Car Mileage,Finance Division - Provider Finance,Agency Staff Member,SCLAIM_42612,64.80,Staff Expenses Claim
BIS,Skills Funding Agency,08/07/2015,Diesel Car Mileage,Finance Division - Provider Finance,Agency Staff Member,SCLAIM_42629,99.00,Staff Expenses Claim
BIS,Skills Funding Agency,08/07/2015,Diesel Car Mileage,Finance Division - Provider Finance,Agency Staff Member,SCLAIM_42633,46.80,Staff Expenses Claim
BIS,Skills Funding Agency,08/07/2015,Diesel Car Mileage,Finance Division - Provider Finance,Agency Staff Member,SCLAIM_42637,134.55,Staff Expenses Claim
BIS,Skills Funding Agency,08/07/2015,Diesel Car Mileage,Finance Division - Provider Finance,Agency Staff Member,SCLAIM_42662,609.75,Staff Expenses Claim
BIS,Skills Funding Agency,08/07/2015,Diesel Car Mileage,Finance Division - Provider Finance,Agency Staff Member,SCLAIM_42687,139.50,Staff Expenses Claim
BIS,Skills Funding Agency,08/07/2015,Diesel Car Mileage,Funding & Programmes - Funding Policy Implementation,Agency Staff Member,SCLAIM_42619,721.80,Staff Expenses Claim
BIS,Skills Funding Agency,08/07/2015,Diesel Car Mileage,Funding & Programmes - Localism Policy Implementation,Agency Staff Member,SCLAIM_42634,424.80,Staff Expenses Claim
BIS,Skills Funding Agency,08/07/2015,Diesel Car Mileage,Funding & Programmes - Provider Management & Intervention Central,Agency Staff Member,SCLAIM_42628,91.80,Staff Expenses Claim
BIS,Skills Funding Agency,08/07/2015,Diesel Car Mileage,Funding & Programmes - Provider Management & Intervention North,Agency Staff Member,SCLAIM_42623,459.00,Staff Expenses Claim
BIS,Skills Funding Agency,08/07/2015,Diesel Car Mileage,Funding & Programmes - Provider Management & Intervention North,Agency Staff Member,SCLAIM_42640,308.70,Staff Expenses Claim
BIS,Skills Funding Agency,08/07/2015,Diesel Car Mileage,Funding & Programmes - Provider Management & Intervention South,Agency Staff Member,SCLAIM_42632,356.40,Staff Expenses Claim
BIS,Skills Funding Agency,08/07/2015,Diesel Car Mileage,Funding & Programmes - Provider Management & Intervention South,Agency Staff Member,SCLAIM_42647,52.20,Staff Expenses Claim
BIS,Skills Funding Agency,08/07/2015,Diesel Car Mileage,Large Companies Unit,Agency Staff Member,SCLAIM_42679,280.80,Staff Expenses Claim
BIS,Skills Funding Agency,08/07/2015,Diesel Car Mileage,National Careers & Learner Services,Agency Staff Member,SCLAIM_42620,140.40,Staff Expenses Claim
BIS,Skills Funding Agency,08/07/2015,Diesel Car Mileage,National Careers & Learner Services,Agency Staff Member,SCLAIM_42653,259.20,Staff Expenses Claim
BIS,Skills Funding Agency,08/07/2015,Diesel Car Mileage,National Careers & Learner Services,Agency Staff Member,SCLAIM_42676,190.80,Staff Expenses Claim
BIS,Skills Funding Agency,08/07/2015,Hotel Accommodation,Employer & Provider Services South East,Agency Staff Member,SCLAIM_42625,10.00,Staff Expenses Claim
BIS,Skills Funding Agency,08/07/2015,Licences,Funding & Programmes - Delivery & Performance - Data Warehouse,SOGETI UK LIMITED,SPINVB_27749,"9,028.80",Purchase Invoice
BIS,Skills Funding Agency,08/07/2015,Licences,Operations ICT - Service Integration & Management,SCARISTA LTD,SPINVB_27888,275.88,Purchase Invoice
BIS,Skills Funding Agency,08/07/2015,Next Step Development,Main Funding,TRIBAL EDUCATION LTD,SPINVB_27742,"128,784.00",Purchase Invoice
BIS,Skills Funding Agency,08/07/2015,Office Refreshments,Operations Finance - Financial Management,CITY & WEST END DAIRY LIMITED,SPINVB_27920,38.40,Purchase Invoice
BIS,Skills Funding Agency,08/07/2015,Other Fuel Car Mileage,Central Delivery Service - European Social Fund - Audit Compliance,Agency Staff Member,SCLAIM_42670,489.60,Staff Expenses Claim
BIS,Skills Funding Agency,08/07/2015,Other Fuel Car Mileage,Employer & Provider Services South East,Agency Staff Member,SCLAIM_42683,-135.00,Staff Expenses Claim
BIS,Skills Funding Agency,08/07/2015,Other Fuel Car Mileage,Funding & Programmes - Provider Management & Intervention South,Agency Staff Member,SCLAIM_42647,-14.40,Staff Expenses Claim
BIS,Skills Funding Agency,08/07/2015,Other Travel,Central Delivery Service - European Social Fund - Audit Compliance,Agency Staff Member,SCLAIM_42621,12.00,Staff Expenses Claim
BIS,Skills Funding Agency,08/07/2015,Other Travel,Central Delivery Service - European Social Fund - Audit Compliance,Agency Staff Member,SCLAIM_42685,17.20,Staff Expenses Claim
BIS,Skills Funding Agency,08/07/2015,Other Travel,Central Delivery Service - European Social Fund - Audit Compliance,Agency Staff Member,SCLAIM_42686,32.50,Staff Expenses Claim
BIS,Skills Funding Agency,08/07/2015,Other Travel,Central Delivery Service - Leeds,Agency Staff Member,SCLAIM_42613,51.50,Staff Expenses Claim
BIS,Skills Funding Agency,08/07/2015,Other Travel,Employer & Provider Services North East & Yorkshire,Agency Staff Member,SCLAIM_42614,2.80,Staff Expenses Claim
BIS,Skills Funding Agency,08/07/2015,Other Travel,Employer & Provider Services North East & Yorkshire,Agency Staff Member,SCLAIM_42656,23.00,Staff Expenses Claim
BIS,Skills Funding Agency,08/07/2015,Other Travel,Employer & Provider Services North West,Agency Staff Member,SCLAIM_42672,26.60,Staff Expenses Claim
BIS,Skills Funding Agency,08/07/2015,Other Travel,Employer & Provider Services North West,Agency Staff Member,SCLAIM_42684,23.40,Staff Expenses Claim
BIS,Skills Funding Agency,08/07/2015,Other Travel,Employer & Provider Services South East,Agency Staff Member,SCLAIM_42610,49.62,Staff Expenses Claim
BIS,Skills Funding Agency,08/07/2015,Other Travel,Employer & Provider Services South East,Agency Staff Member,SCLAIM_42627,3.00,Staff Expenses Claim
BIS,Skills Funding Agency,08/07/2015,Other Travel,Employer & Provider Services South East,Agency Staff Member,SCLAIM_42643,11.52,Staff Expenses Claim
BIS,Skills Funding Agency,08/07/2015,Other Travel,Employer & Provider Services South East,Agency Staff Member,SCLAIM_42646,8.00,Staff Expenses Claim
BIS,Skills Funding Agency,08/07/2015,Other Travel,Employer & Provider Services South East,Agency Staff Member,SCLAIM_42671,11.20,Staff Expenses Claim
BIS,Skills Funding Agency,08/07/2015,Other Travel,Employer & Provider Services South East,Agency Staff Member,SCLAIM_42673,22.86,Staff Expenses Claim
BIS,Skills Funding Agency,08/07/2015,Other Travel,Employer & Provider Services South East,Agency Staff Member,SCLAIM_42674,3.30,Staff Expenses Claim
BIS,Skills Funding Agency,08/07/2015,Other Travel,Employer & Provider Services South East,Agency Staff Member,SCLAIM_42683,9.20,Staff Expenses Claim
BIS,Skills Funding Agency,08/07/2015,Other Travel,Employer & Provider Services South West,Agency Staff Member,SCLAIM_42609,8.60,Staff Expenses Claim
BIS,Skills Funding Agency,08/07/2015,Other Travel,Employer & Provider Services South West,Agency Staff Member,SCLAIM_42615,21.00,Staff Expenses Claim
BIS,Skills Funding Agency,08/07/2015,Other Travel,Employer & Provider Services South West,Agency Staff Member,SCLAIM_42660,7.00,Staff Expenses Claim
BIS,Skills Funding Agency,08/07/2015,Other Travel,Finance Division - Provider Finance,Agency Staff Member,SCLAIM_42612,36.60,Staff Expenses Claim
BIS,Skills Funding Agency,08/07/2015,Other Travel,Finance Division - Provider Finance,Agency Staff Member,SCLAIM_42629,24.80,Staff Expenses Claim
BIS,Skills Funding Agency,08/07/2015,Other Travel,Finance Division - Provider Finance,Agency Staff Member,SCLAIM_42649,42.20,Staff Expenses Claim
BIS,Skills Funding Agency,08/07/2015,Other Travel,Finance Division - Provider Finance,Agency Staff Member,SCLAIM_42657,27.20,Staff Expenses Claim
BIS,Skills Funding Agency,08/07/2015,Other Travel,Finance Division - Provider Finance,Agency Staff Member,SCLAIM_42658,9.60,Staff Expenses Claim
BIS,Skills Funding Agency,08/07/2015,Other Travel,Finance Division - Provider Finance,Agency Staff Member,SCLAIM_42662,130.80,Staff Expenses Claim
BIS,Skills Funding Agency,08/07/2015,Other Travel,Finance Division - Provider Finance,Agency Staff Member,SCLAIM_42677,40.00,Staff Expenses Claim
BIS,Skills Funding Agency,08/07/2015,Other Travel,Finance Division - Provider Finance,Agency Staff Member,SCLAIM_42687,90.80,Staff Expenses Claim
BIS,Skills Funding Agency,08/07/2015,Other Travel,Finance Division - Provider Financial Assurance Audit,Agency Staff Member,SCLAIM_42616,30.50,Staff Expenses Claim
BIS,Skills Funding Agency,08/07/2015,Other Travel,Funding & Programmes - Apprenticeships & Employer Policy Implement,Agency Staff Member,SCLAIM_42138,57.50,Staff Expenses Claim
BIS,Skills Funding Agency,08/07/2015,Other Travel,Funding & Programmes - Apprenticeships & Employer Policy Implement,Agency Staff Member,SCLAIM_42140,268.00,Staff Expenses Claim
BIS,Skills Funding Agency,08/07/2015,Other Travel,Funding & Programmes - Funding Policy Implementation,Agency Staff Member,SCLAIM_42619,21.00,Staff Expenses Claim
BIS,Skills Funding Agency,08/07/2015,Other Travel,Funding & Programmes - Funding Systems and Information,Agency Staff Member,SCLAIM_42624,22.00,Staff Expenses Claim
BIS,Skills Funding Agency,08/07/2015,Other Travel,Funding & Programmes - Localism Policy Implementation,Agency Staff Member,SCLAIM_42617,27.20,Staff Expenses Claim
BIS,Skills Funding Agency,08/07/2015,Other Travel,Funding & Programmes - Localism Policy Implementation,Agency Staff Member,SCLAIM_42634,15.20,Staff Expenses Claim
BIS,Skills Funding Agency,08/07/2015,Other Travel,Funding & Programmes - Provider Management & Intervention Central,Agency Staff Member,SCLAIM_42628,1.50,Staff Expenses Claim
BIS,Skills Funding Agency,08/07/2015,Other Travel,Funding & Programmes - Provider Management & Intervention North,Agency Staff Member,SCLAIM_42640,48.00,Staff Expenses Claim
BIS,Skills Funding Agency,08/07/2015,Other Travel,Funding & Programmes - Provider Management & Intervention North,Agency Staff Member,SCLAIM_42642,100.80,Staff Expenses Claim
BIS,Skills Funding Agency,08/07/2015,Other Travel,Funding & Programmes - Provider Management & Intervention South,Agency Staff Member,SCLAIM_42632,30.20,Staff Expenses Claim
BIS,Skills Funding Agency,08/07/2015,Other Travel,Funding & Programmes - Provider Management & Intervention South,Agency Staff Member,SCLAIM_42635,27.60,Staff Expenses Claim
BIS,Skills Funding Agency,08/07/2015,Other Travel,Funding & Programmes - Provider Management & Intervention South,Agency Staff Member,SCLAIM_42647,18.40,Staff Expenses Claim
BIS,Skills Funding Agency,08/07/2015,Other Travel,Large Companies Unit,Agency Staff Member,SCLAIM_42679,5.00,Staff Expenses Claim
BIS,Skills Funding Agency,08/07/2015,Other Travel,National Careers & Learner Services,Agency Staff Member,SCLAIM_42620,4.00,Staff Expenses Claim
BIS,Skills Funding Agency,08/07/2015,Other Travel,National Careers & Learner Services,Agency Staff Member,SCLAIM_42664,52.80,Staff Expenses Claim
BIS,Skills Funding Agency,08/07/2015,Other Travel,National Careers & Learner Services,Agency Staff Member,SCLAIM_42676,16.20,Staff Expenses Claim
BIS,Skills Funding Agency,08/07/2015,Petrol Car Mileage Passenger Supplement,Employer & Provider Services Midlands,Agency Staff Member,SCLAIM_42611,13.40,Staff Expenses Claim
BIS,Skills Funding Agency,08/07/2015,Petrol Car Mileage Passenger Supplement,Employer & Provider Services South East,Agency Staff Member,SCLAIM_42643,6.60,Staff Expenses Claim
BIS,Skills Funding Agency,08/07/2015,Petrol Car Mileage,Central Delivery Service - European Social Fund - Audit Compliance,Agency Staff Member,SCLAIM_42621,99.00,Staff Expenses Claim
BIS,Skills Funding Agency,08/07/2015,Petrol Car Mileage,Central Delivery Service - European Social Fund - Audit Compliance,Agency Staff Member,SCLAIM_42670,-94.50,Staff Expenses Claim
BIS,Skills Funding Agency,08/07/2015,Petrol Car Mileage,Central Delivery Service - European Social Fund - Audit Compliance,Agency Staff Member,SCLAIM_42685,289.80,Staff Expenses Claim
BIS,Skills Funding Agency,08/07/2015,Petrol Car Mileage,Central Delivery Service - London,Agency Staff Member,SCLAIM_42631,108.90,Staff Expenses Claim
BIS,Skills Funding Agency,08/07/2015,Petrol Car Mileage,Chief Executive Office - Executive Office,Agency Staff Member,SCLAIM_42651,140.40,Staff Expenses Claim
BIS,Skills Funding Agency,08/07/2015,Petrol Car Mileage,Chief Executive Office - Marketing  ,Agency Staff Member,SCLAIM_42618,14.40,Staff Expenses Claim
BIS,Skills Funding Agency,08/07/2015,Petrol Car Mileage,Employer & Provider Services Midlands,Agency Staff Member,SCLAIM_42611,97.20,Staff Expenses Claim
BIS,Skills Funding Agency,08/07/2015,Petrol Car Mileage,Employer & Provider Services North East & Yorkshire,Agency Staff Member,SCLAIM_42614,257.40,Staff Expenses Claim
BIS,Skills Funding Agency,08/07/2015,Petrol Car Mileage,Employer & Provider Services North East & Yorkshire,Agency Staff Member,SCLAIM_42622,73.80,Staff Expenses Claim
BIS,Skills Funding Agency,08/07/2015,Petrol Car Mileage,Employer & Provider Services North East & Yorkshire,Agency Staff Member,SCLAIM_42645,144.90,Staff Expenses Claim
BIS,Skills Funding Agency,08/07/2015,Petrol Car Mileage,Employer & Provider Services North East & Yorkshire,Agency Staff Member,SCLAIM_42656,273.60,Staff Expenses Claim
BIS,Skills Funding Agency,08/07/2015,Petrol Car Mileage,Employer & Provider Services North West,Agency Staff Member,SCLAIM_42672,128.70,Staff Expenses Claim
BIS,Skills Funding Agency,08/07/2015,Petrol Car Mileage,Employer & Provider Services North West,Agency Staff Member,SCLAIM_42684,173.70,Staff Expenses Claim
BIS,Skills Funding Agency,08/07/2015,Petrol Car Mileage,Employer & Provider Services South East,Agency Staff Member,SCLAIM_42626,464.40,Staff Expenses Claim
BIS,Skills Funding Agency,08/07/2015,Petrol Car Mileage,Employer & Provider Services South East,Agency Staff Member,SCLAIM_42643,182.70,Staff Expenses Claim
BIS,Skills Funding Agency,08/07/2015,Petrol Car Mileage,Employer & Provider Services South East,Agency Staff Member,SCLAIM_42644,359.55,Staff Expenses Claim
BIS,Skills Funding Agency,08/07/2015,Petrol Car Mileage,Employer & Provider Services South East,Agency Staff Member,SCLAIM_42674,49.50,Staff Expenses Claim
BIS,Skills Funding Agency,08/07/2015,Petrol Car Mileage,Employer & Provider Services South East,Agency Staff Member,SCLAIM_42683,279.90,Staff Expenses Claim
BIS,Skills Funding Agency,08/07/2015,Petrol Car Mileage,Employer & Provider Services South West,Agency Staff Member,SCLAIM_42609,1.80,Staff Expenses Claim
BIS,Skills Funding Agency,08/07/2015,Petrol Car Mileage,Employer & Provider Services South West,Agency Staff Member,SCLAIM_42660,79.20,Staff Expenses Claim
BIS,Skills Funding Agency,08/07/2015,Petrol Car Mileage,Finance Division - Provider Finance,Agency Staff Member,SCLAIM_42630,181.80,Staff Expenses Claim
BIS,Skills Funding Agency,08/07/2015,Petrol Car Mileage,Finance Division - Provider Finance,Agency Staff Member,SCLAIM_42649,192.60,Staff Expenses Claim
BIS,Skills Funding Agency,08/07/2015,Petrol Car Mileage,Finance Division - Provider Finance,Agency Staff Member,SCLAIM_42650,186.30,Staff Expenses Claim
BIS,Skills Funding Agency,08/07/2015,Petrol Car Mileage,Finance Division - Provider Finance,Agency Staff Member,SCLAIM_42658,85.50,Staff Expenses Claim
BIS,Skills Funding Agency,08/07/2015,Petrol Car Mileage,Finance Division - Provider Finance,Agency Staff Member,SCLAIM_42688,119.25,Staff Expenses Claim
BIS,Skills Funding Agency,08/07/2015,Petrol Car Mileage,Finance Division - Provider Financial Assurance Audit,Agency Staff Member,SCLAIM_42616,28.35,Staff Expenses Claim
BIS,Skills Funding Agency,08/07/2015,Petrol Car Mileage,Funding & Programmes - Apprenticeships & Employer Policy Implement,Agency Staff Member,SCLAIM_41648,121.50,Staff Expenses Claim
BIS,Skills Funding Agency,08/07/2015,Petrol Car Mileage,Funding & Programmes - Funding Systems and Information,Agency Staff Member,SCLAIM_42624,214.20,Staff Expenses Claim
BIS,Skills Funding Agency,08/07/2015,Petrol Car Mileage,Funding & Programmes - Provider Management & Intervention North,Agency Staff Member,SCLAIM_42642,160.20,Staff Expenses Claim
BIS,Skills Funding Agency,08/07/2015,Petrol Car Mileage,Funding & Programmes - Provider Management & Intervention South,Agency Staff Member,SCLAIM_42635,54.90,Staff Expenses Claim
BIS,Skills Funding Agency,08/07/2015,Petrol Car Mileage,National Careers & Learner Services,Agency Staff Member,SCLAIM_42652,64.80,Staff Expenses Claim
BIS,Skills Funding Agency,08/07/2015,Petrol Car Mileage,National Careers & Learner Services,Agency Staff Member,SCLAIM_42664,13.50,Staff Expenses Claim
BIS,Skills Funding Agency,08/07/2015,Professional Services,Funding & Programmes - Delivery & Performance - Data Warehouse,CAPGEMINI UK PLC,SPINVB_27844,"12,734.40",Purchase Invoice
BIS,Skills Funding Agency,08/07/2015,Professional Subscriptions,Finance Division - Provider Finance,Agency Staff Member,SCLAIMPRO_850,139.00,Staff Expenses Claim
BIS,Skills Funding Agency,08/07/2015,Professional Subscriptions,HR - Human Resources,Agency Staff Member,SCLAIMPRO_849,194.00,Staff Expenses Claim
BIS,Skills Funding Agency,08/07/2015,Rail Warrants & Tickets,Apprenticeships & Delivery Services - Executive Office,Agency Staff Member,SCLAIM_42654,19.70,Staff Expenses Claim
BIS,Skills Funding Agency,08/07/2015,Rail Warrants & Tickets,Chief Executive Office - Marketing  ,Agency Staff Member,SCLAIM_42675,9.60,Staff Expenses Claim
BIS,Skills Funding Agency,08/07/2015,Rail Warrants & Tickets,Employer & Provider Services North East & Yorkshire,Agency Staff Member,SCLAIM_42622,76.70,Staff Expenses Claim
BIS,Skills Funding Agency,08/07/2015,Rail Warrants & Tickets,Employer & Provider Services North West,Agency Staff Member,SCLAIM_42556,48.30,Staff Expenses Claim
BIS,Skills Funding Agency,08/07/2015,Rail Warrants & Tickets,Employer & Provider Services South East,Agency Staff Member,SCLAIM_42610,24.00,Staff Expenses Claim
BIS,Skills Funding Agency,08/07/2015,Rail Warrants & Tickets,Employer & Provider Services South East,Agency Staff Member,SCLAIM_42625,14.40,Staff Expenses Claim
BIS,Skills Funding Agency,08/07/2015,Rail Warrants & Tickets,Employer & Provider Services South East,Agency Staff Member,SCLAIM_42673,9.60,Staff Expenses Claim
BIS,Skills Funding Agency,08/07/2015,Rail Warrants & Tickets,Finance Division - Provider Finance,Agency Staff Member,SCLAIM_42612,151.40,Staff Expenses Claim
BIS,Skills Funding Agency,08/07/2015,Rail Warrants & Tickets,Finance Division - Provider Finance,Agency Staff Member,SCLAIM_42649,18.40,Staff Expenses Claim
BIS,Skills Funding Agency,08/07/2015,Rail Warrants & Tickets,Funding & Programmes - Apprenticeships & Employer Policy Implement,Agency Staff Member,SCLAIM_42138,4.80,Staff Expenses Claim
BIS,Skills Funding Agency,08/07/2015,Rail Warrants & Tickets,Funding & Programmes - Apprenticeships & Employer Policy Implement,Agency Staff Member,SCLAIM_42140,83.40,Staff Expenses Claim
BIS,Skills Funding Agency,08/07/2015,Rail Warrants & Tickets,Funding & Programmes - Funding Systems and Information,Agency Staff Member,SCLAIM_42624,78.30,Staff Expenses Claim
BIS,Skills Funding Agency,08/07/2015,Rail Warrants & Tickets,Funding & Programmes - Provider Management & Intervention North,Agency Staff Member,SCLAIM_42642,113.50,Staff Expenses Claim
BIS,Skills Funding Agency,08/07/2015,Rail Warrants & Tickets,Large Companies Unit,Agency Staff Member,SCLAIM_42679,17.00,Staff Expenses Claim
BIS,Skills Funding Agency,08/07/2015,Rail Warrants & Tickets,National Careers & Learner Services,Agency Staff Member,SCLAIM_42664,28.00,Staff Expenses Claim
BIS,Skills Funding Agency,08/07/2015,Self-Drive Car Hire,Apprenticeships & Delivery Services - Apprenticeships & Employer Policy Implementation,Agency Staff Member,SCLAIM_42681,23.00,Staff Expenses Claim
BIS,Skills Funding Agency,08/07/2015,Self-Drive Car Hire,Apprenticeships & Delivery Services - Apprenticeships & Employer Policy Implementation,Agency Staff Member,SCLAIM_42682,20.02,Staff Expenses Claim
BIS,Skills Funding Agency,08/07/2015,Self-Drive Car Hire,Central Delivery Service - Leeds,Agency Staff Member,SCLAIM_42661,40.86,Staff Expenses Claim
BIS,Skills Funding Agency,08/07/2015,Self-Drive Car Hire,Employer & Provider Services South East,Agency Staff Member,SCLAIM_42610,39.58,Staff Expenses Claim
BIS,Skills Funding Agency,08/07/2015,Self-Drive Car Hire,Employer & Provider Services South East,Agency Staff Member,SCLAIM_42644,68.07,Staff Expenses Claim
BIS,Skills Funding Agency,08/07/2015,Self-Drive Car Hire,Finance Division - Provider Finance,Agency Staff Member,SCLAIM_42638,87.81,Staff Expenses Claim
BIS,Skills Funding Agency,08/07/2015,Self-Drive Car Hire,Finance Division - Provider Finance,Agency Staff Member,SCLAIM_42650,56.30,Staff Expenses Claim
BIS,Skills Funding Agency,08/07/2015,Self-Drive Car Hire,Finance Division - Provider Finance,Agency Staff Member,SCLAIM_42657,27.61,Staff Expenses Claim
BIS,Skills Funding Agency,08/07/2015,Self-Drive Car Hire,Finance Division - Provider Finance,Agency Staff Member,SCLAIM_42662,16.00,Staff Expenses Claim
BIS,Skills Funding Agency,08/07/2015,Self-Drive Car Hire,Finance Division - Provider Finance,Agency Staff Member,SCLAIM_42687,34.47,Staff Expenses Claim
BIS,Skills Funding Agency,08/07/2015,Self-Drive Car Hire,Finance Division - Provider Financial Assurance Audit,Agency Staff Member,SCLAIM_42616,33.50,Staff Expenses Claim
BIS,Skills Funding Agency,08/07/2015,Self-Drive Car Hire,Funding & Programmes - Provider Management & Intervention South,Agency Staff Member,SCLAIM_42632,49.18,Staff Expenses Claim
BIS,Skills Funding Agency,08/07/2015,Subsistence,Central Delivery Service - European Social Fund - Audit Compliance,Agency Staff Member,SCLAIM_42670,25.00,Staff Expenses Claim
BIS,Skills Funding Agency,08/07/2015,Subsistence,Central Delivery Service - European Social Fund - Audit Compliance,Agency Staff Member,SCLAIM_42685,10.00,Staff Expenses Claim
BIS,Skills Funding Agency,08/07/2015,Subsistence,Central Delivery Service - Leeds,Agency Staff Member,SCLAIM_42613,35.00,Staff Expenses Claim
BIS,Skills Funding Agency,08/07/2015,Subsistence,Central Delivery Service - Leeds,Agency Staff Member,SCLAIM_42636,62.00,Staff Expenses Claim
BIS,Skills Funding Agency,08/07/2015,Subsistence,Chief Executive Office - Marketing  ,Agency Staff Member,SCLAIM_42675,55.00,Staff Expenses Claim
BIS,Skills Funding Agency,08/07/2015,Subsistence,Employer & Provider Services North East & Yorkshire,Agency Staff Member,SCLAIM_42656,25.00,Staff Expenses Claim
BIS,Skills Funding Agency,08/07/2015,Subsistence,Employer & Provider Services South West,Agency Staff Member,SCLAIM_42609,10.00,Staff Expenses Claim
BIS,Skills Funding Agency,08/07/2015,Subsistence,Finance Division - Provider Finance,Agency Staff Member,SCLAIM_42638,150.00,Staff Expenses Claim
BIS,Skills Funding Agency,08/07/2015,Subsistence,Finance Division - Provider Finance,Agency Staff Member,SCLAIM_42649,30.00,Staff Expenses Claim
BIS,Skills Funding Agency,08/07/2015,Subsistence,Finance Division - Provider Finance,Agency Staff Member,SCLAIM_42650,20.00,Staff Expenses Claim
BIS,Skills Funding Agency,08/07/2015,Subsistence,Finance Division - Provider Finance,Agency Staff Member,SCLAIM_42657,110.00,Staff Expenses Claim
BIS,Skills Funding Agency,08/07/2015,Subsistence,Finance Division - Provider Finance,Agency Staff Member,SCLAIM_42662,300.00,Staff Expenses Claim
BIS,Skills Funding Agency,08/07/2015,Subsistence,Finance Division - Provider Finance,Agency Staff Member,SCLAIM_42687,85.00,Staff Expenses Claim
BIS,Skills Funding Agency,08/07/2015,Subsistence,Funding & Programmes - Apprenticeships & Employer Policy Implement,Agency Staff Member,SCLAIM_42138,80.00,Staff Expenses Claim
BIS,Skills Funding Agency,08/07/2015,Subsistence,Funding & Programmes - Apprenticeships & Employer Policy Implement,Agency Staff Member,SCLAIM_42139,140.00,Staff Expenses Claim
BIS,Skills Funding Agency,08/07/2015,Subsistence,Funding & Programmes - Funding Policy Implementation,Agency Staff Member,SCLAIM_42619,95.00,Staff Expenses Claim
BIS,Skills Funding Agency,08/07/2015,Subsistence,Funding & Programmes - Funding Systems and Information,Agency Staff Member,SCLAIM_42639,45.00,Staff Expenses Claim
BIS,Skills Funding Agency,08/07/2015,Subsistence,Funding & Programmes - Provider Management & Intervention North,Agency Staff Member,SCLAIM_42655,20.00,Staff Expenses Claim
BIS,Skills Funding Agency,08/07/2015,Subsistence,Funding & Programmes - Provider Management & Intervention South,Agency Staff Member,SCLAIM_42632,5.00,Staff Expenses Claim
BIS,Skills Funding Agency,08/07/2015,Subsistence,Funding & Programmes - Provider Management & Intervention South,Agency Staff Member,SCLAIM_42635,10.00,Staff Expenses Claim
BIS,Skills Funding Agency,08/07/2015,Subsistence,Large Companies Unit,Agency Staff Member,SCLAIM_42679,60.00,Staff Expenses Claim
BIS,Skills Funding Agency,08/07/2015,Subsistence,National Careers & Learner Services,Agency Staff Member,SCLAIM_42653,5.00,Staff Expenses Claim
BIS,Skills Funding Agency,08/07/2015,Subsistence,National Careers & Learner Services,Agency Staff Member,SCLAIM_42664,120.00,Staff Expenses Claim
BIS,Skills Funding Agency,08/07/2015,Subsistence,National Careers & Learner Services,Agency Staff Member,SCLAIM_42676,75.00,Staff Expenses Claim
BIS,Skills Funding Agency,08/07/2015,Sundry Items,Finance Division - Provider Finance,Agency Staff Member,SCLAIM_42649,12.00,Staff Expenses Claim
BIS,Skills Funding Agency,08/07/2015,Taxis,Apprenticeships & Delivery Services - Executive Office,Agency Staff Member,SCLAIM_42654,56.00,Staff Expenses Claim
BIS,Skills Funding Agency,08/07/2015,Taxis,Central Delivery Service - Leeds,Agency Staff Member,SCLAIM_42636,63.00,Staff Expenses Claim
BIS,Skills Funding Agency,08/07/2015,Taxis,Chief Executive Office - Marketing  ,Agency Staff Member,SCLAIM_42675,26.00,Staff Expenses Claim
BIS,Skills Funding Agency,08/07/2015,Taxis,Employer & Provider Services North East & Yorkshire,Agency Staff Member,SCLAIM_42656,13.00,Staff Expenses Claim
BIS,Skills Funding Agency,08/07/2015,Taxis,Employer & Provider Services South East,Agency Staff Member,SCLAIM_42625,12.00,Staff Expenses Claim
BIS,Skills Funding Agency,08/07/2015,Taxis,Employer & Provider Services South East,Agency Staff Member,SCLAIM_42644,9.90,Staff Expenses Claim
BIS,Skills Funding Agency,08/07/2015,Taxis,Employer & Provider Services South West,Agency Staff Member,SCLAIM_42660,46.00,Staff Expenses Claim
BIS,Skills Funding Agency,08/07/2015,Taxis,Finance Division - Provider Finance,Agency Staff Member,SCLAIM_42633,6.00,Staff Expenses Claim
BIS,Skills Funding Agency,08/07/2015,Taxis,Funding & Programmes - Apprenticeships & Employer Policy Implement,Agency Staff Member,SCLAIM_42138,23.00,Staff Expenses Claim
BIS,Skills Funding Agency,08/07/2015,Taxis,Funding & Programmes - Apprenticeships & Employer Policy Implement,Agency Staff Member,SCLAIM_42140,35.00,Staff Expenses Claim
BIS,Skills Funding Agency,08/07/2015,Taxis,Funding & Programmes - Funding Systems and Information,Agency Staff Member,SCLAIM_42624,5.55,Staff Expenses Claim
BIS,Skills Funding Agency,08/07/2015,Taxis,Funding & Programmes - Funding Systems and Information,Agency Staff Member,SCLAIM_42639,52.20,Staff Expenses Claim
BIS,Skills Funding Agency,08/07/2015,Taxis,Funding & Programmes - Provider Management & Intervention North,Agency Staff Member,SCLAIM_42655,27.95,Staff Expenses Claim
BIS,Skills Funding Agency,08/07/2015,Taxis,National Careers & Learner Services,Agency Staff Member,SCLAIM_42653,81.00,Staff Expenses Claim
BIS,Skills Funding Agency,08/07/2015,Taxis,National Careers & Learner Services,Agency Staff Member,SCLAIM_42676,42.70,Staff Expenses Claim
BIS,Skills Funding Agency,08/07/2015,Temporary Staff,Funding & Programmes - Delivery & Performance,HAYS SPECIALIST RECRUITMENT LTD,IPINVELECT3_1853,"1,237.50",Purchase Invoice
BIS,Skills Funding Agency,08/07/2015,Temporary Staff,Operations Finance - Accounting Services,HAYS SPECIALIST RECRUITMENT LTD,IPINVELECT3_1853,"2,500.02",Purchase Invoice
BIS,Skills Funding Agency,08/07/2015,Temporary Staff,Operations ICT - Mission IT / Business As Usual Major Releases,BADENOCH & CLARK IP LTD,IPINVELECT3_1852,"3,297.84",Purchase Invoice
BIS,Skills Funding Agency,08/07/2015,Training Venue & Refreshments,Employer & Provider Services South West,CAPITA TRAVEL AND EVENTS LTD,IPINVELECT3_1851,503.00,Purchase Invoice
BIS,Skills Funding Agency,08/07/2015,Training Venue & Refreshments,Funding & Programmes - Apprenticeships & Employer Policy Implement,CAPITA TRAVEL AND EVENTS LTD,IPINVELECT3_1851,"1,222.40",Purchase Invoice
BIS,Skills Funding Agency,10/07/2015,Application for Payment,None,DAVID WARNER,SPAYONACCT_321,"1,200.00",Payment on Account
BIS,Skills Funding Agency,10/07/2015,Career Development Loans - Programme Support Costs,Main Funding,EXPERIAN LTD,SPINVB_27941,113.40,Purchase Invoice
BIS,Skills Funding Agency,10/07/2015,Catering Contracts,HR - Facilities Central,WESTBURY STREET HOLDINGS,SPINVB_27942,"9,024.51",Purchase Invoice
BIS,Skills Funding Agency,10/07/2015,Catering Supplies,HR - Facilities Central,D ARCH & SON,SPINVB_27940,899.60,Purchase Invoice
BIS,Skills Funding Agency,10/07/2015,Electricity,Operations Finance - Financial Management,EDF ENERGY PLC,SPINVNO_3709,"5,517.47",Purchase Invoice
BIS,Skills Funding Agency,10/07/2015,Electricity,Operations Finance - Financial Management,EDF ENERGY PLC,SPINVNO_3710,"14,724.53",Purchase Invoice
BIS,Skills Funding Agency,10/07/2015,Hardware Maintenance & Repair,Operations ICT - Technical Design Authority,CAPGEMINI UK PLC,SPINVB_27825,"3,182.80",Purchase Invoice
BIS,Skills Funding Agency,10/07/2015,Hardware Maintenance & Repair,Operations ICT - Technical Design Authority,CAPGEMINI UK PLC,SPINVB_27827,"2,014.49",Purchase Invoice
BIS,Skills Funding Agency,10/07/2015,Hardware Maintenance & Repair,Operations ICT - Technical Design Authority,CAPGEMINI UK PLC,SPINVB_27841,"9,293.84",Purchase Invoice
BIS,Skills Funding Agency,10/07/2015,Hosting,Funding & Programmes - Delivery & Performance - Data Warehouse,FORDWAY SOLUTIONS LIMITED,SPINVB_27903,"1,320.00",Purchase Invoice
BIS,Skills Funding Agency,10/07/2015,Hosting,Operations ICT - Projects,CGI IT UK LIMITED,SPINVB_27914,"12,000.00",Purchase Invoice
BIS,Skills Funding Agency,10/07/2015,Hosting,Operations ICT - Technical Design Authority,BYTES SOFTWARE SERVICES LTD,SPINVB_27779,"56,083.20",Purchase Invoice
BIS,Skills Funding Agency,10/07/2015,Licences,Operations ICT - Business IT - Agency Services,INFOR GLOBAL SOLUTIONS (MIDLANDS IV) LTD,SPINVB_27875,"63,361.74",Purchase Invoice
BIS,Skills Funding Agency,10/07/2015,Managed IT Service,Operations ICT - Agile Developments,SOGETI UK LIMITED,SPINVB_27911,"6,720.00",Purchase Invoice
BIS,Skills Funding Agency,10/07/2015,Managed IT Service,Operations ICT - Agile Developments,SOGETI UK LIMITED,SPINVB_27912,"10,080.00",Purchase Invoice
BIS,Skills Funding Agency,10/07/2015,Managed IT Service,Operations ICT - Mission IT / Business As Usual Major Releases,INFOR GLOBAL SOLUTIONS (MIDLANDS IV) LTD,SPINVB_27868,"2,968.75",Purchase Invoice
BIS,Skills Funding Agency,10/07/2015,Managed IT Service,Operations ICT - Mission IT / Business As Usual Major Releases,INFOR GLOBAL SOLUTIONS (MIDLANDS IV) LTD,SPINVB_27869,"38,145.00",Purchase Invoice
BIS,Skills Funding Agency,10/07/2015,"National Apprenticeship Service - Business, Innovation & Skills - Non-Participation",Communications & Marketing,WILLIAMS LEA LIMITED,SPINVB_27955,"7,200.00",Purchase Invoice
BIS,Skills Funding Agency,10/07/2015,National Careers Service Development,Main Funding,DEPARTMENT FOR WORK & PENSIONS,SPINVB_27954,"34,260.09",Purchase Invoice
BIS,Skills Funding Agency,10/07/2015,Next Step Helpline,Main Funding,ECHO MANAGED SERVICES LIMITED,SPINVB_27947,"26,676.22",Purchase Invoice
BIS,Skills Funding Agency,10/07/2015,Software Maintenance & Repair,Operations ICT - Projects,FORDWAY SOLUTIONS LIMITED,SPINVB_27897,720.00,Purchase Invoice
BIS,Skills Funding Agency,10/07/2015,Software Maintenance & Repair,Operations ICT - Service Integration & Management,PROGRAM FRAMEWORK LIMITED,SPINVB_27921,"21,648.80",Purchase Invoice
BIS,Skills Funding Agency,10/07/2015,Support Services,Operations ICT - Projects,LIBERATA UK LIMITED,SPINVB_27804,"122,019.60",Purchase Invoice
BIS,Skills Funding Agency,10/07/2015,Temporary Staff,"Operations Finance - Shared Service, ICT Finance & Capital",MICHAEL PAGE INTERNATIONAL RECRUITMENT LTD,SPINVB_27908,749.40,Purchase Invoice
BIS,Skills Funding Agency,10/07/2015,Temporary Staff,Operations ICT - Agile Developments,PARITY RESOURCES LTD,SPINVB_27926,"3,854.16",Purchase Invoice
BIS,Skills Funding Agency,10/07/2015,Temporary Staff,Operations ICT - Agile Developments,PARITY RESOURCES LTD,SPINVB_27929,"15,540.00",Purchase Invoice
BIS,Skills Funding Agency,10/07/2015,Temporary Staff,Operations ICT - Change Delivery,CAPITA BUSINESS SERVICES LTD,IPINVELECT3_1854,"6,723.64",Purchase Invoice
BIS,Skills Funding Agency,10/07/2015,Temporary Staff,Operations ICT - Change Delivery,PARITY RESOURCES LTD,SPINVB_27931,"7,980.00",Purchase Invoice
BIS,Skills Funding Agency,10/07/2015,Temporary Staff,Operations ICT - Citizen Digital Service,PARITY RESOURCES LTD,SPINVB_27928,"10,879.20",Purchase Invoice
BIS,Skills Funding Agency,10/07/2015,Temporary Staff,Operations ICT - Citizen Digital Service,PARITY RESOURCES LTD,SPINVB_27933,"13,104.14",Purchase Invoice
BIS,Skills Funding Agency,10/07/2015,Temporary Staff,Operations ICT - Information & Communication Technology - Technical,BAE SYSTEMS APPLIED INTELLIGENCE LIMITED,SPINVB_27757,"2,778.50",Purchase Invoice
BIS,Skills Funding Agency,10/07/2015,Temporary Staff,Operations ICT - Information & Communication Technology - Technical,KELLY SERVICES UK LTD,SPINVB_27922,643.54,Purchase Invoice
BIS,Skills Funding Agency,10/07/2015,Temporary Staff,Operations ICT - Project Delivery,CAPITA BUSINESS SERVICES LTD,IPINVELECT3_1854,"6,237.32",Purchase Invoice
BIS,Skills Funding Agency,10/07/2015,Temporary Staff,Operations ICT - Project Delivery,PARITY RESOURCES LTD,SPINVB_27930,"7,886.40",Purchase Invoice
BIS,Skills Funding Agency,10/07/2015,Temporary Staff,Operations ICT - Project Delivery,PARITY RESOURCES LTD,SPINVB_27932,"7,394.40",Purchase Invoice
BIS,Skills Funding Agency,10/07/2015,Temporary Staff,Operations ICT - Provider Digital Service,PARITY RESOURCES LTD,SPINVB_27934,"3,420.00",Purchase Invoice
BIS,Skills Funding Agency,10/07/2015,Temporary Staff,Operations ICT - Technical Design Authority,CAPITA BUSINESS SERVICES LTD,IPINVELECT3_1854,"10,375.80",Purchase Invoice
BIS,Skills Funding Agency,13/07/2015,16-18 Apprenticeship Grant for Employers - Employer Ownership Programme Providers,Main Funding,AGILISYS ARCH LTD,NUPS15_6244,"4,500.00",Programme Template
BIS,Skills Funding Agency,13/07/2015,16-18 Apprenticeship Grant for Employers - Employer Ownership Programme Providers,Main Funding,AGILISYS ARCH LTD,NUPS15_6245,"1,500.00",Programme Template
BIS,Skills Funding Agency,13/07/2015,16-18 Apprenticeship Grant for Employers,Main Funding,ABINGDON & WITNEY COLLEGE,NUPS15_4910,"-3,000.00",Programme Template
BIS,Skills Funding Agency,13/07/2015,16-18 Apprenticeship Grant for Employers,Main Funding,APPRENTICESHIPS & TRAINING SERVICES CONSORTIUM LIMITED,NUPS15_5242,"1,500.00",Programme Template
BIS,Skills Funding Agency,13/07/2015,16-18 Apprenticeship Grant for Employers,Main Funding,ASPIRE TRAINING TEAM,NUPS15_4884,"-1,500.00",Programme Template
BIS,Skills Funding Agency,13/07/2015,16-18 Apprenticeship Grant for Employers,Main Funding,ASPIRE TRAINING TEAM,NUPS15_5549,"1,500.00",Programme Template
BIS,Skills Funding Agency,13/07/2015,16-18 Apprenticeship Grant for Employers,Main Funding,BOSCH AUTOMOTIVE SERVICE SOLUTIONS LTD,NUPS15_4699,"-6,000.00",Programme Template
BIS,Skills Funding Agency,13/07/2015,16-18 Apprenticeship Grant for Employers,Main Funding,COLLEGE OF NORTH WEST LONDON,NUPS15_4969,"-3,000.00",Programme Template
BIS,Skills Funding Agency,13/07/2015,16-18 Apprenticeship Grant for Employers,Main Funding,DERWEN COLLEGE,NUPS14_50120,"1,500.00",Programme Template
BIS,Skills Funding Agency,13/07/2015,16-18 Apprenticeship Grant for Employers,Main Funding,DONCASTER ROTHERHAM & DISTRICT MOTOR TRADES GROUP TRAINING ASSOCIATION LTD,NUPS15_4723,"-1,500.00",Programme Template
BIS,Skills Funding Agency,13/07/2015,16-18 Apprenticeship Grant for Employers,Main Funding,DONCASTER ROTHERHAM & DISTRICT MOTOR TRADES GROUP TRAINING ASSOCIATION LTD,NUPS15_5319,"1,500.00",Programme Template
BIS,Skills Funding Agency,13/07/2015,16-18 Apprenticeship Grant for Employers,Main Funding,FARNBOROUGH COLLEGE,NUPS15_5002,"-1,500.00",Programme Template
BIS,Skills Funding Agency,13/07/2015,16-18 Apprenticeship Grant for Employers,Main Funding,FARNBOROUGH COLLEGE,NUPS15_5701,"1,500.00",Programme Template
BIS,Skills Funding Agency,13/07/2015,16-18 Apprenticeship Grant for Employers,Main Funding,G B TRAINING UK LTD,NUPS15_4742,"-1,500.00",Programme Template
BIS,Skills Funding Agency,13/07/2015,16-18 Apprenticeship Grant for Employers,Main Funding,HIGHBURY COLLEGE,NUPS15_5029,"-4,500.00",Programme Template
BIS,Skills Funding Agency,13/07/2015,16-18 Apprenticeship Grant for Employers,Main Funding,HIGHBURY COLLEGE,NUPS15_5731,"3,000.00",Programme Template
BIS,Skills Funding Agency,13/07/2015,16-18 Apprenticeship Grant for Employers,Main Funding,JGA LTD,NUPS15_4784,"-1,500.00",Programme Template
BIS,Skills Funding Agency,13/07/2015,16-18 Apprenticeship Grant for Employers,Main Funding,JTL,NUPS15_4785,"4,500.00",Programme Template
BIS,Skills Funding Agency,13/07/2015,16-18 Apprenticeship Grant for Employers,Main Funding,JTL,NUPS15_4787,"-39,000.00",Programme Template
BIS,Skills Funding Agency,13/07/2015,16-18 Apprenticeship Grant for Employers,Main Funding,JTL,NUPS15_5392,"31,500.00",Programme Template
BIS,Skills Funding Agency,13/07/2015,16-18 Apprenticeship Grant for Employers,Main Funding,LAKES COLLEGE WEST CUMBRIA,NUPS15_5914,"-1,500.00",Programme Template
BIS,Skills Funding Agency,13/07/2015,16-18 Apprenticeship Grant for Employers,Main Funding,NATIONAL BUSINESS COLLEGE LIMITED,NUPS15_5440,"4,500.00",Programme Template
BIS,Skills Funding Agency,13/07/2015,16-18 Apprenticeship Grant for Employers,Main Funding,NORWICH CITY COLLEGE,NUPS15_5077,"-3,000.00",Programme Template
BIS,Skills Funding Agency,13/07/2015,16-18 Apprenticeship Grant for Employers,Main Funding,NORWICH CITY COLLEGE,NUPS15_5806,"-3,000.00",Programme Template
BIS,Skills Funding Agency,13/07/2015,16-18 Apprenticeship Grant for Employers,Main Funding,OLDHAM COLLEGE,NUPS15_5093,"-4,500.00",Programme Template
BIS,Skills Funding Agency,13/07/2015,16-18 Apprenticeship Grant for Employers,Main Funding,SALFORD & TRAFFORD ENGINEERING GROUP TRAINING ASSOCIATION LTD,NUPS15_4868,"-1,500.00",Programme Template
BIS,Skills Funding Agency,13/07/2015,16-18 Apprenticeship Grant for Employers,Main Funding,SALFORD & TRAFFORD ENGINEERING GROUP TRAINING ASSOCIATION LTD,NUPS15_5527,"1,500.00",Programme Template
BIS,Skills Funding Agency,13/07/2015,16-18 Apprenticeship Grant for Employers,Main Funding,STUBBING COURT TRAINING LTD,NUPS15_4872,"1,500.00",Programme Template
BIS,Skills Funding Agency,13/07/2015,16-18 Apprenticeship Grant for Employers,Main Funding,STUBBING COURT TRAINING LTD,NUPS15_4873,"-3,000.00",Programme Template
BIS,Skills Funding Agency,13/07/2015,16-18 Apprenticeship Grant for Employers,Main Funding,TNG LTD,NQAA_5727,"-1,500.00",Programme Template
BIS,Skills Funding Agency,13/07/2015,16-18 Apprenticeship Grant for Employers,Main Funding,WIRRAL METRO COLLEGE,NUPS15_5181,"3,000.00",Programme Template
BIS,Skills Funding Agency,13/07/2015,16-18 Apprenticeship Grant for Employers,Main Funding,WIRRAL METRO COLLEGE,NUPS15_5183,"-34,500.00",Programme Template
BIS,Skills Funding Agency,13/07/2015,16-18 Apprenticeship Grant for Employers,Main Funding,WIRRAL METRO COLLEGE,NUPS15_5923,"9,000.00",Programme Template
BIS,Skills Funding Agency,13/07/2015,16-18 Apprenticeship Grant for Employers,Main Funding,WORKING LINKS EMPLOYMENT LTD,NUPS13_32287,"-1,500.00",Programme Template
BIS,Skills Funding Agency,13/07/2015,16-18 Apprenticeships - Centralised Contract Management,Main Funding,5 E LTD,16APR_60148,"2,994.40",Programme System File
BIS,Skills Funding Agency,13/07/2015,16-18 Apprenticeships - Centralised Contract Management,Main Funding,A4E LTD,16APR_59638,"10,578.59",Programme System File
BIS,Skills Funding Agency,13/07/2015,16-18 Apprenticeships - Centralised Contract Management,Main Funding,ABINGDON & WITNEY COLLEGE,16APC_11489,"-78,990.46",Programme System File
BIS,Skills Funding Agency,13/07/2015,16-18 Apprenticeships - Centralised Contract Management,Main Funding,ABINGDON & WITNEY COLLEGE,16APR_60081,"114,044.62",Programme System File
BIS,Skills Funding Agency,13/07/2015,16-18 Apprenticeships - Centralised Contract Management,Main Funding,ACACIA TRAINING & DEVELOPMENT LTD,16APR_60078,"37,525.15",Programme System File
BIS,Skills Funding Agency,13/07/2015,16-18 Apprenticeships - Centralised Contract Management,Main Funding,ACACIA TRAINING LTD,16APR_59642,"3,097.14",Programme System File
BIS,Skills Funding Agency,13/07/2015,16-18 Apprenticeships - Centralised Contract Management,Main Funding,ACADEMIES ENTERPRISE,16APC_11657,"-17,553.77",Programme System File
BIS,Skills Funding Agency,13/07/2015,16-18 Apprenticeships - Centralised Contract Management,Main Funding,ACADEMIES ENTERPRISE,16APR_60318,"17,669.86",Programme System File
BIS,Skills Funding Agency,13/07/2015,16-18 Apprenticeships - Centralised Contract Management,Main Funding,ACADEMY EDUCATION LTD,16APR_60181,"32,364.21",Programme System File
BIS,Skills Funding Agency,13/07/2015,16-18 Apprenticeships - Centralised Contract Management,Main Funding,ACADEMY HAIR & BEAUTY LTD,16APC_11865,"-1,340.55",Programme System File
BIS,Skills Funding Agency,13/07/2015,16-18 Apprenticeships - Centralised Contract Management,Main Funding,ACADEMY HAIR & BEAUTY LTD,16APR_60833,"9,042.80",Programme System File
BIS,Skills Funding Agency,13/07/2015,16-18 Apprenticeships - Centralised Contract Management,Main Funding,ACADEMY TRANSFORMATION TRUST,16APR_60431,"2,012.46",Programme System File
BIS,Skills Funding Agency,13/07/2015,16-18 Apprenticeships - Centralised Contract Management,Main Funding,ACCESS TO MUSIC LTD,16APR_59875,"-6,081.30",Programme System File
BIS,Skills Funding Agency,13/07/2015,16-18 Apprenticeships - Centralised Contract Management,Main Funding,ACCESS TRAINING EAST MIDLANDS LTD,16APC_11682,"-21,087.26",Programme System File
BIS,Skills Funding Agency,13/07/2015,16-18 Apprenticeships - Centralised Contract Management,Main Funding,ACCESS TRAINING EAST MIDLANDS LTD,16APR_60435,"57,591.58",Programme System File
BIS,Skills Funding Agency,13/07/2015,16-18 Apprenticeships - Centralised Contract Management,Main Funding,ACCESS TRAINING LTD,16APR_60661,"51,411.09",Programme System File
BIS,Skills Funding Agency,13/07/2015,16-18 Apprenticeships - Centralised Contract Management,Main Funding,ACCRINGTON & ROSSENDALE COLLEGE,16APC_11261,"-60,751.42",Programme System File
BIS,Skills Funding Agency,13/07/2015,16-18 Apprenticeships - Centralised Contract Management,Main Funding,ACCRINGTON & ROSSENDALE COLLEGE,16APR_59650,"128,678.72",Programme System File
BIS,Skills Funding Agency,13/07/2015,16-18 Apprenticeships - Centralised Contract Management,Main Funding,ACHIEVEMENT TRAINING LIMITED,16APR_60090,"36,374.59",Programme System File
BIS,Skills Funding Agency,13/07/2015,16-18 Apprenticeships - Centralised Contract Management,Main Funding,AGE UK TRADING LTD,16APR_60615,"78,139.43",Programme System File
BIS,Skills Funding Agency,13/07/2015,16-18 Apprenticeships - Centralised Contract Management,Main Funding,AGILISYS ARCH LTD,16APC_11870,"-2,710.90",Programme System File
BIS,Skills Funding Agency,13/07/2015,16-18 Apprenticeships - Centralised Contract Management,Main Funding,AGILISYS ARCH LTD,16APR_60767,"204,817.05",Programme System File
BIS,Skills Funding Agency,13/07/2015,16-18 Apprenticeships - Centralised Contract Management,Main Funding,ALDER TRAINING LTD,16APR_59653,"47,978.65",Programme System File
BIS,Skills Funding Agency,13/07/2015,16-18 Apprenticeships - Centralised Contract Management,Main Funding,ALL TRADES TRAINING LIMITED,16APC_11375,-15.11,Programme System File
BIS,Skills Funding Agency,13/07/2015,16-18 Apprenticeships - Centralised Contract Management,Main Funding,ALL TRADES TRAINING LIMITED,16APR_59879,"2,520.19",Programme System File
BIS,Skills Funding Agency,13/07/2015,16-18 Apprenticeships - Centralised Contract Management,Main Funding,ALLIANCE LEARNING LTD,16APC_11265,"-26,060.95",Programme System File
BIS,Skills Funding Agency,13/07/2015,16-18 Apprenticeships - Centralised Contract Management,Main Funding,ALLIANCE LEARNING LTD,16APR_59657,"104,630.10",Programme System File
BIS,Skills Funding Agency,13/07/2015,16-18 Apprenticeships - Centralised Contract Management,Main Funding,ALPHA BUILDING SERVICES ENGINEERING LTD,16APC_11516,"-24,071.64",Programme System File
BIS,Skills Funding Agency,13/07/2015,16-18 Apprenticeships - Centralised Contract Management,Main Funding,ALPHA BUILDING SERVICES ENGINEERING LTD,16APR_60121,"35,548.29",Programme System File
BIS,Skills Funding Agency,13/07/2015,16-18 Apprenticeships - Centralised Contract Management,Main Funding,AMERSHAM & WYCOMBE COLLEGE,16APC_11487,"-52,019.99",Programme System File
BIS,Skills Funding Agency,13/07/2015,16-18 Apprenticeships - Centralised Contract Management,Main Funding,AMERSHAM & WYCOMBE COLLEGE,16APR_60077,"72,524.09",Programme System File
BIS,Skills Funding Agency,13/07/2015,16-18 Apprenticeships - Centralised Contract Management,Main Funding,ANDERSON STOCKLEY ACCREDITED TRAINING LTD,16APR_60427,"16,092.51",Programme System File
BIS,Skills Funding Agency,13/07/2015,16-18 Apprenticeships - Centralised Contract Management,Main Funding,ANDREW COLLINGE TRAINING LTD,16APR_60919,"64,107.09",Programme System File
BIS,Skills Funding Agency,13/07/2015,16-18 Apprenticeships - Centralised Contract Management,Main Funding,ANNE CLARKE ASSOCIATES LTD,16APR_59872,"2,241.17",Programme System File
BIS,Skills Funding Agency,13/07/2015,16-18 Apprenticeships - Centralised Contract Management,Main Funding,APPRENTICE FUNDING ASSISTANT LTD,16APR_59874,"63,934.08",Programme System File
BIS,Skills Funding Agency,13/07/2015,16-18 Apprenticeships - Centralised Contract Management,Main Funding,APPRENTICE SCHOOL CHARITABLE TRUST,16APC_11443,"-5,786.37",Programme System File
BIS,Skills Funding Agency,13/07/2015,16-18 Apprenticeships - Centralised Contract Management,Main Funding,APPRENTICE SCHOOL CHARITABLE TRUST,16APR_59998,"38,454.37",Programme System File
BIS,Skills Funding Agency,13/07/2015,16-18 Apprenticeships - Centralised Contract Management,Main Funding,APPRENTICESHIPS & TRAINING SERVICES CONSORTIUM LIMITED,16APR_60165,"102,770.82",Programme System File
BIS,Skills Funding Agency,13/07/2015,16-18 Apprenticeships - Centralised Contract Management,Main Funding,APPRIS CHARITY LIMITED,16APR_60657,"78,578.80",Programme System File
BIS,Skills Funding Agency,13/07/2015,16-18 Apprenticeships - Centralised Contract Management,Main Funding,ASHTON UNDER LYNE SIXTH FORM COLLEGE,16APR_59641,"1,450.27",Programme System File
BIS,Skills Funding Agency,13/07/2015,16-18 Apprenticeships - Centralised Contract Management,Main Funding,ASKHAM BRYAN COLLEGE,16APC_11791,"-199,291.91",Programme System File
BIS,Skills Funding Agency,13/07/2015,16-18 Apprenticeships - Centralised Contract Management,Main Funding,ASKHAM BRYAN COLLEGE,16APR_60658,"265,971.02",Programme System File
BIS,Skills Funding Agency,13/07/2015,16-18 Apprenticeships - Centralised Contract Management,Main Funding,ASPIRATION TRAINING LTD,16APR_60433,"65,205.15",Programme System File
BIS,Skills Funding Agency,13/07/2015,16-18 Apprenticeships - Centralised Contract Management,Main Funding,ASPIRE ACHIEVE ADVANCE LIMITED,16APR_60428,"1,333,452.14",Programme System File
BIS,Skills Funding Agency,13/07/2015,16-18 Apprenticeships - Centralised Contract Management,Main Funding,ASPIRE TRAINING TEAM,16APC_11491,"-12,523.06",Programme System File
BIS,Skills Funding Agency,13/07/2015,16-18 Apprenticeships - Centralised Contract Management,Main Funding,ASPIRE TRAINING TEAM,16APR_60084,"49,104.91",Programme System File
BIS,Skills Funding Agency,13/07/2015,16-18 Apprenticeships - Centralised Contract Management,Main Funding,ASSET TRAINING & CONSULTANCY LTD,16APR_59643,"36,716.20",Programme System File
BIS,Skills Funding Agency,13/07/2015,16-18 Apprenticeships - Centralised Contract Management,Main Funding,ASTUTE MINDS LTD,16APR_60189,"75,745.46",Programme System File
BIS,Skills Funding Agency,13/07/2015,16-18 Apprenticeships - Centralised Contract Management,Main Funding,ATG TRAINING,16APR_60086,"61,868.66",Programme System File
BIS,Skills Funding Agency,13/07/2015,16-18 Apprenticeships - Centralised Contract Management,Main Funding,AURELIA TRAINING LTD,16APC_11685,-475.17,Programme System File
BIS,Skills Funding Agency,13/07/2015,16-18 Apprenticeships - Centralised Contract Management,Main Funding,AURELIA TRAINING LTD,16APR_60439,"7,189.70",Programme System File
BIS,Skills Funding Agency,13/07/2015,16-18 Apprenticeships - Centralised Contract Management,Main Funding,AVANT PARTNERSHIP LTD,16APR_60663,"39,609.05",Programme System File
BIS,Skills Funding Agency,13/07/2015,16-18 Apprenticeships - Centralised Contract Management,Main Funding,AVANTA ENTERPRISE LTD,16APR_60685,"51,513.79",Programme System File
BIS,Skills Funding Agency,13/07/2015,16-18 Apprenticeships - Centralised Contract Management,Main Funding,AWE PLC,16APC_11504,"-52,378.07",Programme System File
BIS,Skills Funding Agency,13/07/2015,16-18 Apprenticeships - Centralised Contract Management,Main Funding,AWE PLC,16APR_60109,"54,488.08",Programme System File
BIS,Skills Funding Agency,13/07/2015,16-18 Apprenticeships - Centralised Contract Management,Main Funding,AXIA SOLUTIONS LTD,16APR_59673,"23,981.38",Programme System File
BIS,Skills Funding Agency,13/07/2015,16-18 Apprenticeships - Centralised Contract Management,Main Funding,AYLESBURY COLLEGE,16APR_60114,"82,669.66",Programme System File
BIS,Skills Funding Agency,13/07/2015,16-18 Apprenticeships - Centralised Contract Management,Main Funding,B SKILL LTD,16APC_11799,"-3,072.11",Programme System File
BIS,Skills Funding Agency,13/07/2015,16-18 Apprenticeships - Centralised Contract Management,Main Funding,B SKILL LTD,16APR_60672,"7,441.37",Programme System File
BIS,Skills Funding Agency,13/07/2015,16-18 Apprenticeships - Centralised Contract Management,Main Funding,B2B ENGAGE LTD,16APR_60110,"84,070.35",Programme System File
BIS,Skills Funding Agency,13/07/2015,16-18 Apprenticeships - Centralised Contract Management,Main Funding,BABCOCK SKILLS DEVELOPMENT & TRAINING LTD,16APR_59904,"85,658.17",Programme System File
BIS,Skills Funding Agency,13/07/2015,16-18 Apprenticeships - Centralised Contract Management,Main Funding,BABCOCK TRAINING LTD,16APR_60361,"658,095.15",Programme System File
BIS,Skills Funding Agency,13/07/2015,16-18 Apprenticeships - Centralised Contract Management,Main Funding,BABINGTON BUSINESS COLLEGE LTD,16APR_60446,"264,570.54",Programme System File
BIS,Skills Funding Agency,13/07/2015,16-18 Apprenticeships - Centralised Contract Management,Main Funding,BAE SYSTEMS PLC,16APC_11658,"-34,397.42",Programme System File
BIS,Skills Funding Agency,13/07/2015,16-18 Apprenticeships - Centralised Contract Management,Main Funding,BAE SYSTEMS PLC,16APR_60383,"182,149.93",Programme System File
BIS,Skills Funding Agency,13/07/2015,16-18 Apprenticeships - Centralised Contract Management,Main Funding,BALTIC TRAINING SERVICES LTD,16APC_11807,"-56,607.44",Programme System File
BIS,Skills Funding Agency,13/07/2015,16-18 Apprenticeships - Centralised Contract Management,Main Funding,BALTIC TRAINING SERVICES LTD,16APR_60692,"335,020.18",Programme System File
BIS,Skills Funding Agency,13/07/2015,16-18 Apprenticeships - Centralised Contract Management,Main Funding,BARCHESTER HEALTHCARE LTD,16APR_60398,"25,512.65",Programme System File
BIS,Skills Funding Agency,13/07/2015,16-18 Apprenticeships - Centralised Contract Management,Main Funding,BARKING & DAGENHAM COLLEGE,16APC_11616,"-66,898.53",Programme System File
BIS,Skills Funding Agency,13/07/2015,16-18 Apprenticeships - Centralised Contract Management,Main Funding,BARKING & DAGENHAM COLLEGE,16APR_60316,"181,054.48",Programme System File
BIS,Skills Funding Agency,13/07/2015,16-18 Apprenticeships - Centralised Contract Management,Main Funding,BARKING & DAGENHAM LONDON BOROUGH COUNCIL,16APC_11615,"-13,198.11",Programme System File
BIS,Skills Funding Agency,13/07/2015,16-18 Apprenticeships - Centralised Contract Management,Main Funding,BARKING & DAGENHAM LONDON BOROUGH COUNCIL,16APR_60315,"15,912.67",Programme System File
BIS,Skills Funding Agency,13/07/2015,16-18 Apprenticeships - Centralised Contract Management,Main Funding,BARNARDOS,16APC_11391,"-42,945.31",Programme System File
BIS,Skills Funding Agency,13/07/2015,16-18 Apprenticeships - Centralised Contract Management,Main Funding,BARNARDOS,16APR_59906,"66,467.04",Programme System File
BIS,Skills Funding Agency,13/07/2015,16-18 Apprenticeships - Centralised Contract Management,Main Funding,BARNET AND SOUTHGATE COLLEGE,16APC_11618,"-94,834.22",Programme System File
BIS,Skills Funding Agency,13/07/2015,16-18 Apprenticeships - Centralised Contract Management,Main Funding,BARNET AND SOUTHGATE COLLEGE,16APR_60321,"152,365.65",Programme System File
BIS,Skills Funding Agency,13/07/2015,16-18 Apprenticeships - Centralised Contract Management,Main Funding,BARNFIELD COLLEGE,16APC_11680,"-27,655.34",Programme System File
BIS,Skills Funding Agency,13/07/2015,16-18 Apprenticeships - Centralised Contract Management,Main Funding,BARNFIELD COLLEGE,16APR_60425,"55,626.88",Programme System File
BIS,Skills Funding Agency,13/07/2015,16-18 Apprenticeships - Centralised Contract Management,Main Funding,BARNSLEY COLLEGE,16APC_11809,"-47,389.91",Programme System File
BIS,Skills Funding Agency,13/07/2015,16-18 Apprenticeships - Centralised Contract Management,Main Funding,BARNSLEY COLLEGE,16APR_60697,"250,631.99",Programme System File
BIS,Skills Funding Agency,13/07/2015,16-18 Apprenticeships - Centralised Contract Management,Main Funding,BASINGSTOKE COLLEGE,16APC_11423,"-8,971.36",Programme System File
BIS,Skills Funding Agency,13/07/2015,16-18 Apprenticeships - Centralised Contract Management,Main Funding,BASINGSTOKE COLLEGE,16APR_59968,"101,529.93",Programme System File
BIS,Skills Funding Agency,13/07/2015,16-18 Apprenticeships - Centralised Contract Management,Main Funding,BASINGSTOKE YOUTH ACTION TRUST LTD,16APR_59969,"30,228.97",Programme System File
BIS,Skills Funding Agency,13/07/2015,16-18 Apprenticeships - Centralised Contract Management,Main Funding,BCTG LIMITED,16APR_60806,"186,124.11",Programme System File
BIS,Skills Funding Agency,13/07/2015,16-18 Apprenticeships - Centralised Contract Management,Main Funding,BE TOTALLY YOU,16APC_11643,"-6,279.09",Programme System File
BIS,Skills Funding Agency,13/07/2015,16-18 Apprenticeships - Centralised Contract Management,Main Funding,BE TOTALLY YOU,16APR_60363,"20,190.25",Programme System File
BIS,Skills Funding Agency,13/07/2015,16-18 Apprenticeships - Centralised Contract Management,Main Funding,BE WISER INSURANCE SERVICES LIMITED,16APC_11480,"-76,911.38",Programme System File
BIS,Skills Funding Agency,13/07/2015,16-18 Apprenticeships - Centralised Contract Management,Main Funding,BE WISER INSURANCE SERVICES LIMITED,16APR_60052,"76,911.38",Programme System File
BIS,Skills Funding Agency,13/07/2015,16-18 Apprenticeships - Centralised Contract Management,Main Funding,BEDFORD COLLEGE,16APR_60540,"215,313.13",Programme System File
BIS,Skills Funding Agency,13/07/2015,16-18 Apprenticeships - Centralised Contract Management,Main Funding,BERKSHIRE COLLEGE OF AGRICULTURE,16APC_10916,"-38,880.34",Programme System File
BIS,Skills Funding Agency,13/07/2015,16-18 Apprenticeships - Centralised Contract Management,Main Funding,BERKSHIRE COLLEGE OF AGRICULTURE,16APC_11537,"-39,228.15",Programme System File
BIS,Skills Funding Agency,13/07/2015,16-18 Apprenticeships - Centralised Contract Management,Main Funding,BERKSHIRE COLLEGE OF AGRICULTURE,16APR_58868,"51,302.25",Programme System File
BIS,Skills Funding Agency,13/07/2015,16-18 Apprenticeships - Centralised Contract Management,Main Funding,BERKSHIRE COLLEGE OF AGRICULTURE,16APR_60182,"50,233.39",Programme System File
BIS,Skills Funding Agency,13/07/2015,16-18 Apprenticeships - Centralised Contract Management,Main Funding,BESTLAND SOLUTIONS LTD,16APR_60183,"36,633.68",Programme System File
BIS,Skills Funding Agency,13/07/2015,16-18 Apprenticeships - Centralised Contract Management,Main Funding,BEXHILL COLLEGE,16APC_11424,-652.68,Programme System File
BIS,Skills Funding Agency,13/07/2015,16-18 Apprenticeships - Centralised Contract Management,Main Funding,BEXHILL COLLEGE,16APR_59970,"4,318.81",Programme System File
BIS,Skills Funding Agency,13/07/2015,16-18 Apprenticeships - Centralised Contract Management,Main Funding,BEXLEY COLLEGE,16APC_11644,"-9,649.81",Programme System File
BIS,Skills Funding Agency,13/07/2015,16-18 Apprenticeships - Centralised Contract Management,Main Funding,BEXLEY COLLEGE,16APR_60364,"47,357.12",Programme System File
BIS,Skills Funding Agency,13/07/2015,16-18 Apprenticeships - Centralised Contract Management,Main Funding,BEXLEY YOUTH TRAINING GROUP,16APC_11645,"-12,054.15",Programme System File
BIS,Skills Funding Agency,13/07/2015,16-18 Apprenticeships - Centralised Contract Management,Main Funding,BEXLEY YOUTH TRAINING GROUP,16APR_60365,"136,429.77",Programme System File
BIS,Skills Funding Agency,13/07/2015,16-18 Apprenticeships - Centralised Contract Management,Main Funding,BHS LTD,16APC_11867,-101.70,Programme System File
BIS,Skills Funding Agency,13/07/2015,16-18 Apprenticeships - Centralised Contract Management,Main Funding,BHS LTD,16APR_60819,"13,775.67",Programme System File
BIS,Skills Funding Agency,13/07/2015,16-18 Apprenticeships - Centralised Contract Management,Main Funding,BICTON COLLEGE,16APC_11538,"-4,960.57",Programme System File
BIS,Skills Funding Agency,13/07/2015,16-18 Apprenticeships - Centralised Contract Management,Main Funding,BICTON COLLEGE,16APR_60184,"18,574.16",Programme System File
BIS,Skills Funding Agency,13/07/2015,16-18 Apprenticeships - Centralised Contract Management,Main Funding,BIRMINGHAM ELECTRICAL TRAINING LTD,16APR_60542,"35,217.74",Programme System File
BIS,Skills Funding Agency,13/07/2015,16-18 Apprenticeships - Centralised Contract Management,Main Funding,BIRMINGHAM METROPOLITAN COLLEGE,16APC_11731,"-26,575.89",Programme System File
BIS,Skills Funding Agency,13/07/2015,16-18 Apprenticeships - Centralised Contract Management,Main Funding,BIRMINGHAM METROPOLITAN COLLEGE,16APR_60543,"267,558.78",Programme System File
BIS,Skills Funding Agency,13/07/2015,16-18 Apprenticeships - Centralised Contract Management,Main Funding,BISHOP AUCKLAND COLLEGE,16APC_11842,"-55,471.25",Programme System File
BIS,Skills Funding Agency,13/07/2015,16-18 Apprenticeships - Centralised Contract Management,Main Funding,BISHOP AUCKLAND COLLEGE,16APR_60786,"95,759.54",Programme System File
BIS,Skills Funding Agency,13/07/2015,16-18 Apprenticeships - Centralised Contract Management,Main Funding,BISHOP BURTON COLLEGE,16APR_60788,"51,257.51",Programme System File
BIS,Skills Funding Agency,13/07/2015,16-18 Apprenticeships - Centralised Contract Management,Main Funding,BL TRAINING LTD,16APR_60684,"58,770.24",Programme System File
BIS,Skills Funding Agency,13/07/2015,16-18 Apprenticeships - Centralised Contract Management,Main Funding,BLACKBURN COLLEGE,16APR_59756,"73,412.72",Programme System File
BIS,Skills Funding Agency,13/07/2015,16-18 Apprenticeships - Centralised Contract Management,Main Funding,BLACKPOOL & FLYDE COLLEGE,16APC_11315,"-30,014.94",Programme System File
BIS,Skills Funding Agency,13/07/2015,16-18 Apprenticeships - Centralised Contract Management,Main Funding,BLACKPOOL & FLYDE COLLEGE,16APR_59760,"139,840.56",Programme System File
BIS,Skills Funding Agency,13/07/2015,16-18 Apprenticeships - Centralised Contract Management,Main Funding,BLUE TRAINING UK LTD,16APR_59758,"20,169.09",Programme System File
BIS,Skills Funding Agency,13/07/2015,16-18 Apprenticeships - Centralised Contract Management,Main Funding,BOLTON COMMUNITY COLLEGE,16APC_11259,"-33,491.73",Programme System File
BIS,Skills Funding Agency,13/07/2015,16-18 Apprenticeships - Centralised Contract Management,Main Funding,BOLTON COMMUNITY COLLEGE,16APR_59647,"114,837.55",Programme System File
BIS,Skills Funding Agency,13/07/2015,16-18 Apprenticeships - Centralised Contract Management,Main Funding,BOOTS OPTICANS PROFESSIONAL SERVICES LTD,16APC_11730,"-17,180.32",Programme System File
BIS,Skills Funding Agency,13/07/2015,16-18 Apprenticeships - Centralised Contract Management,Main Funding,BOOTS OPTICANS PROFESSIONAL SERVICES LTD,16APR_60463,"22,287.55",Programme System File
BIS,Skills Funding Agency,13/07/2015,16-18 Apprenticeships - Centralised Contract Management,Main Funding,BOROUGH OF POOLE,16APC_11533,"-1,011.44",Programme System File
BIS,Skills Funding Agency,13/07/2015,16-18 Apprenticeships - Centralised Contract Management,Main Funding,BOROUGH OF POOLE,16APR_60173,"3,835.71",Programme System File
BIS,Skills Funding Agency,13/07/2015,16-18 Apprenticeships - Centralised Contract Management,Main Funding,BOSCH AUTOMOTIVE SERVICE SOLUTIONS LTD,16APC_11373,"-173,799.23",Programme System File
BIS,Skills Funding Agency,13/07/2015,16-18 Apprenticeships - Centralised Contract Management,Main Funding,BOSCH AUTOMOTIVE SERVICE SOLUTIONS LTD,16APR_59876,"272,118.92",Programme System File
BIS,Skills Funding Agency,13/07/2015,16-18 Apprenticeships - Centralised Contract Management,Main Funding,BOSTON COLLEGE,16APC_11683,"-9,347.19",Programme System File
BIS,Skills Funding Agency,13/07/2015,16-18 Apprenticeships - Centralised Contract Management,Main Funding,BOSTON COLLEGE,16APR_60436,"73,520.79",Programme System File
BIS,Skills Funding Agency,13/07/2015,16-18 Apprenticeships - Centralised Contract Management,Main Funding,BOURNEMOUTH & POOLE COLLEGE,16APC_11493,"-177,500.17",Programme System File
BIS,Skills Funding Agency,13/07/2015,16-18 Apprenticeships - Centralised Contract Management,Main Funding,BOURNEMOUTH & POOLE COLLEGE,16APR_60088,"429,993.52",Programme System File
BIS,Skills Funding Agency,13/07/2015,16-18 Apprenticeships - Centralised Contract Management,Main Funding,BOURNVILLE COLLEGE OF HIGHER EDUCATION,16APR_60438,"64,157.93",Programme System File
BIS,Skills Funding Agency,13/07/2015,16-18 Apprenticeships - Centralised Contract Management,Main Funding,BPP HOLDINGS PLC,16APC_11553,"-175,291.05",Programme System File
BIS,Skills Funding Agency,13/07/2015,16-18 Apprenticeships - Centralised Contract Management,Main Funding,BPP HOLDINGS PLC,16APR_60203,"176,150.64",Programme System File
BIS,Skills Funding Agency,13/07/2015,16-18 Apprenticeships - Centralised Contract Management,Main Funding,BRACKNELL & WOKINGHAM COLLEGE,16APR_60096,"55,513.49",Programme System File
BIS,Skills Funding Agency,13/07/2015,16-18 Apprenticeships - Centralised Contract Management,Main Funding,BRADFORD CITY COUNCIL,16APR_60668,"5,755.83",Programme System File
BIS,Skills Funding Agency,13/07/2015,16-18 Apprenticeships - Centralised Contract Management,Main Funding,BRADFORD COLLEGE,16APC_11796,"-123,772.31",Programme System File
BIS,Skills Funding Agency,13/07/2015,16-18 Apprenticeships - Centralised Contract Management,Main Funding,BRADFORD COLLEGE,16APR_60669,"319,073.84",Programme System File
BIS,Skills Funding Agency,13/07/2015,16-18 Apprenticeships - Centralised Contract Management,Main Funding,BRIDGWATER COLLEGE,16APC_11499,"-115,018.29",Programme System File
BIS,Skills Funding Agency,13/07/2015,16-18 Apprenticeships - Centralised Contract Management,Main Funding,BRIDGWATER COLLEGE,16APR_60098,"312,361.53",Programme System File
BIS,Skills Funding Agency,13/07/2015,16-18 Apprenticeships - Centralised Contract Management,Main Funding,BRIGHT HORIZONS FAMILY SOLUTIONS LTD,16APC_11473,"-17,573.23",Programme System File
BIS,Skills Funding Agency,13/07/2015,16-18 Apprenticeships - Centralised Contract Management,Main Funding,BRIGHT HORIZONS FAMILY SOLUTIONS LTD,16APR_60039,"17,796.40",Programme System File
BIS,Skills Funding Agency,13/07/2015,16-18 Apprenticeships - Centralised Contract Management,Main Funding,BRINSWORTH TRAINING LIMITED,16APR_60671,"59,392.28",Programme System File
BIS,Skills Funding Agency,13/07/2015,16-18 Apprenticeships - Centralised Contract Management,Main Funding,BRISTOL CITY COUNCIL,16APC_11501,-656.23,Programme System File
BIS,Skills Funding Agency,13/07/2015,16-18 Apprenticeships - Centralised Contract Management,Main Funding,BRISTOL CITY COUNCIL,16APR_60100,"53,988.11",Programme System File
BIS,Skills Funding Agency,13/07/2015,16-18 Apprenticeships - Centralised Contract Management,Main Funding,BRITISH ARMY,16APR_59786,"854,349.36",Programme System File
BIS,Skills Funding Agency,13/07/2015,16-18 Apprenticeships - Centralised Contract Management,Main Funding,BRITISH GAS SERVICES LIMITED,16APR_59935,"13,169.55",Programme System File
BIS,Skills Funding Agency,13/07/2015,16-18 Apprenticeships - Centralised Contract Management,Main Funding,BRITISH NUCLEAR FUELS PLC,16APR_59825,"11,258.38",Programme System File
BIS,Skills Funding Agency,13/07/2015,16-18 Apprenticeships - Centralised Contract Management,Main Funding,BRITISH PRINTING INDUSTRIES FEDERATION LTD,16APR_59882,"27,254.24",Programme System File
BIS,Skills Funding Agency,13/07/2015,16-18 Apprenticeships - Centralised Contract Management,Main Funding,BRITISH TELECOM PLC,16APC_11525,"-1,795.57",Programme System File
BIS,Skills Funding Agency,13/07/2015,16-18 Apprenticeships - Centralised Contract Management,Main Funding,BRITISH TELECOM PLC,16APR_60004,"123,056.12",Programme System File
BIS,Skills Funding Agency,13/07/2015,16-18 Apprenticeships - Centralised Contract Management,Main Funding,BROADLAND DISTRICT COUNCIL,16APC_11381,"-10,327.19",Programme System File
BIS,Skills Funding Agency,13/07/2015,16-18 Apprenticeships - Centralised Contract Management,Main Funding,BROADLAND DISTRICT COUNCIL,16APR_59888,"73,801.94",Programme System File
BIS,Skills Funding Agency,13/07/2015,16-18 Apprenticeships - Centralised Contract Management,Main Funding,BROCKENHURST COLLEGE,16APC_11378,"-7,329.17",Programme System File
BIS,Skills Funding Agency,13/07/2015,16-18 Apprenticeships - Centralised Contract Management,Main Funding,BROCKENHURST COLLEGE,16APR_59884,"39,289.34",Programme System File
BIS,Skills Funding Agency,13/07/2015,16-18 Apprenticeships - Centralised Contract Management,Main Funding,BROMLEY COLLEGE OF FURTHER & HIGHER EDUCATION,16APR_60218,"92,527.70",Programme System File
BIS,Skills Funding Agency,13/07/2015,16-18 Apprenticeships - Centralised Contract Management,Main Funding,BROOKLANDS TECHNICAL COLLEGE,16APC_11376,"-283,245.75",Programme System File
BIS,Skills Funding Agency,13/07/2015,16-18 Apprenticeships - Centralised Contract Management,Main Funding,BROOKLANDS TECHNICAL COLLEGE,16APR_59880,"676,550.07",Programme System File
BIS,Skills Funding Agency,13/07/2015,16-18 Apprenticeships - Centralised Contract Management,Main Funding,BROOKSBY MELTON COLLEGE,16APR_60547,"16,705.54",Programme System File
BIS,Skills Funding Agency,13/07/2015,16-18 Apprenticeships - Centralised Contract Management,Main Funding,BUCKINGHAMSHIRE COUNTY COUNCIL,16APC_11503,"-7,184.12",Programme System File
BIS,Skills Funding Agency,13/07/2015,16-18 Apprenticeships - Centralised Contract Management,Main Funding,BUCKINGHAMSHIRE COUNTY COUNCIL,16APR_60103,"19,120.48",Programme System File
BIS,Skills Funding Agency,13/07/2015,16-18 Apprenticeships - Centralised Contract Management,Main Funding,BUILDING CRAFTS COLLEGE,16APC_11562,"-12,590.46",Programme System File
BIS,Skills Funding Agency,13/07/2015,16-18 Apprenticeships - Centralised Contract Management,Main Funding,BUILDING CRAFTS COLLEGE,16APR_60227,"20,102.87",Programme System File
BIS,Skills Funding Agency,13/07/2015,16-18 Apprenticeships - Centralised Contract Management,Main Funding,BUILDING ENGINEERING SERVICES TRAINING LTD,16APR_60105,"81,882.26",Programme System File
BIS,Skills Funding Agency,13/07/2015,16-18 Apprenticeships - Centralised Contract Management,Main Funding,BURNLEY COLLEGE,16APC_11269,"-26,376.20",Programme System File
BIS,Skills Funding Agency,13/07/2015,16-18 Apprenticeships - Centralised Contract Management,Main Funding,BURNLEY COLLEGE,16APR_59663,"143,125.23",Programme System File
BIS,Skills Funding Agency,13/07/2015,16-18 Apprenticeships - Centralised Contract Management,Main Funding,BURTON & SOUTH DERBYSHIRE COLLEGE,16APC_11271,"-1,510.49",Programme System File
BIS,Skills Funding Agency,13/07/2015,16-18 Apprenticeships - Centralised Contract Management,Main Funding,BURTON & SOUTH DERBYSHIRE COLLEGE,16APR_59665,"83,770.94",Programme System File
BIS,Skills Funding Agency,13/07/2015,16-18 Apprenticeships - Centralised Contract Management,Main Funding,BURY COLLEGE,16APR_59667,"85,100.93",Programme System File
BIS,Skills Funding Agency,13/07/2015,16-18 Apprenticeships - Centralised Contract Management,Main Funding,BUSINESS MANAGEMENT RESOURCES UK LTD,16APR_60108,"4,350.15",Programme System File
BIS,Skills Funding Agency,13/07/2015,16-18 Apprenticeships - Centralised Contract Management,Main Funding,BUSY BEES NURSERIES,16APC_11273,"-142,991.38",Programme System File
BIS,Skills Funding Agency,13/07/2015,16-18 Apprenticeships - Centralised Contract Management,Main Funding,BUSY BEES NURSERIES,16APR_59670,"217,677.40",Programme System File
BIS,Skills Funding Agency,13/07/2015,16-18 Apprenticeships - Centralised Contract Management,Main Funding,CABLECOM TRAINING LTD,16APC_11800,"-1,911.14",Programme System File
BIS,Skills Funding Agency,13/07/2015,16-18 Apprenticeships - Centralised Contract Management,Main Funding,CABLECOM TRAINING LTD,16APR_60673,"6,001.08",Programme System File
BIS,Skills Funding Agency,13/07/2015,16-18 Apprenticeships - Centralised Contract Management,Main Funding,CADCENTRE UK LTD,16APR_60255,"23,224.16",Programme System File
BIS,Skills Funding Agency,13/07/2015,16-18 Apprenticeships - Centralised Contract Management,Main Funding,CALDERDALE COLLEGE,16APC_11802,"-6,766.90",Programme System File
BIS,Skills Funding Agency,13/07/2015,16-18 Apprenticeships - Centralised Contract Management,Main Funding,CALDERDALE COLLEGE,16APR_60674,"58,676.63",Programme System File
BIS,Skills Funding Agency,13/07/2015,16-18 Apprenticeships - Centralised Contract Management,Main Funding,CAMBRIDGE REGIONAL COLLEGE,16APC_11387,"-272,200.80",Programme System File
BIS,Skills Funding Agency,13/07/2015,16-18 Apprenticeships - Centralised Contract Management,Main Funding,CAMBRIDGE REGIONAL COLLEGE,16APR_59896,"546,948.73",Programme System File
BIS,Skills Funding Agency,13/07/2015,16-18 Apprenticeships - Centralised Contract Management,Main Funding,CANTERBURY COLLEGE,16APC_11389,"-136,597.88",Programme System File
BIS,Skills Funding Agency,13/07/2015,16-18 Apprenticeships - Centralised Contract Management,Main Funding,CANTERBURY COLLEGE,16APR_59901,"200,694.71",Programme System File
BIS,Skills Funding Agency,13/07/2015,16-18 Apprenticeships - Centralised Contract Management,Main Funding,CAPEL MANOR COLLEGE,16APC_11589,"-4,755.25",Programme System File
BIS,Skills Funding Agency,13/07/2015,16-18 Apprenticeships - Centralised Contract Management,Main Funding,CAPEL MANOR COLLEGE,16APR_60269,"9,531.01",Programme System File
BIS,Skills Funding Agency,13/07/2015,16-18 Apprenticeships - Centralised Contract Management,Main Funding,CAPITA PLC,16APR_59639,"52,296.72",Programme System File
BIS,Skills Funding Agency,13/07/2015,16-18 Apprenticeships - Centralised Contract Management,Main Funding,CAPITAL ENGINEERING GROUP HOLDINGS LTD,16APR_60101,"32,673.94",Programme System File
BIS,Skills Funding Agency,13/07/2015,16-18 Apprenticeships - Centralised Contract Management,Main Funding,CARE LEARNING CENTRE ISLE OF WIGHT LTD,16APC_11573,"-7,900.67",Programme System File
BIS,Skills Funding Agency,13/07/2015,16-18 Apprenticeships - Centralised Contract Management,Main Funding,CARE LEARNING CENTRE ISLE OF WIGHT LTD,16APR_60256,"22,083.47",Programme System File
BIS,Skills Funding Agency,13/07/2015,16-18 Apprenticeships - Centralised Contract Management,Main Funding,CARE TRAINING EAST MIDLANDS LIMITED,16APR_60441,"23,535.09",Programme System File
BIS,Skills Funding Agency,13/07/2015,16-18 Apprenticeships - Centralised Contract Management,Main Funding,CARILLION CONSTRUCTION LTD,16APR_60226,"781,772.41",Programme System File
BIS,Skills Funding Agency,13/07/2015,16-18 Apprenticeships - Centralised Contract Management,Main Funding,CARLISLE COLLEGE,16APC_11267,"-49,805.02",Programme System File
BIS,Skills Funding Agency,13/07/2015,16-18 Apprenticeships - Centralised Contract Management,Main Funding,CARLISLE COLLEGE,16APR_59660,"110,637.72",Programme System File
BIS,Skills Funding Agency,13/07/2015,16-18 Apprenticeships - Centralised Contract Management,Main Funding,CARSHALTON COLLEGE,16APC_11572,"-55,856.90",Programme System File
BIS,Skills Funding Agency,13/07/2015,16-18 Apprenticeships - Centralised Contract Management,Main Funding,CARSHALTON COLLEGE,16APR_60240,"105,221.42",Programme System File
BIS,Skills Funding Agency,13/07/2015,16-18 Apprenticeships - Centralised Contract Management,Main Funding,CENTRAL BEDFORDSHIRE COLLEGE,16APC_11686,"-67,521.21",Programme System File
BIS,Skills Funding Agency,13/07/2015,16-18 Apprenticeships - Centralised Contract Management,Main Funding,CENTRAL BEDFORDSHIRE COLLEGE,16APR_60443,"85,433.40",Programme System File
BIS,Skills Funding Agency,13/07/2015,16-18 Apprenticeships - Centralised Contract Management,Main Funding,CENTRAL COLLEGE NOTTINGHAM,16APR_60444,"209,237.27",Programme System File
BIS,Skills Funding Agency,13/07/2015,16-18 Apprenticeships - Centralised Contract Management,Main Funding,CENTRAL SUSSEX COLLEGE,16APC_11382,"-9,223.24",Programme System File
BIS,Skills Funding Agency,13/07/2015,16-18 Apprenticeships - Centralised Contract Management,Main Funding,CENTRAL SUSSEX COLLEGE,16APR_59890,"85,517.84",Programme System File
BIS,Skills Funding Agency,13/07/2015,16-18 Apprenticeships - Centralised Contract Management,Main Funding,CENTRAL TRAINING ACADEMY LTD,16APC_11384,"-14,771.18",Programme System File
BIS,Skills Funding Agency,13/07/2015,16-18 Apprenticeships - Centralised Contract Management,Main Funding,CENTRAL TRAINING ACADEMY LTD,16APR_59893,"122,578.33",Programme System File
BIS,Skills Funding Agency,13/07/2015,16-18 Apprenticeships - Centralised Contract Management,Main Funding,CHAMBER TRAINING HUMBER LTD,16APR_60677,"47,304.01",Programme System File
BIS,Skills Funding Agency,13/07/2015,16-18 Apprenticeships - Centralised Contract Management,Main Funding,CHAPMAN BENNETT ASSOCIATES LIMITED,16APR_59899,"6,937.51",Programme System File
BIS,Skills Funding Agency,13/07/2015,16-18 Apprenticeships - Centralised Contract Management,Main Funding,CHARNWOOD TRAINING GROUP LTD,16APR_60297,"33,325.53",Programme System File
BIS,Skills Funding Agency,13/07/2015,16-18 Apprenticeships - Centralised Contract Management,Main Funding,CHEADLE & MARPLE SIXTH FORM COLLEGE,16APC_11274,"-9,848.13",Programme System File
BIS,Skills Funding Agency,13/07/2015,16-18 Apprenticeships - Centralised Contract Management,Main Funding,CHEADLE & MARPLE SIXTH FORM COLLEGE,16APR_59672,"19,112.12",Programme System File
BIS,Skills Funding Agency,13/07/2015,16-18 Apprenticeships - Centralised Contract Management,Main Funding,CHELMSFORD COLLEGE,16APR_59902,"56,492.03",Programme System File
BIS,Skills Funding Agency,13/07/2015,16-18 Apprenticeships - Centralised Contract Management,Main Funding,CHESTERFIELD COLLEGE,16APC_11804,"-54,526.15",Programme System File
BIS,Skills Funding Agency,13/07/2015,16-18 Apprenticeships - Centralised Contract Management,Main Funding,CHESTERFIELD COLLEGE,16APR_60681,"282,686.22",Programme System File
BIS,Skills Funding Agency,13/07/2015,16-18 Apprenticeships - Centralised Contract Management,Main Funding,CHEYNES MANAGEMENT LTD,16APC_11394,"-121,829.99",Programme System File
BIS,Skills Funding Agency,13/07/2015,16-18 Apprenticeships - Centralised Contract Management,Main Funding,CHEYNES MANAGEMENT LTD,16APR_59909,"207,033.61",Programme System File
BIS,Skills Funding Agency,13/07/2015,16-18 Apprenticeships - Centralised Contract Management,Main Funding,CHICHESTER COLLEGE,16APC_11397,"-50,312.26",Programme System File
BIS,Skills Funding Agency,13/07/2015,16-18 Apprenticeships - Centralised Contract Management,Main Funding,CHICHESTER COLLEGE,16APR_59913,"191,726.39",Programme System File
BIS,Skills Funding Agency,13/07/2015,16-18 Apprenticeships - Centralised Contract Management,Main Funding,CHILDRENS LINKS,16APR_60454,"19,442.01",Programme System File
BIS,Skills Funding Agency,13/07/2015,16-18 Apprenticeships - Centralised Contract Management,Main Funding,CHILTERN TRAINING LTD,16APR_60119,"85,086.45",Programme System File
BIS,Skills Funding Agency,13/07/2015,16-18 Apprenticeships - Centralised Contract Management,Main Funding,CIRENCESTER TERTIARY COLLEGE,16APC_11509,"-6,836.59",Programme System File
BIS,Skills Funding Agency,13/07/2015,16-18 Apprenticeships - Centralised Contract Management,Main Funding,CIRENCESTER TERTIARY COLLEGE,16APR_60124,"16,933.92",Programme System File
BIS,Skills Funding Agency,13/07/2015,16-18 Apprenticeships - Centralised Contract Management,Main Funding,CITB CONSTRUCTIONSKILLS,16APR_60417,"1,960,867.41",Programme System File
BIS,Skills Funding Agency,13/07/2015,16-18 Apprenticeships - Centralised Contract Management,Main Funding,CITROEN UK LTD,16APR_60432,"45,091.45",Programme System File
BIS,Skills Funding Agency,13/07/2015,16-18 Apprenticeships - Centralised Contract Management,Main Funding,CITY AND ISLINGTON COLLEGE,16APC_11620,"-36,451.69",Programme System File
BIS,Skills Funding Agency,13/07/2015,16-18 Apprenticeships - Centralised Contract Management,Main Funding,CITY AND ISLINGTON COLLEGE,16APR_60323,"46,169.70",Programme System File
BIS,Skills Funding Agency,13/07/2015,16-18 Apprenticeships - Centralised Contract Management,Main Funding,CITY COLLEGE BRIGHTON & HOVE,16APR_59915,"43,769.33",Programme System File
BIS,Skills Funding Agency,13/07/2015,16-18 Apprenticeships - Centralised Contract Management,Main Funding,CITY COLLEGE COVENTRY,16APC_11691,"-168,599.93",Programme System File
BIS,Skills Funding Agency,13/07/2015,16-18 Apprenticeships - Centralised Contract Management,Main Funding,CITY COLLEGE COVENTRY,16APR_60455,"251,443.30",Programme System File
BIS,Skills Funding Agency,13/07/2015,16-18 Apprenticeships - Centralised Contract Management,Main Funding,CITY COLLEGE PLYMOUTH,16APC_11512,"-200,535.10",Programme System File
BIS,Skills Funding Agency,13/07/2015,16-18 Apprenticeships - Centralised Contract Management,Main Funding,CITY COLLEGE PLYMOUTH,16APR_60127,"394,254.25",Programme System File
BIS,Skills Funding Agency,13/07/2015,16-18 Apprenticeships - Centralised Contract Management,Main Funding,CITY GATEWAY LTD,16APC_11623,"-2,649.57",Programme System File
BIS,Skills Funding Agency,13/07/2015,16-18 Apprenticeships - Centralised Contract Management,Main Funding,CITY GATEWAY LTD,16APR_60325,"36,721.81",Programme System File
BIS,Skills Funding Agency,13/07/2015,16-18 Apprenticeships - Centralised Contract Management,Main Funding,CITY OF BATH COLLEGE,16APC_11514,"-17,075.90",Programme System File
BIS,Skills Funding Agency,13/07/2015,16-18 Apprenticeships - Centralised Contract Management,Main Funding,CITY OF BATH COLLEGE,16APR_60131,"49,344.42",Programme System File
BIS,Skills Funding Agency,13/07/2015,16-18 Apprenticeships - Centralised Contract Management,Main Funding,CITY OF BRISTOL COLLEGE,16APR_60133,"201,333.78",Programme System File
BIS,Skills Funding Agency,13/07/2015,16-18 Apprenticeships - Centralised Contract Management,Main Funding,CITY OF LONDON ADULT EDUCATION,16APC_11626,"-48,044.20",Programme System File
BIS,Skills Funding Agency,13/07/2015,16-18 Apprenticeships - Centralised Contract Management,Main Funding,CITY OF LONDON ADULT EDUCATION,16APR_60330,"58,919.02",Programme System File
BIS,Skills Funding Agency,13/07/2015,16-18 Apprenticeships - Centralised Contract Management,Main Funding,CITY OF SUNDERLAND COLLEGE,16APC_11860,"-36,336.56",Programme System File
BIS,Skills Funding Agency,13/07/2015,16-18 Apprenticeships - Centralised Contract Management,Main Funding,CITY OF SUNDERLAND COLLEGE,16APR_60817,"100,525.63",Programme System File
BIS,Skills Funding Agency,13/07/2015,16-18 Apprenticeships - Centralised Contract Management,Main Funding,CITY OF WESTMINSTER COLLEGE,16APC_11624,"-13,018.61",Programme System File
BIS,Skills Funding Agency,13/07/2015,16-18 Apprenticeships - Centralised Contract Management,Main Funding,CITY OF WESTMINSTER COLLEGE,16APR_60326,"19,095.25",Programme System File
BIS,Skills Funding Agency,13/07/2015,16-18 Apprenticeships - Centralised Contract Management,Main Funding,CITY OF WOLVERHAMPTON COLLEGE,16APC_11693,"-100,294.73",Programme System File
BIS,Skills Funding Agency,13/07/2015,16-18 Apprenticeships - Centralised Contract Management,Main Funding,CITY OF WOLVERHAMPTON COLLEGE,16APR_60461,"208,026.75",Programme System File
BIS,Skills Funding Agency,13/07/2015,16-18 Apprenticeships - Centralised Contract Management,Main Funding,CITY OF YORK COUNCIL,16APR_60707,"8,168.34",Programme System File
BIS,Skills Funding Agency,13/07/2015,16-18 Apprenticeships - Centralised Contract Management,Main Funding,CLARKSON EVANS TRAINING LIMITED,16APC_11605,"-8,917.34",Programme System File
BIS,Skills Funding Agency,13/07/2015,16-18 Apprenticeships - Centralised Contract Management,Main Funding,CLARKSON EVANS TRAINING LIMITED,16APR_60307,"40,018.63",Programme System File
BIS,Skills Funding Agency,13/07/2015,16-18 Apprenticeships - Centralised Contract Management,Main Funding,CLEVELAND YOUTH ASSOCIATION,16APR_60708,"18,991.96",Programme System File
BIS,Skills Funding Agency,13/07/2015,16-18 Apprenticeships - Centralised Contract Management,Main Funding,COLCHESTER INSTITUTE,16APC_11402,"-101,584.65",Programme System File
BIS,Skills Funding Agency,13/07/2015,16-18 Apprenticeships - Centralised Contract Management,Main Funding,COLCHESTER INSTITUTE,16APR_59926,"295,712.11",Programme System File
BIS,Skills Funding Agency,13/07/2015,16-18 Apprenticeships - Centralised Contract Management,Main Funding,COLLEGE OF ANIMAL WELFARE LTD,16APC_11444,"-7,083.03",Programme System File
BIS,Skills Funding Agency,13/07/2015,16-18 Apprenticeships - Centralised Contract Management,Main Funding,COLLEGE OF ANIMAL WELFARE LTD,16APR_59999,"10,823.09",Programme System File
BIS,Skills Funding Agency,13/07/2015,16-18 Apprenticeships - Centralised Contract Management,Main Funding,COLLEGE OF NORTH EAST LONDON,16APC_11625,"-11,762.19",Programme System File
BIS,Skills Funding Agency,13/07/2015,16-18 Apprenticeships - Centralised Contract Management,Main Funding,COLLEGE OF NORTH EAST LONDON,16APR_60327,"60,285.04",Programme System File
BIS,Skills Funding Agency,13/07/2015,16-18 Apprenticeships - Centralised Contract Management,Main Funding,COLLEGE OF NORTH WEST LONDON,16APR_60328,"40,859.63",Programme System File
BIS,Skills Funding Agency,13/07/2015,16-18 Apprenticeships - Centralised Contract Management,Main Funding,COLLEGE OF RICHARD COLLYER,16APR_60001,"1,385.34",Programme System File
BIS,Skills Funding Agency,13/07/2015,16-18 Apprenticeships - Centralised Contract Management,Main Funding,COLLEGE OF WEST ANGLIA,16APC_11446,"-175,139.86",Programme System File
BIS,Skills Funding Agency,13/07/2015,16-18 Apprenticeships - Centralised Contract Management,Main Funding,COLLEGE OF WEST ANGLIA,16APR_60002,"346,047.29",Programme System File
BIS,Skills Funding Agency,13/07/2015,16-18 Apprenticeships - Centralised Contract Management,Main Funding,COMMUNITY TRAINING SERVICES LTD,16APR_60712,"38,697.07",Programme System File
BIS,Skills Funding Agency,13/07/2015,16-18 Apprenticeships - Centralised Contract Management,Main Funding,COMPASS GROUP UK & IRELAND LTD,16APR_60472,"7,539.00",Programme System File
BIS,Skills Funding Agency,13/07/2015,16-18 Apprenticeships - Centralised Contract Management,Main Funding,CONSORTIA TRAINING LIMITED,16APC_11696,"-19,301.45",Programme System File
BIS,Skills Funding Agency,13/07/2015,16-18 Apprenticeships - Centralised Contract Management,Main Funding,CONSORTIA TRAINING LIMITED,16APR_60465,"70,822.82",Programme System File
BIS,Skills Funding Agency,13/07/2015,16-18 Apprenticeships - Centralised Contract Management,Main Funding,CORNWALL COLLEGE,16APC_11519,"-87,376.78",Programme System File
BIS,Skills Funding Agency,13/07/2015,16-18 Apprenticeships - Centralised Contract Management,Main Funding,CORNWALL COLLEGE,16APR_60140,"332,867.86",Programme System File
BIS,Skills Funding Agency,13/07/2015,16-18 Apprenticeships - Centralised Contract Management,Main Funding,COVENTRY & WARWICKSHIRE CHAMBERS OF COMMERCE TRAINING LIMITED,16APR_60467,"75,135.65",Programme System File
BIS,Skills Funding Agency,13/07/2015,16-18 Apprenticeships - Centralised Contract Management,Main Funding,COVET LTD,16APR_60139,"25,815.96",Programme System File
BIS,Skills Funding Agency,13/07/2015,16-18 Apprenticeships - Centralised Contract Management,Main Funding,CRACKERJACK TRAINING LTD,16APR_60470,"49,153.60",Programme System File
BIS,Skills Funding Agency,13/07/2015,16-18 Apprenticeships - Centralised Contract Management,Main Funding,CRAVEN COLLEGE,16APR_60714,"114,689.49",Programme System File
BIS,Skills Funding Agency,13/07/2015,16-18 Apprenticeships - Centralised Contract Management,Main Funding,CREATIVE PROCESS,16APR_60335,"32,462.91",Programme System File
BIS,Skills Funding Agency,13/07/2015,16-18 Apprenticeships - Centralised Contract Management,Main Funding,CROYDON COLLEGE,16APC_11627,"-120,795.89",Programme System File
BIS,Skills Funding Agency,13/07/2015,16-18 Apprenticeships - Centralised Contract Management,Main Funding,CROYDON COLLEGE,16APR_60333,"152,700.40",Programme System File
BIS,Skills Funding Agency,13/07/2015,16-18 Apprenticeships - Centralised Contract Management,Main Funding,CSM CONSULTING LTD,16APC_11522,"-14,301.94",Programme System File
BIS,Skills Funding Agency,13/07/2015,16-18 Apprenticeships - Centralised Contract Management,Main Funding,CSM CONSULTING LTD,16APR_60142,"13,211.44",Programme System File
BIS,Skills Funding Agency,13/07/2015,16-18 Apprenticeships - Centralised Contract Management,Main Funding,CUMBRIA COUNTY COUNCIL,16APR_59680,303.44,Programme System File
BIS,Skills Funding Agency,13/07/2015,16-18 Apprenticeships - Centralised Contract Management,Main Funding,D M T BUSINESS SERVICES LTD,16APR_60144,"41,040.12",Programme System File
BIS,Skills Funding Agency,13/07/2015,16-18 Apprenticeships - Centralised Contract Management,Main Funding,D MANTLE LIMITED,16APR_60480,"6,579.52",Programme System File
BIS,Skills Funding Agency,13/07/2015,16-18 Apprenticeships - Centralised Contract Management,Main Funding,DAMAR LTD,16APR_59685,"87,856.63",Programme System File
BIS,Skills Funding Agency,13/07/2015,16-18 Apprenticeships - Centralised Contract Management,Main Funding,DARLINGTON BOROUGH COUNCIL,16APR_60720,"11,058.29",Programme System File
BIS,Skills Funding Agency,13/07/2015,16-18 Apprenticeships - Centralised Contract Management,Main Funding,DARLINGTON COLLEGE,16APC_11818,"-219,072.69",Programme System File
BIS,Skills Funding Agency,13/07/2015,16-18 Apprenticeships - Centralised Contract Management,Main Funding,DARLINGTON COLLEGE,16APR_60721,"300,331.97",Programme System File
BIS,Skills Funding Agency,13/07/2015,16-18 Apprenticeships - Centralised Contract Management,Main Funding,DART LTD,16APR_60482,"34,199.04",Programme System File
BIS,Skills Funding Agency,13/07/2015,16-18 Apprenticeships - Centralised Contract Management,Main Funding,DAVIDSON TRAINING UK LIMITED,16APR_59945,"13,018.62",Programme System File
BIS,Skills Funding Agency,13/07/2015,16-18 Apprenticeships - Centralised Contract Management,Main Funding,DAWN HODGE ASSOCIATES LTD,16APR_59690,"19,427.85",Programme System File
BIS,Skills Funding Agency,13/07/2015,16-18 Apprenticeships - Centralised Contract Management,Main Funding,DEARNE VALLEY COLLEGE,16APC_11819,-201.69,Programme System File
BIS,Skills Funding Agency,13/07/2015,16-18 Apprenticeships - Centralised Contract Management,Main Funding,DEARNE VALLEY COLLEGE,16APR_60723,"40,389.47",Programme System File
BIS,Skills Funding Agency,13/07/2015,16-18 Apprenticeships - Centralised Contract Management,Main Funding,DERBY BUSINESS COLLEGE,16APC_11705,"-1,175.45",Programme System File
BIS,Skills Funding Agency,13/07/2015,16-18 Apprenticeships - Centralised Contract Management,Main Funding,DERBY BUSINESS COLLEGE,16APR_60484,"5,648.13",Programme System File
BIS,Skills Funding Agency,13/07/2015,16-18 Apprenticeships - Centralised Contract Management,Main Funding,DERBY CITY COUNCIL,16APC_11707,"-6,277.28",Programme System File
BIS,Skills Funding Agency,13/07/2015,16-18 Apprenticeships - Centralised Contract Management,Main Funding,DERBY CITY COUNCIL,16APR_60485,"19,926.65",Programme System File
BIS,Skills Funding Agency,13/07/2015,16-18 Apprenticeships - Centralised Contract Management,Main Funding,DERBY COLLEGE,16APR_60486,"253,067.79",Programme System File
BIS,Skills Funding Agency,13/07/2015,16-18 Apprenticeships - Centralised Contract Management,Main Funding,DERBYSHIRE & NOTTINGHAMSHIRE CHAMBER OF COMMERCE & INDUSTRY,16APR_60488,"29,689.85",Programme System File
BIS,Skills Funding Agency,13/07/2015,16-18 Apprenticeships - Centralised Contract Management,Main Funding,DERBYSHIRE COUNTY COUNCIL,16APC_11708,"-5,142.59",Programme System File
BIS,Skills Funding Agency,13/07/2015,16-18 Apprenticeships - Centralised Contract Management,Main Funding,DERBYSHIRE COUNTY COUNCIL,16APR_60490,"6,840.39",Programme System File
BIS,Skills Funding Agency,13/07/2015,16-18 Apprenticeships - Centralised Contract Management,Main Funding,DERBYSHIRE NETWORK,16APR_60591,"41,152.93",Programme System File
BIS,Skills Funding Agency,13/07/2015,16-18 Apprenticeships - Centralised Contract Management,Main Funding,DERWEN COLLEGE,16APR_52322,278.58,Programme System File
BIS,Skills Funding Agency,13/07/2015,16-18 Apprenticeships - Centralised Contract Management,Main Funding,DERWEN COLLEGE,16APR_53892,278.58,Programme System File
BIS,Skills Funding Agency,13/07/2015,16-18 Apprenticeships - Centralised Contract Management,Main Funding,DERWEN COLLEGE,16APR_55203,-690.79,Programme System File
BIS,Skills Funding Agency,13/07/2015,16-18 Apprenticeships - Centralised Contract Management,Main Funding,DERWEN COLLEGE,16APR_56635,140.10,Programme System File
BIS,Skills Funding Agency,13/07/2015,16-18 Apprenticeships - Centralised Contract Management,Main Funding,DERWEN COLLEGE,16APR_57896,140.10,Programme System File
BIS,Skills Funding Agency,13/07/2015,16-18 Apprenticeships - Centralised Contract Management,Main Funding,DERWEN COLLEGE,16APR_59191,140.10,Programme System File
BIS,Skills Funding Agency,13/07/2015,16-18 Apprenticeships - Centralised Contract Management,Main Funding,DERWEN COLLEGE,16APR_60491,140.10,Programme System File
BIS,Skills Funding Agency,13/07/2015,16-18 Apprenticeships - Centralised Contract Management,Main Funding,DERWENTSIDE COLLEGE,16APR_60727,"75,830.33",Programme System File
BIS,Skills Funding Agency,13/07/2015,16-18 Apprenticeships - Centralised Contract Management,Main Funding,DEVON COUNTY COUNCIL,16APC_11526,-182.11,Programme System File
BIS,Skills Funding Agency,13/07/2015,16-18 Apprenticeships - Centralised Contract Management,Main Funding,DEVON COUNTY COUNCIL,16APR_60150,332.78,Programme System File
BIS,Skills Funding Agency,13/07/2015,16-18 Apprenticeships - Centralised Contract Management,Main Funding,DHL INTERNATIONAL UK LTD,16APC_11739,"-53,653.50",Programme System File
BIS,Skills Funding Agency,13/07/2015,16-18 Apprenticeships - Centralised Contract Management,Main Funding,DHL INTERNATIONAL UK LTD,16APR_60555,"53,653.50",Programme System File
BIS,Skills Funding Agency,13/07/2015,16-18 Apprenticeships - Centralised Contract Management,Main Funding,DIDAC LTD,16APR_60151,"17,233.74",Programme System File
BIS,Skills Funding Agency,13/07/2015,16-18 Apprenticeships - Centralised Contract Management,Main Funding,DIMENSIONS TRAINING SOLUTIONS LTD,16APR_60729,"26,479.25",Programme System File
BIS,Skills Funding Agency,13/07/2015,16-18 Apprenticeships - Centralised Contract Management,Main Funding,DONCASTER COLLEGE,16APR_60906,"95,353.07",Programme System File
BIS,Skills Funding Agency,13/07/2015,16-18 Apprenticeships - Centralised Contract Management,Main Funding,DONCASTER METRO BOROUGH COUNCIL,16APR_60796,"6,982.57",Programme System File
BIS,Skills Funding Agency,13/07/2015,16-18 Apprenticeships - Centralised Contract Management,Main Funding,DONCASTER ROTHERHAM & DISTRICT MOTOR TRADES GROUP TRAINING ASSOCIATION LTD,16APC_11845,"-17,463.93",Programme System File
BIS,Skills Funding Agency,13/07/2015,16-18 Apprenticeships - Centralised Contract Management,Main Funding,DONCASTER ROTHERHAM & DISTRICT MOTOR TRADES GROUP TRAINING ASSOCIATION LTD,16APR_60794,"90,970.30",Programme System File
BIS,Skills Funding Agency,13/07/2015,16-18 Apprenticeships - Centralised Contract Management,Main Funding,DOOSAN BABCOCK LTD,16APR_60559,"65,379.15",Programme System File
BIS,Skills Funding Agency,13/07/2015,16-18 Apprenticeships - Centralised Contract Management,Main Funding,DUDLEY COLLEGE OF TECHNOLOGY,16APC_11737,"-188,731.66",Programme System File
BIS,Skills Funding Agency,13/07/2015,16-18 Apprenticeships - Centralised Contract Management,Main Funding,DUDLEY COLLEGE OF TECHNOLOGY,16APR_60560,"524,109.31",Programme System File
BIS,Skills Funding Agency,13/07/2015,16-18 Apprenticeships - Centralised Contract Management,Main Funding,DURHAM COUNTY COUNCIL,16APC_11814,"-31,453.76",Programme System File
BIS,Skills Funding Agency,13/07/2015,16-18 Apprenticeships - Centralised Contract Management,Main Funding,DURHAM COUNTY COUNCIL,16APR_60713,"31,453.76",Programme System File
BIS,Skills Funding Agency,13/07/2015,16-18 Apprenticeships - Centralised Contract Management,Main Funding,E TRAINING LTD,16APR_59983,"7,767.28",Programme System File
BIS,Skills Funding Agency,13/07/2015,16-18 Apprenticeships - Centralised Contract Management,Main Funding,EALING HAMMERSMITH & WEST LONDON COLLEGE,16APR_60370,"50,029.83",Programme System File
BIS,Skills Funding Agency,13/07/2015,16-18 Apprenticeships - Centralised Contract Management,Main Funding,EAST BERKSHIRE COLLEGE,16APC_11540,"-15,367.29",Programme System File
BIS,Skills Funding Agency,13/07/2015,16-18 Apprenticeships - Centralised Contract Management,Main Funding,EAST BERKSHIRE COLLEGE,16APR_60188,"65,397.97",Programme System File
BIS,Skills Funding Agency,13/07/2015,16-18 Apprenticeships - Centralised Contract Management,Main Funding,EAST DURHAM COLLEGE,16APC_11847,"-42,705.86",Programme System File
BIS,Skills Funding Agency,13/07/2015,16-18 Apprenticeships - Centralised Contract Management,Main Funding,EAST DURHAM COLLEGE,16APR_60798,"71,757.08",Programme System File
BIS,Skills Funding Agency,13/07/2015,16-18 Apprenticeships - Centralised Contract Management,Main Funding,EAST LINDSEY INFORMATION TECHNOLOGY CENTRE,16APR_60562,"30,575.97",Programme System File
BIS,Skills Funding Agency,13/07/2015,16-18 Apprenticeships - Centralised Contract Management,Main Funding,EAST RIDING COLLEGE,16APC_11848,"-45,900.96",Programme System File
BIS,Skills Funding Agency,13/07/2015,16-18 Apprenticeships - Centralised Contract Management,Main Funding,EAST RIDING COLLEGE,16APR_60800,"82,466.36",Programme System File
BIS,Skills Funding Agency,13/07/2015,16-18 Apprenticeships - Centralised Contract Management,Main Funding,EAST RIDING OF YORKSHIRE COUNCIL,16APR_60802,"5,661.77",Programme System File
BIS,Skills Funding Agency,13/07/2015,16-18 Apprenticeships - Centralised Contract Management,Main Funding,EAST SURREY COLLEGE,16APC_11427,"-27,932.55",Programme System File
BIS,Skills Funding Agency,13/07/2015,16-18 Apprenticeships - Centralised Contract Management,Main Funding,EAST SURREY COLLEGE,16APR_59975,"53,593.94",Programme System File
BIS,Skills Funding Agency,13/07/2015,16-18 Apprenticeships - Centralised Contract Management,Main Funding,EASTLEIGH COLLEGE,16APC_11542,"-205,261.89",Programme System File
BIS,Skills Funding Agency,13/07/2015,16-18 Apprenticeships - Centralised Contract Management,Main Funding,EASTLEIGH COLLEGE,16APR_60191,"310,649.71",Programme System File
BIS,Skills Funding Agency,13/07/2015,16-18 Apprenticeships - Centralised Contract Management,Main Funding,EASTON & OTLEY COLLEGE,16APC_11428,"-15,779.64",Programme System File
BIS,Skills Funding Agency,13/07/2015,16-18 Apprenticeships - Centralised Contract Management,Main Funding,EASTON & OTLEY COLLEGE,16APR_59976,"71,059.84",Programme System File
BIS,Skills Funding Agency,13/07/2015,16-18 Apprenticeships - Centralised Contract Management,Main Funding,ECONOMIC SOLUTIONS LTD,16APC_11322,"-8,368.67",Programme System File
BIS,Skills Funding Agency,13/07/2015,16-18 Apprenticeships - Centralised Contract Management,Main Funding,ECONOMIC SOLUTIONS LTD,16APR_59769,"462,529.49",Programme System File
BIS,Skills Funding Agency,13/07/2015,16-18 Apprenticeships - Centralised Contract Management,Main Funding,EDEN TRAINING SOLUTIONS LTD,16APR_60803,"26,797.20",Programme System File
BIS,Skills Funding Agency,13/07/2015,16-18 Apprenticeships - Centralised Contract Management,Main Funding,EDUCATION & TRAINING SKILLS LTD,16APR_60200,"18,045.25",Programme System File
BIS,Skills Funding Agency,13/07/2015,16-18 Apprenticeships - Centralised Contract Management,Main Funding,EDUCATION & YOUTH SERVICES LTD,16APR_59978,"10,165.09",Programme System File
BIS,Skills Funding Agency,13/07/2015,16-18 Apprenticeships - Centralised Contract Management,Main Funding,EEF LTD,16APC_11742,"-96,701.53",Programme System File
BIS,Skills Funding Agency,13/07/2015,16-18 Apprenticeships - Centralised Contract Management,Main Funding,EEF LTD,16APR_60570,"178,457.46",Programme System File
BIS,Skills Funding Agency,13/07/2015,16-18 Apprenticeships - Centralised Contract Management,Main Funding,ELATT,16APR_60372,-767.06,Programme System File
BIS,Skills Funding Agency,13/07/2015,16-18 Apprenticeships - Centralised Contract Management,Main Funding,ENFIELD LONDON BOROUGH COUNCIL,16APC_11651,"-4,483.07",Programme System File
BIS,Skills Funding Agency,13/07/2015,16-18 Apprenticeships - Centralised Contract Management,Main Funding,ENFIELD LONDON BOROUGH COUNCIL,16APR_60377,"14,465.20",Programme System File
BIS,Skills Funding Agency,13/07/2015,16-18 Apprenticeships - Centralised Contract Management,Main Funding,ENGLAND & WALES CRICKET BOARD LTD,16APR_60206,"18,227.66",Programme System File
BIS,Skills Funding Agency,13/07/2015,16-18 Apprenticeships - Centralised Contract Management,Main Funding,EON UK PLC,16APC_11788,"-26,317.22",Programme System File
BIS,Skills Funding Agency,13/07/2015,16-18 Apprenticeships - Centralised Contract Management,Main Funding,EON UK PLC,16APR_60655,"37,776.97",Programme System File
BIS,Skills Funding Agency,13/07/2015,16-18 Apprenticeships - Centralised Contract Management,Main Funding,EPPING FOREST COLLEGE,16APC_11431,"-2,748.66",Programme System File
BIS,Skills Funding Agency,13/07/2015,16-18 Apprenticeships - Centralised Contract Management,Main Funding,EPPING FOREST COLLEGE,16APR_59981,"28,726.58",Programme System File
BIS,Skills Funding Agency,13/07/2015,16-18 Apprenticeships - Centralised Contract Management,Main Funding,EQL SOLUTIONS LTD,16APR_59649,"221,274.94",Programme System File
BIS,Skills Funding Agency,13/07/2015,16-18 Apprenticeships - Centralised Contract Management,Main Funding,ESG (SKILLS) LIMITED,16APR_59662,"307,440.81",Programme System File
BIS,Skills Funding Agency,13/07/2015,16-18 Apprenticeships - Centralised Contract Management,Main Funding,ESSEX COUNTY COUNCIL,16APR_59984,"10,745.43",Programme System File
BIS,Skills Funding Agency,13/07/2015,16-18 Apprenticeships - Centralised Contract Management,Main Funding,EXEMPLAS HOLDINGS LTD,16APC_11652,-451.06,Programme System File
BIS,Skills Funding Agency,13/07/2015,16-18 Apprenticeships - Centralised Contract Management,Main Funding,EXEMPLAS HOLDINGS LTD,16APR_60378,"109,461.30",Programme System File
BIS,Skills Funding Agency,13/07/2015,16-18 Apprenticeships - Centralised Contract Management,Main Funding,EXETER COLLEGE,16APC_11551,"-262,595.98",Programme System File
BIS,Skills Funding Agency,13/07/2015,16-18 Apprenticeships - Centralised Contract Management,Main Funding,EXETER COLLEGE,16APR_60207,"435,623.02",Programme System File
BIS,Skills Funding Agency,13/07/2015,16-18 Apprenticeships - Centralised Contract Management,Main Funding,FAREHAM COLLEGE,16APR_60209,"143,668.25",Programme System File
BIS,Skills Funding Agency,13/07/2015,16-18 Apprenticeships - Centralised Contract Management,Main Funding,FAREPORT TRAINING ORGANISATION LTD,16APR_60211,"32,576.93",Programme System File
BIS,Skills Funding Agency,13/07/2015,16-18 Apprenticeships - Centralised Contract Management,Main Funding,FARNBOROUGH COLLEGE,16APC_11434,"-5,187.68",Programme System File
BIS,Skills Funding Agency,13/07/2015,16-18 Apprenticeships - Centralised Contract Management,Main Funding,FARNBOROUGH COLLEGE,16APR_59985,"73,712.38",Programme System File
BIS,Skills Funding Agency,13/07/2015,16-18 Apprenticeships - Centralised Contract Management,Main Funding,FASHION RETAIL ACADEMY,16APR_60379,127.13,Programme System File
BIS,Skills Funding Agency,13/07/2015,16-18 Apprenticeships - Centralised Contract Management,Main Funding,FINNING (UK) LTD,16APC_11325,"-15,503.69",Programme System File
BIS,Skills Funding Agency,13/07/2015,16-18 Apprenticeships - Centralised Contract Management,Main Funding,FINNING (UK) LTD,16APR_59774,"30,875.84",Programme System File
BIS,Skills Funding Agency,13/07/2015,16-18 Apprenticeships - Centralised Contract Management,Main Funding,FIRST CITY TRAINING LTD,16APR_60243,"3,254.13",Programme System File
BIS,Skills Funding Agency,13/07/2015,16-18 Apprenticeships - Centralised Contract Management,Main Funding,FIRST4SKILLS LIMITED,16APR_59712,"366,956.34",Programme System File
BIS,Skills Funding Agency,13/07/2015,16-18 Apprenticeships - Centralised Contract Management,Main Funding,FNTC TRAINING & CONSULTANCY LTD,16APR_60244,"35,960.62",Programme System File
BIS,Skills Funding Agency,13/07/2015,16-18 Apprenticeships - Centralised Contract Management,Main Funding,FOCUS TRAINING & DEVELOPMENT LTD,16APC_11861,"-15,692.74",Programme System File
BIS,Skills Funding Agency,13/07/2015,16-18 Apprenticeships - Centralised Contract Management,Main Funding,FOCUS TRAINING & DEVELOPMENT LTD,16APR_60823,"42,236.46",Programme System File
BIS,Skills Funding Agency,13/07/2015,16-18 Apprenticeships - Centralised Contract Management,Main Funding,FOCUS TRAINING (SW) LTD,16APR_60246,"54,484.27",Programme System File
BIS,Skills Funding Agency,13/07/2015,16-18 Apprenticeships - Centralised Contract Management,Main Funding,FOOTBALL ASSOCIATION PREMIER LEAGUE LTD,16APR_59745,"338,286.71",Programme System File
BIS,Skills Funding Agency,13/07/2015,16-18 Apprenticeships - Centralised Contract Management,Main Funding,FORSTER COMMUNITY COLLEGE,16APR_60821,"-1,989.58",Programme System File
BIS,Skills Funding Agency,13/07/2015,16-18 Apprenticeships - Centralised Contract Management,Main Funding,FOUR COUNTIES TRAINING LTD,16APR_60380,"11,349.09",Programme System File
BIS,Skills Funding Agency,13/07/2015,16-18 Apprenticeships - Centralised Contract Management,Main Funding,FRANCESCO GROUP HOLDINGS LTD,16APR_59788,"55,326.48",Programme System File
BIS,Skills Funding Agency,13/07/2015,16-18 Apprenticeships - Centralised Contract Management,Main Funding,FRANKLIN COLLEGE,16APR_60914,"1,633.07",Programme System File
BIS,Skills Funding Agency,13/07/2015,16-18 Apprenticeships - Centralised Contract Management,Main Funding,FURNESS COLLEGE,16APR_59789,"45,599.56",Programme System File
BIS,Skills Funding Agency,13/07/2015,16-18 Apprenticeships - Centralised Contract Management,Main Funding,FUTURE WIZE LTD,16APR_60824,"2,425.73",Programme System File
BIS,Skills Funding Agency,13/07/2015,16-18 Apprenticeships - Centralised Contract Management,Main Funding,G B TRAINING UK LTD,16APR_60586,"24,148.20",Programme System File
BIS,Skills Funding Agency,13/07/2015,16-18 Apprenticeships - Centralised Contract Management,Main Funding,GATESHEAD COLLEGE,16APR_60825,"148,402.96",Programme System File
BIS,Skills Funding Agency,13/07/2015,16-18 Apprenticeships - Centralised Contract Management,Main Funding,GATESHEAD COUNCIL,16APC_11900,"-21,337.20",Programme System File
BIS,Skills Funding Agency,13/07/2015,16-18 Apprenticeships - Centralised Contract Management,Main Funding,GATESHEAD COUNCIL,16APR_60908,"77,239.63",Programme System File
BIS,Skills Funding Agency,13/07/2015,16-18 Apprenticeships - Centralised Contract Management,Main Funding,GEN II ENGINEERING & TECHNOLOGY TRAINING LTD,16APR_59792,"239,610.10",Programme System File
BIS,Skills Funding Agency,13/07/2015,16-18 Apprenticeships - Centralised Contract Management,Main Funding,GHQ TRAINING LTD,16APR_60248,"31,010.25",Programme System File
BIS,Skills Funding Agency,13/07/2015,16-18 Apprenticeships - Centralised Contract Management,Main Funding,GI GROUP RECRUITMENT LTD,16APC_11299,-642.21,Programme System File
BIS,Skills Funding Agency,13/07/2015,16-18 Apprenticeships - Centralised Contract Management,Main Funding,GI GROUP RECRUITMENT LTD,16APR_59725,"10,559.60",Programme System File
BIS,Skills Funding Agency,13/07/2015,16-18 Apprenticeships - Centralised Contract Management,Main Funding,GLOUCESTERSHIRE COLLEGE OF ARTS & TECHNOLOGY,16APC_11569,"-78,359.64",Programme System File
BIS,Skills Funding Agency,13/07/2015,16-18 Apprenticeships - Centralised Contract Management,Main Funding,GLOUCESTERSHIRE COLLEGE OF ARTS & TECHNOLOGY,16APR_60252,"228,638.39",Programme System File
BIS,Skills Funding Agency,13/07/2015,16-18 Apprenticeships - Centralised Contract Management,Main Funding,GLOUCESTERSHIRE COUNTY COUNCIL,16APC_11571,"-6,663.84",Programme System File
BIS,Skills Funding Agency,13/07/2015,16-18 Apprenticeships - Centralised Contract Management,Main Funding,GLOUCESTERSHIRE COUNTY COUNCIL,16APR_60254,"10,850.22",Programme System File
BIS,Skills Funding Agency,13/07/2015,16-18 Apprenticeships - Centralised Contract Management,Main Funding,GLOUCESTERSHIRE ENGINEERING TRAINING LTD,16APR_60306,"70,295.04",Programme System File
BIS,Skills Funding Agency,13/07/2015,16-18 Apprenticeships - Centralised Contract Management,Main Funding,GP STRATEGIES TRAINING LTD,16APR_59739,"104,553.95",Programme System File
BIS,Skills Funding Agency,13/07/2015,16-18 Apprenticeships - Centralised Contract Management,Main Funding,GR & MM BLACKLEDGE PLC,16APC_11335,"-56,552.03",Programme System File
BIS,Skills Funding Agency,13/07/2015,16-18 Apprenticeships - Centralised Contract Management,Main Funding,GR & MM BLACKLEDGE PLC,16APR_59791,"67,930.79",Programme System File
BIS,Skills Funding Agency,13/07/2015,16-18 Apprenticeships - Centralised Contract Management,Main Funding,GRANTHAM COLLEGE,16APC_11752,"-1,491.36",Programme System File
BIS,Skills Funding Agency,13/07/2015,16-18 Apprenticeships - Centralised Contract Management,Main Funding,GRANTHAM COLLEGE,16APR_60595,"52,210.49",Programme System File
BIS,Skills Funding Agency,13/07/2015,16-18 Apprenticeships - Centralised Contract Management,Main Funding,GREAT YARMOUTH COLLEGE,16APC_11448,"-34,771.65",Programme System File
BIS,Skills Funding Agency,13/07/2015,16-18 Apprenticeships - Centralised Contract Management,Main Funding,GREAT YARMOUTH COLLEGE,16APR_60006,"98,873.41",Programme System File
BIS,Skills Funding Agency,13/07/2015,16-18 Apprenticeships - Centralised Contract Management,Main Funding,GREENBANK SERVICES LTD,16APR_59802,122.01,Programme System File
BIS,Skills Funding Agency,13/07/2015,16-18 Apprenticeships - Centralised Contract Management,Main Funding,GREENWICH COMMUNITY COLLEGE AT PLUMSTEAD CENTRE,16APR_60381,"2,963.41",Programme System File
BIS,Skills Funding Agency,13/07/2015,16-18 Apprenticeships - Centralised Contract Management,Main Funding,GRIMSBY INSTITUTE OF FURTHER & HIGHER EDUCATION,16APC_11868,"-24,949.01",Programme System File
BIS,Skills Funding Agency,13/07/2015,16-18 Apprenticeships - Centralised Contract Management,Main Funding,GRIMSBY INSTITUTE OF FURTHER & HIGHER EDUCATION,16APR_60835,"154,926.29",Programme System File
BIS,Skills Funding Agency,13/07/2015,16-18 Apprenticeships - Centralised Contract Management,Main Funding,GUILDFORD COLLEGE OF FURTHER & HIGHER EDUCATION,16APC_11450,"-19,092.76",Programme System File
BIS,Skills Funding Agency,13/07/2015,16-18 Apprenticeships - Centralised Contract Management,Main Funding,GUILDFORD COLLEGE OF FURTHER & HIGHER EDUCATION,16APR_60008,"94,552.03",Programme System File
BIS,Skills Funding Agency,13/07/2015,16-18 Apprenticeships - Centralised Contract Management,Main Funding,HACKNEY COMMUNITY COLLEGE,16APC_11653,"-97,927.03",Programme System File
BIS,Skills Funding Agency,13/07/2015,16-18 Apprenticeships - Centralised Contract Management,Main Funding,HACKNEY COMMUNITY COLLEGE,16APR_60382,"220,598.03",Programme System File
BIS,Skills Funding Agency,13/07/2015,16-18 Apprenticeships - Centralised Contract Management,Main Funding,HADDON TRAINING LTD,16APC_11580,"-2,407.64",Programme System File
BIS,Skills Funding Agency,13/07/2015,16-18 Apprenticeships - Centralised Contract Management,Main Funding,HADDON TRAINING LTD,16APR_60262,"86,721.33",Programme System File
BIS,Skills Funding Agency,13/07/2015,16-18 Apprenticeships - Centralised Contract Management,Main Funding,HADLOW COLLEGE,16APC_11453,"-3,947.28",Programme System File
BIS,Skills Funding Agency,13/07/2015,16-18 Apprenticeships - Centralised Contract Management,Main Funding,HADLOW COLLEGE,16APR_60010,"13,987.48",Programme System File
BIS,Skills Funding Agency,13/07/2015,16-18 Apprenticeships - Centralised Contract Management,Main Funding,HAIR & BEAUTY INDUSTRY TRAINING LTD,16APR_60837,"26,112.50",Programme System File
BIS,Skills Funding Agency,13/07/2015,16-18 Apprenticeships - Centralised Contract Management,Main Funding,HAIR ACADEMY SOUTH WEST LIMITED,16APR_60265,"60,330.38",Programme System File
BIS,Skills Funding Agency,13/07/2015,16-18 Apprenticeships - Centralised Contract Management,Main Funding,HALESOWEN COLLEGE,16APC_11754,-237.33,Programme System File
BIS,Skills Funding Agency,13/07/2015,16-18 Apprenticeships - Centralised Contract Management,Main Funding,HALESOWEN COLLEGE,16APR_60597,"15,276.34",Programme System File
BIS,Skills Funding Agency,13/07/2015,16-18 Apprenticeships - Centralised Contract Management,Main Funding,HALFORDS LTD,16APR_60113,"15,105.81",Programme System File
BIS,Skills Funding Agency,13/07/2015,16-18 Apprenticeships - Centralised Contract Management,Main Funding,HAMPSHIRE COUNTY COUNCIL,16APC_11455,"-7,048.42",Programme System File
BIS,Skills Funding Agency,13/07/2015,16-18 Apprenticeships - Centralised Contract Management,Main Funding,HAMPSHIRE COUNTY COUNCIL,16APR_60012,"7,048.42",Programme System File
BIS,Skills Funding Agency,13/07/2015,16-18 Apprenticeships - Centralised Contract Management,Main Funding,HARINGEY LONDON BOROUGH COUNCIL,16APC_11654,"-1,403.39",Programme System File
BIS,Skills Funding Agency,13/07/2015,16-18 Apprenticeships - Centralised Contract Management,Main Funding,HARINGEY LONDON BOROUGH COUNCIL,16APR_60385,"3,663.72",Programme System File
BIS,Skills Funding Agency,13/07/2015,16-18 Apprenticeships - Centralised Contract Management,Main Funding,HARLOW COLLEGE,16APC_11456,"-8,857.34",Programme System File
BIS,Skills Funding Agency,13/07/2015,16-18 Apprenticeships - Centralised Contract Management,Main Funding,HARLOW COLLEGE,16APR_60013,"102,366.98",Programme System File
BIS,Skills Funding Agency,13/07/2015,16-18 Apprenticeships - Centralised Contract Management,Main Funding,HARROW COLLEGE,16APR_60386,"17,780.72",Programme System File
BIS,Skills Funding Agency,13/07/2015,16-18 Apprenticeships - Centralised Contract Management,Main Funding,HARTLEPOOL COLLEGE OF HIGHER EDUCATION,16APR_60679,"150,771.18",Programme System File
BIS,Skills Funding Agency,13/07/2015,16-18 Apprenticeships - Centralised Contract Management,Main Funding,HARTLEPOOL SIXTH FORM COLLEGE,16APR_60683,882.74,Programme System File
BIS,Skills Funding Agency,13/07/2015,16-18 Apprenticeships - Centralised Contract Management,Main Funding,HARTPURY COLLEGE,16APC_11506,"-15,860.69",Programme System File
BIS,Skills Funding Agency,13/07/2015,16-18 Apprenticeships - Centralised Contract Management,Main Funding,HARTPURY COLLEGE,16APR_60116,"42,223.13",Programme System File
BIS,Skills Funding Agency,13/07/2015,16-18 Apprenticeships - Centralised Contract Management,Main Funding,HAVANT COLLEGE,16APC_11507,"-1,862.43",Programme System File
BIS,Skills Funding Agency,13/07/2015,16-18 Apprenticeships - Centralised Contract Management,Main Funding,HAVANT COLLEGE,16APR_60117,"2,930.89",Programme System File
BIS,Skills Funding Agency,13/07/2015,16-18 Apprenticeships - Centralised Contract Management,Main Funding,HAVERING COLLEGE OF FURTHER & HIGHER EDUCATION,16APC_11607,"-77,210.09",Programme System File
BIS,Skills Funding Agency,13/07/2015,16-18 Apprenticeships - Centralised Contract Management,Main Funding,HAVERING COLLEGE OF FURTHER & HIGHER EDUCATION,16APR_60298,"158,209.91",Programme System File
BIS,Skills Funding Agency,13/07/2015,16-18 Apprenticeships - Centralised Contract Management,Main Funding,HAVERING LONDON BOROUGH COUNCIL,16APR_60320,"3,331.53",Programme System File
BIS,Skills Funding Agency,13/07/2015,16-18 Apprenticeships - Centralised Contract Management,Main Funding,HAWK MANAGEMENT UK LTD,16APR_60405,"162,454.49",Programme System File
BIS,Skills Funding Agency,13/07/2015,16-18 Apprenticeships - Centralised Contract Management,Main Funding,HAYS TRAVEL LIMITED,16APR_60696,"11,799.55",Programme System File
BIS,Skills Funding Agency,13/07/2015,16-18 Apprenticeships - Centralised Contract Management,Main Funding,HEADMASTERS PARTNERSHIP LTD,16APC_11655,"-140,734.87",Programme System File
BIS,Skills Funding Agency,13/07/2015,16-18 Apprenticeships - Centralised Contract Management,Main Funding,HEADMASTERS PARTNERSHIP LTD,16APR_60387,"170,622.50",Programme System File
BIS,Skills Funding Agency,13/07/2015,16-18 Apprenticeships - Centralised Contract Management,Main Funding,HEALTH EDUCATION NORTH EAST,16APR_60699,"33,738.84",Programme System File
BIS,Skills Funding Agency,13/07/2015,16-18 Apprenticeships - Centralised Contract Management,Main Funding,HEART OF ENGLAND TRAINING LTD,16APR_60122,"102,269.25",Programme System File
BIS,Skills Funding Agency,13/07/2015,16-18 Apprenticeships - Centralised Contract Management,Main Funding,HEATHERCROFT TRAINING SERVICES LTD,16APR_59920,"17,228.04",Programme System File
BIS,Skills Funding Agency,13/07/2015,16-18 Apprenticeships - Centralised Contract Management,Main Funding,HENLEY COLLEGE COVENTRY,16APR_60457,"22,409.87",Programme System File
BIS,Skills Funding Agency,13/07/2015,16-18 Apprenticeships - Centralised Contract Management,Main Funding,HENLEY COLLEGE,16APC_11582,"-201,268.43",Programme System File
BIS,Skills Funding Agency,13/07/2015,16-18 Apprenticeships - Centralised Contract Management,Main Funding,HENLEY COLLEGE,16APR_60267,"249,877.27",Programme System File
BIS,Skills Funding Agency,13/07/2015,16-18 Apprenticeships - Centralised Contract Management,Main Funding,HEREFORDSHIRE & LUDLOW COLLEGE,16APC_11692,"-57,264.04",Programme System File
BIS,Skills Funding Agency,13/07/2015,16-18 Apprenticeships - Centralised Contract Management,Main Funding,HEREFORDSHIRE & LUDLOW COLLEGE,16APR_60459,"126,704.71",Programme System File
BIS,Skills Funding Agency,13/07/2015,16-18 Apprenticeships - Centralised Contract Management,Main Funding,HEREFORDSHIRE GROUP TRAINING ASSOCIATION LTD,16APR_60460,"107,674.78",Programme System File
BIS,Skills Funding Agency,13/07/2015,16-18 Apprenticeships - Centralised Contract Management,Main Funding,HEREWARD COLLEGE OF HIGHER EDUCATION,16APR_60464,581.20,Programme System File
BIS,Skills Funding Agency,13/07/2015,16-18 Apprenticeships - Centralised Contract Management,Main Funding,HERTFORD REGIONAL COLLEGE,16APR_59930,"87,699.77",Programme System File
BIS,Skills Funding Agency,13/07/2015,16-18 Apprenticeships - Centralised Contract Management,Main Funding,HIGHBURY COLLEGE,16APC_11517,"-183,623.44",Programme System File
BIS,Skills Funding Agency,13/07/2015,16-18 Apprenticeships - Centralised Contract Management,Main Funding,HIGHBURY COLLEGE,16APR_60137,"318,759.32",Programme System File
BIS,Skills Funding Agency,13/07/2015,16-18 Apprenticeships - Centralised Contract Management,Main Funding,HILLINGDON TRAINING LTD,16APR_60331,"41,959.31",Programme System File
BIS,Skills Funding Agency,13/07/2015,16-18 Apprenticeships - Centralised Contract Management,Main Funding,HIT TRAINING LTD,16APR_60440,"267,948.87",Programme System File
BIS,Skills Funding Agency,13/07/2015,16-18 Apprenticeships - Centralised Contract Management,Main Funding,HOB SALON LIMITED,16APR_60068,"19,410.31",Programme System File
BIS,Skills Funding Agency,13/07/2015,16-18 Apprenticeships - Centralised Contract Management,Main Funding,HONDA MOTOR EUROPE LTD,16APC_11757,"-30,399.26",Programme System File
BIS,Skills Funding Agency,13/07/2015,16-18 Apprenticeships - Centralised Contract Management,Main Funding,HONDA MOTOR EUROPE LTD,16APR_60603,"53,199.26",Programme System File
BIS,Skills Funding Agency,13/07/2015,16-18 Apprenticeships - Centralised Contract Management,Main Funding,HOOPLE LTD,16APR_60604,"28,729.78",Programme System File
BIS,Skills Funding Agency,13/07/2015,16-18 Apprenticeships - Centralised Contract Management,Main Funding,HOPWOOD HALL COLLEGE,16APR_59810,"25,282.99",Programme System File
BIS,Skills Funding Agency,13/07/2015,16-18 Apprenticeships - Centralised Contract Management,Main Funding,HOSPITALITY TRAINING PARTNERSHIP IOW LTD,16APR_60276,"79,933.22",Programme System File
BIS,Skills Funding Agency,13/07/2015,16-18 Apprenticeships - Centralised Contract Management,Main Funding,HOUSE OF CLIVE HAIR & BEAUTY LTD,16APR_60278,"152,487.76",Programme System File
BIS,Skills Funding Agency,13/07/2015,16-18 Apprenticeships - Centralised Contract Management,Main Funding,HSBC BANK PLC,16APC_11314,"-135,131.14",Programme System File
BIS,Skills Funding Agency,13/07/2015,16-18 Apprenticeships - Centralised Contract Management,Main Funding,HSBC BANK PLC,16APR_59752,"135,131.14",Programme System File
BIS,Skills Funding Agency,13/07/2015,16-18 Apprenticeships - Centralised Contract Management,Main Funding,HUDDERSFIELD TEXTILE TRAINING LTD,16APR_60846,"9,142.96",Programme System File
BIS,Skills Funding Agency,13/07/2015,16-18 Apprenticeships - Centralised Contract Management,Main Funding,HUDSON & HUGHES TRAINING LTD,16APC_11587,-854.62,Programme System File
BIS,Skills Funding Agency,13/07/2015,16-18 Apprenticeships - Centralised Contract Management,Main Funding,HUDSON & HUGHES TRAINING LTD,16APR_60280,"2,142.48",Programme System File
BIS,Skills Funding Agency,13/07/2015,16-18 Apprenticeships - Centralised Contract Management,Main Funding,HUGH BAIRD COLLEGE,16APC_11345,"-36,966.82",Programme System File
BIS,Skills Funding Agency,13/07/2015,16-18 Apprenticeships - Centralised Contract Management,Main Funding,HUGH BAIRD COLLEGE,16APR_59811,"70,490.28",Programme System File
BIS,Skills Funding Agency,13/07/2015,16-18 Apprenticeships - Centralised Contract Management,Main Funding,HULL BUSINESS TRAINING CENTRE LTD,16APR_60848,"51,442.82",Programme System File
BIS,Skills Funding Agency,13/07/2015,16-18 Apprenticeships - Centralised Contract Management,Main Funding,HULL COLLEGE,16APC_11876,"-16,431.46",Programme System File
BIS,Skills Funding Agency,13/07/2015,16-18 Apprenticeships - Centralised Contract Management,Main Funding,HULL COLLEGE,16APR_60844,"226,900.78",Programme System File
BIS,Skills Funding Agency,13/07/2015,16-18 Apprenticeships - Centralised Contract Management,Main Funding,HUMBER LEARNING CONSORTIUM,16APR_60853,"11,874.26",Programme System File
BIS,Skills Funding Agency,13/07/2015,16-18 Apprenticeships - Centralised Contract Management,Main Funding,HUMBERSIDE ENGINEERING TRAINING ASSOCIATION LTD,16APR_60855,"149,918.98",Programme System File
BIS,Skills Funding Agency,13/07/2015,16-18 Apprenticeships - Centralised Contract Management,Main Funding,HUNTINGDONSHIRE REGIONAL COLLEGE,16APC_11459,"-41,486.95",Programme System File
BIS,Skills Funding Agency,13/07/2015,16-18 Apprenticeships - Centralised Contract Management,Main Funding,HUNTINGDONSHIRE REGIONAL COLLEGE,16APR_60018,"75,650.68",Programme System File
BIS,Skills Funding Agency,13/07/2015,16-18 Apprenticeships - Centralised Contract Management,Main Funding,ICON VOCATIONAL TRAINING LTD,16APR_60020,"43,212.91",Programme System File
BIS,Skills Funding Agency,13/07/2015,16-18 Apprenticeships - Centralised Contract Management,Main Funding,IMPACT LEARNING & DATA SOLUTIONS LTD,16APR_60281,"2,402.16",Programme System File
BIS,Skills Funding Agency,13/07/2015,16-18 Apprenticeships - Centralised Contract Management,Main Funding,IN TOUCH CARE LTD,16APR_60856,"14,770.38",Programme System File
BIS,Skills Funding Agency,13/07/2015,16-18 Apprenticeships - Centralised Contract Management,Main Funding,IN-COMM TRAINING SERVICES LIMITED,16APC_11759,"-7,872.86",Programme System File
BIS,Skills Funding Agency,13/07/2015,16-18 Apprenticeships - Centralised Contract Management,Main Funding,IN-COMM TRAINING SERVICES LIMITED,16APR_60607,"49,047.00",Programme System File
BIS,Skills Funding Agency,13/07/2015,16-18 Apprenticeships - Centralised Contract Management,Main Funding,INDEPENDENT TRAINING SERVICES LTD,16APR_60690,"31,037.52",Programme System File
BIS,Skills Funding Agency,13/07/2015,16-18 Apprenticeships - Centralised Contract Management,Main Funding,INGEUS TRAINING LTD,16APR_60332,"33,023.09",Programme System File
BIS,Skills Funding Agency,13/07/2015,16-18 Apprenticeships - Centralised Contract Management,Main Funding,INSPIRE TO INDEPENDENCE (i2i) LTD,16APR_60689,"1,372.71",Programme System File
BIS,Skills Funding Agency,13/07/2015,16-18 Apprenticeships - Centralised Contract Management,Main Funding,INSTITUTE OF SWIMMING LTD,16APC_11687,"-54,288.20",Programme System File
BIS,Skills Funding Agency,13/07/2015,16-18 Apprenticeships - Centralised Contract Management,Main Funding,INSTITUTE OF SWIMMING LTD,16APR_60450,"130,144.00",Programme System File
BIS,Skills Funding Agency,13/07/2015,16-18 Apprenticeships - Centralised Contract Management,Main Funding,INTEC BUSINESS COLLEGES PLC,16APR_60118,"51,421.13",Programme System File
BIS,Skills Funding Agency,13/07/2015,16-18 Apprenticeships - Centralised Contract Management,Main Funding,INTER TRAINING SERVICES LTD,16APC_11392,"-9,105.41",Programme System File
BIS,Skills Funding Agency,13/07/2015,16-18 Apprenticeships - Centralised Contract Management,Main Funding,INTER TRAINING SERVICES LTD,16APR_59907,"26,761.66",Programme System File
BIS,Skills Funding Agency,13/07/2015,16-18 Apprenticeships - Centralised Contract Management,Main Funding,INTERACTIVE DEVELOPMENT EDUCATION LTD,16APR_60700,"13,419.76",Programme System File
BIS,Skills Funding Agency,13/07/2015,16-18 Apprenticeships - Centralised Contract Management,Main Funding,INTRAINING GROUP LTD,16APR_60838,"4,760.42",Programme System File
BIS,Skills Funding Agency,13/07/2015,16-18 Apprenticeships - Centralised Contract Management,Main Funding,INTROTRAIN (ACE) LTD,16APC_11510,"-1,560.71",Programme System File
BIS,Skills Funding Agency,13/07/2015,16-18 Apprenticeships - Centralised Contract Management,Main Funding,INTROTRAIN (ACE) LTD,16APR_60125,"58,171.75",Programme System File
BIS,Skills Funding Agency,13/07/2015,16-18 Apprenticeships - Centralised Contract Management,Main Funding,INTUITIONS LTD,16APR_60702,"26,046.89",Programme System File
BIS,Skills Funding Agency,13/07/2015,16-18 Apprenticeships - Centralised Contract Management,Main Funding,IPS INTERNATIONAL LTD,16APR_59924,"85,976.14",Programme System File
BIS,Skills Funding Agency,13/07/2015,16-18 Apprenticeships - Centralised Contract Management,Main Funding,ISIS TRAINING SERVICES LTD,16APR_60130,"63,098.40",Programme System File
BIS,Skills Funding Agency,13/07/2015,16-18 Apprenticeships - Centralised Contract Management,Main Funding,ISLE OF WIGHT COLLEGE,16APR_60135,"39,680.20",Programme System File
BIS,Skills Funding Agency,13/07/2015,16-18 Apprenticeships - Centralised Contract Management,Main Funding,ITEC NORTH EAST LTD,16APC_11813,"-11,693.92",Programme System File
BIS,Skills Funding Agency,13/07/2015,16-18 Apprenticeships - Centralised Contract Management,Main Funding,ITEC NORTH EAST LTD,16APR_60709,"48,172.16",Programme System File
BIS,Skills Funding Agency,13/07/2015,16-18 Apprenticeships - Centralised Contract Management,Main Funding,ITS TRAINING LIMITED,16APR_59931,"14,887.58",Programme System File
BIS,Skills Funding Agency,13/07/2015,16-18 Apprenticeships - Centralised Contract Management,Main Funding,IXION GROUP CONTRACTS LTD,16APR_59933,"42,445.46",Programme System File
BIS,Skills Funding Agency,13/07/2015,16-18 Apprenticeships - Centralised Contract Management,Main Funding,JAGUAR LAND ROVER HOLDINGS LTD,16APC_11706,"-45,481.53",Programme System File
BIS,Skills Funding Agency,13/07/2015,16-18 Apprenticeships - Centralised Contract Management,Main Funding,JAGUAR LAND ROVER HOLDINGS LTD,16APR_60478,"120,321.54",Programme System File
BIS,Skills Funding Agency,13/07/2015,16-18 Apprenticeships - Centralised Contract Management,Main Funding,JANARD TRAINING & ASSESSMENT CENTRE LTD,16APR_60852,"4,445.41",Programme System File
BIS,Skills Funding Agency,13/07/2015,16-18 Apprenticeships - Centralised Contract Management,Main Funding,JANCETT CHILDCARE & JACE TRAINING LIMITED,16APR_60392,"42,953.92",Programme System File
BIS,Skills Funding Agency,13/07/2015,16-18 Apprenticeships - Centralised Contract Management,Main Funding,JARVIS TRAINING MANAGEMENT LTD,16APR_59766,"64,098.90",Programme System File
BIS,Skills Funding Agency,13/07/2015,16-18 Apprenticeships - Centralised Contract Management,Main Funding,JBC COMPUTER TRAINING LIMITED,16APC_11758,"-7,374.56",Programme System File
BIS,Skills Funding Agency,13/07/2015,16-18 Apprenticeships - Centralised Contract Management,Main Funding,JBC COMPUTER TRAINING LIMITED,16APR_60606,"29,231.61",Programme System File
BIS,Skills Funding Agency,13/07/2015,16-18 Apprenticeships - Centralised Contract Management,Main Funding,JGA LTD,16APR_60394,"17,271.66",Programme System File
BIS,Skills Funding Agency,13/07/2015,16-18 Apprenticeships - Centralised Contract Management,Main Funding,JOBWISE TRAINING LTD,16APC_11659,"-19,403.73",Programme System File
BIS,Skills Funding Agency,13/07/2015,16-18 Apprenticeships - Centralised Contract Management,Main Funding,JOBWISE TRAINING LTD,16APR_60395,"40,065.07",Programme System File
BIS,Skills Funding Agency,13/07/2015,16-18 Apprenticeships - Centralised Contract Management,Main Funding,JOHN LAING TRAINING LTD,16APR_60023,"9,150.26",Programme System File
BIS,Skills Funding Agency,13/07/2015,16-18 Apprenticeships - Centralised Contract Management,Main Funding,JOHN LEGGOTT SIXTH FORM COLLEGE,16APR_60916,649.43,Programme System File
BIS,Skills Funding Agency,13/07/2015,16-18 Apprenticeships - Centralised Contract Management,Main Funding,JOHN RUSKIN COLLEGE,16APC_11661,"-106,046.19",Programme System File
BIS,Skills Funding Agency,13/07/2015,16-18 Apprenticeships - Centralised Contract Management,Main Funding,JOHN RUSKIN COLLEGE,16APR_60397,"138,189.57",Programme System File
BIS,Skills Funding Agency,13/07/2015,16-18 Apprenticeships - Centralised Contract Management,Main Funding,JOINT LEARNING PARTNERSHIP LTD,16APR_59787,"64,292.73",Programme System File
BIS,Skills Funding Agency,13/07/2015,16-18 Apprenticeships - Centralised Contract Management,Main Funding,JTL,16APC_11348,"-118,975.20",Programme System File
BIS,Skills Funding Agency,13/07/2015,16-18 Apprenticeships - Centralised Contract Management,Main Funding,JTL,16APR_59801,"1,198,182.77",Programme System File
BIS,Skills Funding Agency,13/07/2015,16-18 Apprenticeships - Centralised Contract Management,Main Funding,K & G HAIR LLP,16APR_60025,"32,222.48",Programme System File
BIS,Skills Funding Agency,13/07/2015,16-18 Apprenticeships - Centralised Contract Management,Main Funding,KAPLAN FINANCIAL LIMITED,16APR_59828,"176,069.01",Programme System File
BIS,Skills Funding Agency,13/07/2015,16-18 Apprenticeships - Centralised Contract Management,Main Funding,KATS LIMITED,16APR_60282,"1,829.66",Programme System File
BIS,Skills Funding Agency,13/07/2015,16-18 Apprenticeships - Centralised Contract Management,Main Funding,KEITS TRAINING SERVICES LTD,16APR_60027,"104,836.11",Programme System File
BIS,Skills Funding Agency,13/07/2015,16-18 Apprenticeships - Centralised Contract Management,Main Funding,KENDAL COLLEGE,16APC_11347,"-8,020.26",Programme System File
BIS,Skills Funding Agency,13/07/2015,16-18 Apprenticeships - Centralised Contract Management,Main Funding,KENDAL COLLEGE,16APR_59813,"40,224.16",Programme System File
BIS,Skills Funding Agency,13/07/2015,16-18 Apprenticeships - Centralised Contract Management,Main Funding,KENSINGTON & CHELSEA COLLEGE,16APC_11663,"-3,961.05",Programme System File
BIS,Skills Funding Agency,13/07/2015,16-18 Apprenticeships - Centralised Contract Management,Main Funding,KENSINGTON & CHELSEA COLLEGE,16APR_60400,"8,612.26",Programme System File
BIS,Skills Funding Agency,13/07/2015,16-18 Apprenticeships - Centralised Contract Management,Main Funding,KENT COUNTY COUNCIL,16APC_11466,"-39,954.83",Programme System File
BIS,Skills Funding Agency,13/07/2015,16-18 Apprenticeships - Centralised Contract Management,Main Funding,KENT COUNTY COUNCIL,16APR_60032,"91,924.30",Programme System File
BIS,Skills Funding Agency,13/07/2015,16-18 Apprenticeships - Centralised Contract Management,Main Funding,KENTUCKY FRIED CHICKEN GREAT BRITAIN LTD,16APC_11366,"-34,392.45",Programme System File
BIS,Skills Funding Agency,13/07/2015,16-18 Apprenticeships - Centralised Contract Management,Main Funding,KENTUCKY FRIED CHICKEN GREAT BRITAIN LTD,16APR_59854,"40,410.17",Programme System File
BIS,Skills Funding Agency,13/07/2015,16-18 Apprenticeships - Centralised Contract Management,Main Funding,KEY TRAINING LTD,16APR_59870,"283,862.84",Programme System File
BIS,Skills Funding Agency,13/07/2015,16-18 Apprenticeships - Centralised Contract Management,Main Funding,KINGSTON COLLEGE,16APC_11633,"-6,521.01",Programme System File
BIS,Skills Funding Agency,13/07/2015,16-18 Apprenticeships - Centralised Contract Management,Main Funding,KINGSTON COLLEGE,16APR_60342,"50,315.77",Programme System File
BIS,Skills Funding Agency,13/07/2015,16-18 Apprenticeships - Centralised Contract Management,Main Funding,KINGSTON MAURWARD COLLEGE,16APC_11527,"-22,696.40",Programme System File
BIS,Skills Funding Agency,13/07/2015,16-18 Apprenticeships - Centralised Contract Management,Main Funding,KINGSTON MAURWARD COLLEGE,16APR_60152,"57,434.52",Programme System File
BIS,Skills Funding Agency,13/07/2015,16-18 Apprenticeships - Centralised Contract Management,Main Funding,KINGSTON UPON HULL CITY COUNCIL,16APR_60732,"138,012.10",Programme System File
BIS,Skills Funding Agency,13/07/2015,16-18 Apprenticeships - Centralised Contract Management,Main Funding,KIRKDALE INDUSTRIAL TRAINING SERVICES LTD,16APR_60738,"92,636.01",Programme System File
BIS,Skills Funding Agency,13/07/2015,16-18 Apprenticeships - Centralised Contract Management,Main Funding,KIRKLEES COLLEGE,16APC_11825,"-122,496.44",Programme System File
BIS,Skills Funding Agency,13/07/2015,16-18 Apprenticeships - Centralised Contract Management,Main Funding,KIRKLEES COLLEGE,16APR_60743,"288,793.32",Programme System File
BIS,Skills Funding Agency,13/07/2015,16-18 Apprenticeships - Centralised Contract Management,Main Funding,KNOWSLEY COMMUNITY COLLEGE,16APC_11288,"-9,529.51",Programme System File
BIS,Skills Funding Agency,13/07/2015,16-18 Apprenticeships - Centralised Contract Management,Main Funding,KNOWSLEY COMMUNITY COLLEGE,16APR_59713,"30,164.73",Programme System File
BIS,Skills Funding Agency,13/07/2015,16-18 Apprenticeships - Centralised Contract Management,Main Funding,KWIK FIT GB LTD,16APR_60644,"184,933.58",Programme System File
BIS,Skills Funding Agency,13/07/2015,16-18 Apprenticeships - Centralised Contract Management,Main Funding,LAGAT LTD,16APR_60510,"24,255.47",Programme System File
BIS,Skills Funding Agency,13/07/2015,16-18 Apprenticeships - Centralised Contract Management,Main Funding,LAKES COLLEGE WEST CUMBRIA,16APC_11290,"-57,208.99",Programme System File
BIS,Skills Funding Agency,13/07/2015,16-18 Apprenticeships - Centralised Contract Management,Main Funding,LAKES COLLEGE WEST CUMBRIA,16APR_59716,"143,405.23",Programme System File
BIS,Skills Funding Agency,13/07/2015,16-18 Apprenticeships - Centralised Contract Management,Main Funding,LAMBETH COLLEGE AT CLAPHAM CENTRE,16APR_60346,"15,255.88",Programme System File
BIS,Skills Funding Agency,13/07/2015,16-18 Apprenticeships - Centralised Contract Management,Main Funding,LANCASHIRE COUNTY COUNCIL,16APC_11292,"-4,343.90",Programme System File
BIS,Skills Funding Agency,13/07/2015,16-18 Apprenticeships - Centralised Contract Management,Main Funding,LANCASHIRE COUNTY COUNCIL,16APR_59720,"7,575.45",Programme System File
BIS,Skills Funding Agency,13/07/2015,16-18 Apprenticeships - Centralised Contract Management,Main Funding,LANCASTER & MORECAMBE COLLEGE,16APC_11296,"-99,145.59",Programme System File
BIS,Skills Funding Agency,13/07/2015,16-18 Apprenticeships - Centralised Contract Management,Main Funding,LANCASTER & MORECAMBE COLLEGE,16APR_59726,"165,971.21",Programme System File
BIS,Skills Funding Agency,13/07/2015,16-18 Apprenticeships - Centralised Contract Management,Main Funding,LANCASTER TRAINING SERVICES LTD,16APR_59729,"15,388.08",Programme System File
BIS,Skills Funding Agency,13/07/2015,16-18 Apprenticeships - Centralised Contract Management,Main Funding,LAWN TENNIS ASSOCIATION LTD,16APC_11639,"-3,374.21",Programme System File
BIS,Skills Funding Agency,13/07/2015,16-18 Apprenticeships - Centralised Contract Management,Main Funding,LAWN TENNIS ASSOCIATION LTD,16APR_60350,"33,868.65",Programme System File
BIS,Skills Funding Agency,13/07/2015,16-18 Apprenticeships - Centralised Contract Management,Main Funding,LEAGUE FOOTBALL EDUCATION,16APR_60676,"379,453.25",Programme System File
BIS,Skills Funding Agency,13/07/2015,16-18 Apprenticeships - Centralised Contract Management,Main Funding,LEARNDIRECT LTD,16APR_60686,"988,662.73",Programme System File
BIS,Skills Funding Agency,13/07/2015,16-18 Apprenticeships - Centralised Contract Management,Main Funding,LEARNING CURVE JAA LIMITED,16APC_11834,"-7,687.74",Programme System File
BIS,Skills Funding Agency,13/07/2015,16-18 Apprenticeships - Centralised Contract Management,Main Funding,LEARNING CURVE JAA LIMITED,16APR_60763,"156,601.09",Programme System File
BIS,Skills Funding Agency,13/07/2015,16-18 Apprenticeships - Centralised Contract Management,Main Funding,LEARNING CURVE,16APC_11584,"-1,597.01",Programme System File
BIS,Skills Funding Agency,13/07/2015,16-18 Apprenticeships - Centralised Contract Management,Main Funding,LEARNING CURVE,16APR_60270,"1,422.37",Programme System File
BIS,Skills Funding Agency,13/07/2015,16-18 Apprenticeships - Centralised Contract Management,Main Funding,LEARNING PARTNERSHIP FOR CORNWALL AND THE ISLES OF SCILLY LIMITED,16APC_11585,"-15,250.01",Programme System File
BIS,Skills Funding Agency,13/07/2015,16-18 Apprenticeships - Centralised Contract Management,Main Funding,LEARNING PARTNERSHIP FOR CORNWALL AND THE ISLES OF SCILLY LIMITED,16APR_60271,"34,012.64",Programme System File
BIS,Skills Funding Agency,13/07/2015,16-18 Apprenticeships - Centralised Contract Management,Main Funding,LEARNING SKILLS PARTNERSHIP LIMITED,16APR_60765,"66,502.63",Programme System File
BIS,Skills Funding Agency,13/07/2015,16-18 Apprenticeships - Centralised Contract Management,Main Funding,LEEDS CITY COLLEGE,16APC_11835,"-225,631.64",Programme System File
BIS,Skills Funding Agency,13/07/2015,16-18 Apprenticeships - Centralised Contract Management,Main Funding,LEEDS CITY COLLEGE,16APR_60766,"332,248.15",Programme System File
BIS,Skills Funding Agency,13/07/2015,16-18 Apprenticeships - Centralised Contract Management,Main Funding,LEEDS COLLEGE OF BUILDING,16APC_11815,"-39,994.21",Programme System File
BIS,Skills Funding Agency,13/07/2015,16-18 Apprenticeships - Centralised Contract Management,Main Funding,LEEDS COLLEGE OF BUILDING,16APR_60716,"174,273.28",Programme System File
BIS,Skills Funding Agency,13/07/2015,16-18 Apprenticeships - Centralised Contract Management,Main Funding,LEICESTER CITY COUNCIL,16APC_11699,"-3,139.75",Programme System File
BIS,Skills Funding Agency,13/07/2015,16-18 Apprenticeships - Centralised Contract Management,Main Funding,LEICESTER CITY COUNCIL,16APR_60473,"4,330.51",Programme System File
BIS,Skills Funding Agency,13/07/2015,16-18 Apprenticeships - Centralised Contract Management,Main Funding,LEICESTER COLLEGE CO FREEMENS PARK CAMPUS,16APC_11698,"-81,015.86",Programme System File
BIS,Skills Funding Agency,13/07/2015,16-18 Apprenticeships - Centralised Contract Management,Main Funding,LEICESTER COLLEGE CO FREEMENS PARK CAMPUS,16APR_60471,"218,840.89",Programme System File
BIS,Skills Funding Agency,13/07/2015,16-18 Apprenticeships - Centralised Contract Management,Main Funding,LEICESTERSHIRE COUNTY COUNCIL,16APR_60474,"2,697.48",Programme System File
BIS,Skills Funding Agency,13/07/2015,16-18 Apprenticeships - Centralised Contract Management,Main Funding,LESLIE FRANCES HAIR FASHIONS LTD,16APC_11817,"-2,751.56",Programme System File
BIS,Skills Funding Agency,13/07/2015,16-18 Apprenticeships - Centralised Contract Management,Main Funding,LESLIE FRANCES HAIR FASHIONS LTD,16APR_60718,"35,423.00",Programme System File
BIS,Skills Funding Agency,13/07/2015,16-18 Apprenticeships - Centralised Contract Management,Main Funding,LESOCO,16APC_11629,"-25,617.34",Programme System File
BIS,Skills Funding Agency,13/07/2015,16-18 Apprenticeships - Centralised Contract Management,Main Funding,LESOCO,16APR_60336,"42,672.20",Programme System File
BIS,Skills Funding Agency,13/07/2015,16-18 Apprenticeships - Centralised Contract Management,Main Funding,LIFESKILLS SOLUTIONS LTD,16APC_11407,"-27,052.86",Programme System File
BIS,Skills Funding Agency,13/07/2015,16-18 Apprenticeships - Centralised Contract Management,Main Funding,LIFESKILLS SOLUTIONS LTD,16APR_59936,"86,750.31",Programme System File
BIS,Skills Funding Agency,13/07/2015,16-18 Apprenticeships - Centralised Contract Management,Main Funding,LIFETIME TRAINING GROUP LTD,16APR_60494,"526,990.58",Programme System File
BIS,Skills Funding Agency,13/07/2015,16-18 Apprenticeships - Centralised Contract Management,Main Funding,LIGA (UK) LTD,16APR_60149,"29,803.74",Programme System File
BIS,Skills Funding Agency,13/07/2015,16-18 Apprenticeships - Centralised Contract Management,Main Funding,LINCOLN COLLEGE,16APC_11701,"-17,684.31",Programme System File
BIS,Skills Funding Agency,13/07/2015,16-18 Apprenticeships - Centralised Contract Management,Main Funding,LINCOLN COLLEGE,16APR_60476,"134,457.76",Programme System File
BIS,Skills Funding Agency,13/07/2015,16-18 Apprenticeships - Centralised Contract Management,Main Funding,LITE STOCKPORT LTD,16APR_59681,"24,183.28",Programme System File
BIS,Skills Funding Agency,13/07/2015,16-18 Apprenticeships - Centralised Contract Management,Main Funding,LITS LTD,16APC_11635,"-3,277.99",Programme System File
BIS,Skills Funding Agency,13/07/2015,16-18 Apprenticeships - Centralised Contract Management,Main Funding,LITS LTD,16APR_60344,"9,585.49",Programme System File
BIS,Skills Funding Agency,13/07/2015,16-18 Apprenticeships - Centralised Contract Management,Main Funding,LIVERPOOL CHAMBER TRAINING LTD,16APR_59683,"54,744.54",Programme System File
BIS,Skills Funding Agency,13/07/2015,16-18 Apprenticeships - Centralised Contract Management,Main Funding,LIVERPOOL CITY COUNCIL,16APC_11276,"-1,334.91",Programme System File
BIS,Skills Funding Agency,13/07/2015,16-18 Apprenticeships - Centralised Contract Management,Main Funding,LIVERPOOL CITY COUNCIL,16APR_59684,"2,711.56",Programme System File
BIS,Skills Funding Agency,13/07/2015,16-18 Apprenticeships - Centralised Contract Management,Main Funding,LOCOMOTIVATION LTD,16APR_60147,"37,390.65",Programme System File
BIS,Skills Funding Agency,13/07/2015,16-18 Apprenticeships - Centralised Contract Management,Main Funding,LONDON BOROUGH OF WALTHAM FOREST,16APC_11667,"-3,098.43",Programme System File
BIS,Skills Funding Agency,13/07/2015,16-18 Apprenticeships - Centralised Contract Management,Main Funding,LONDON BOROUGH OF WALTHAM FOREST,16APR_60406,"6,799.93",Programme System File
BIS,Skills Funding Agency,13/07/2015,16-18 Apprenticeships - Centralised Contract Management,Main Funding,LONDON COLLEGE OF BEAUTY THERAPY LTD,16APR_60389,"16,682.60",Programme System File
BIS,Skills Funding Agency,13/07/2015,16-18 Apprenticeships - Centralised Contract Management,Main Funding,LONDON LEARNING CONSORTIUM C.I.C.,16APR_60338,"2,862.99",Programme System File
BIS,Skills Funding Agency,13/07/2015,16-18 Apprenticeships - Centralised Contract Management,Main Funding,LONDON SKILLS & DEVELOPMENT NETWORK LIMITED,16APR_60337,"4,315.26",Programme System File
BIS,Skills Funding Agency,13/07/2015,16-18 Apprenticeships - Centralised Contract Management,Main Funding,LONDON VESTA COLLEGE LIMITED,16APC_11631,"-2,030.60",Programme System File
BIS,Skills Funding Agency,13/07/2015,16-18 Apprenticeships - Centralised Contract Management,Main Funding,LONDON VESTA COLLEGE LIMITED,16APR_60340,"12,531.33",Programme System File
BIS,Skills Funding Agency,13/07/2015,16-18 Apprenticeships - Centralised Contract Management,Main Funding,LOOKFANTASTIC TRAINING LIMITED,16APR_59938,"35,388.40",Programme System File
BIS,Skills Funding Agency,13/07/2015,16-18 Apprenticeships - Centralised Contract Management,Main Funding,LOUGHBOROUGH COLLEGE,16APC_11703,"-277,023.12",Programme System File
